Workbook

Sheet Zeiterfassung
B1: Leistungs- und Arbeitszeiterfassung | Z1: =IF(Z5<0,"-"&TEXT(ABS(Z5),"[Rot][h]:mm"),IF(Z5=0,"0:00",TEXT(Z5,"[h]:mm"))) -> 0:00
B3: Lehrperson: | E3: =TRIM(Pensendefinition!D7 & " " & Pensendefinition!D5) ->  | L3: =TRIM(Pensendefinition!D7 & " " & Pensendefinition!D5) ->  | U3: Schule: | X3: =TRIM(Pensendefinition!D9) -> 
O4: =SUBSTITUTE(Titel_kurz_LG1,"-","") -> Kernauftrag
F5: =SUM(F8:F373) -> 262 | G5: 104 | H5: 13 | I5: 249 | J5: 0 | K5: 0 | L5: 0 | M5: 0 | N5: 0 | O5: 0 | P5: 0 | Q5: 0 | R5: 0 | S5: 0 | T5: 0 | U5: 0 | V5: 0 | W5: 0 | X5: 0 | Z5: =SUM(Z8:Z371) -> 0
C6: Datum | J6: Feiertag | K6: RAZ | L6: Typ | M6: Soll | N6: Abw. | O6: =Titel_ULG1 -> Unterricht | P6: =Titel_ULG2 -> Lernende | Q6: =Titel_ULG3 -> Schule | R6: =Titel_ULG4 -> Lehrperson | S6: =Titel_kurz_LG2 -> Klassen-lehrperson | T6: =Titel_kurz_LG3 -> Besondere Aufgaben | U6: =Titel_kurz_LG4 -> Tages-strukturen | V6: =Titel_kurz_LG5 -> Weitere Funktionen | W6: Gutschrift | X6: Haben | Y6: Tagessaldo | Z6: Saldo calc | AA6: Saldo cumul | AB6: Jahressaldo
C7: TG | D7: M | E7: KW | F7: WT | G7: WE | H7: FT | I7: AT | J7: Feiertag | K7: RAZ | L7: Typ | M7: Soll | N7: Abwesend | O7: Unterricht | P7: Lernende | Q7: Schule | R7: Lehrperson | S7: KLP | T7: BA | U7: MT | V7: KH | W7: GSAbesend | X7: Haben | Y7: Saldo | Z7: Saldo clac | AA7: Feld1
B8: =C8 -> 2023-08-01 | C8: =Jahreskalender!C8 -> 2023-08-01 | D8: =MONTH(C8) -> 8 | E8: =WEEKNUM(C8,2) -> 32 | F8: =IF(WEEKDAY(C8,2)>5,0,1) -> 1 | G8: =IF(WEEKDAY(C8,2)>5,1,0) -> 0 | H8: =IF(ISERROR(VLOOKUP(C8,tabFeiertage,2,FALSE)),0,VLOOKUP(C8,tabFeiertage,3,FALSE))*F8 -> 1 | I8: =F8-H8 -> 0 | J8: =IF(ISERROR(VLOOKUP(C8,tabFeiertage,2,FALSE)),FALSE,TRUE) -> TRUE | K8: =INDIRECT("RAZ_"& TEXT(WEEKDAY(C8,2),0) & "WT")*I8 -> 0 | L8: =Jahreskalender!S8 -> SFZ | M8: =Jahreskalender!V8 -> 0 | W8: =IF(ISERROR((SEARCH(N8,"_KR_MI_UN_UR_UU")*0)),0,IF(SEARCH(N8,"_KR_MI_UN_UR_UU")>1,K8,0)) -> 0 | X8: =SUM(O8:W8) -> 0 | Y8: =IF(Z8<0,"-"&TEXT(ABS(Z8),"[Rot][h]:mm"),IF(Z8=0,"0:00",TEXT(Z8,"[h]:mm"))) -> 0:00 | Z8: =X8-M8 -> 0 | AA8: =Z8 -> 0 | AB8: =IF(AA8<0,"-"&TEXT(ABS(AA8),"[Rot][h]:mm"),IF(AA8=0,"0:00",TEXT(AA8,"[h]:mm"))) -> 0:00
C9: =Jahreskalender!C9 -> 2023-08-02 | D9: 8 | E9: 32 | F9: 1 | G9: 0 | H9: 0 | I9: 1 | J9: FALSE | K9: 0 | L9: =Jahreskalender!S9 -> SFZ | M9: =Jahreskalender!V9 -> 0 | W9: 0 | X9: =SUM(O9:W9) -> 0 | Y9: =IF(Z9<0,"-"&TEXT(ABS(Z9),"[Rot][h]:mm"),IF(Z9=0,"0:00",TEXT(Z9,"[h]:mm"))) -> 0:00 | Z9: 0 | AA9: =AA8+Z9 -> 0 | AB9: =IF(AA9<0,"-"&TEXT(ABS(AA9),"[Rot][h]:mm"),IF(AA9=0,"0:00",TEXT(AA9,"[h]:mm"))) -> 0:00
C10: =Jahreskalender!C10 -> 2023-08-03 | D10: 8 | E10: 32 | F10: 1 | G10: 0 | H10: 0 | I10: 1 | J10: FALSE | K10: 0 | L10: =Jahreskalender!S10 -> SFZ | M10: =Jahreskalender!V10 -> 0 | W10: 0 | X10: 0 | Y10: 0:00 | Z10: 0 | AA10: =AA9+Z10 -> 0 | AB10: =IF(AA10<0,"-"&TEXT(ABS(AA10),"[Rot][h]:mm"),IF(AA10=0,"0:00",TEXT(AA10,"[h]:mm"))) -> 0:00
C11: =Jahreskalender!C11 -> 2023-08-04 | D11: 8 | E11: 32 | F11: 1 | G11: 0 | H11: 0 | I11: 1 | J11: FALSE | K11: 0 | L11: =Jahreskalender!S11 -> SFZ | M11: =Jahreskalender!V11 -> 0 | W11: 0 | X11: 0 | Y11: 0:00 | Z11: 0 | AA11: 0 | AB11: 0:00
C12: =Jahreskalender!C12 -> 2023-08-05 | D12: 8 | E12: 32 | F12: 0 | G12: 1 | H12: 0 | I12: 0 | J12: FALSE | K12: 0 | L12: =Jahreskalender!S12 -> SFZ | M12: =Jahreskalender!V12 -> 0 | W12: 0 | X12: 0 | Y12: 0:00 | Z12: 0 | AA12: 0 | AB12: 0:00
C13: =Jahreskalender!C13 -> 2023-08-06 | D13: 8 | E13: 32 | F13: 0 | G13: 1 | H13: 0 | I13: 0 | J13: FALSE | K13: 0 | L13: =Jahreskalender!S13 -> SFZ | M13: =Jahreskalender!V13 -> 0 | W13: 0 | X13: =SUM(O13:W13) -> 0 | Y13: 0:00 | Z13: 0 | AA13: 0 | AB13: 0:00
C14: =Jahreskalender!C14 -> 2023-08-07 | D14: 8 | E14: 33 | F14: 1 | G14: 0 | H14: 0 | I14: 1 | J14: FALSE | K14: 0 | L14: =Jahreskalender!S14 -> SFZ | M14: =Jahreskalender!V14 -> 0 | W14: 0 | X14: 0 | Y14: 0:00 | Z14: 0 | AA14: 0 | AB14: 0:00
C15: =Jahreskalender!C15 -> 2023-08-08 | D15: 8 | E15: 33 | F15: 1 | G15: 0 | H15: 0 | I15: 1 | J15: FALSE | K15: 0 | L15: =Jahreskalender!S15 -> SFZ | M15: =Jahreskalender!V15 -> 0 | W15: 0 | X15: 0 | Y15: 0:00 | Z15: 0 | AA15: 0 | AB15: 0:00
C16: =Jahreskalender!C16 -> 2023-08-09 | D16: =MONTH(C16) -> 8 | E16: =WEEKNUM(C16,2) -> 33 | F16: =IF(WEEKDAY(C16,2)>5,0,1) -> 1 | G16: =IF(WEEKDAY(C16,2)>5,1,0) -> 0 | H16: =IF(ISERROR(VLOOKUP(C16,tabFeiertage,2,FALSE)),0,VLOOKUP(C16,tabFeiertage,3,FALSE))*F16 -> 0 | I16: =F16-H16 -> 1 | J16: =IF(ISERROR(VLOOKUP(C16,tabFeiertage,2,FALSE)),FALSE,TRUE) -> FALSE | K16: =INDIRECT("RAZ_"& TEXT(WEEKDAY(C16,2),0) & "WT")*I16 -> 0 | L16: =Jahreskalender!S16 -> SFZ | M16: =Jahreskalender!V16 -> 0 | W16: 0 | X16: =SUM(O16:W16) -> 0 | Y16: =IF(Z16<0,"-"&TEXT(ABS(Z16),"[Rot][h]:mm"),IF(Z16=0,"0:00",TEXT(Z16,"[h]:mm"))) -> 0:00 | Z16: =X16-M16 -> 0 | AA16: 0 | AB16: 0:00
C17: =Jahreskalender!C17 -> 2023-08-10 | D17: 8 | E17: 33 | F17: 1 | G17: 0 | H17: 0 | I17: 1 | J17: FALSE | K17: 0 | L17: =Jahreskalender!S17 -> SFZ | M17: =Jahreskalender!V17 -> 0 | W17: =IF(ISERROR((SEARCH(N17,"_KR_MI_UN_UR_UU")*0)),0,IF(SEARCH(N17,"_KR_MI_UN_UR_UU")>1,K17,0)) -> 0 | X17: 0 | Y17: 0:00 | Z17: 0 | AA17: =AA16+Z17 -> 0 | AB17: =IF(AA17<0,"-"&TEXT(ABS(AA17),"[Rot][h]:mm"),IF(AA17=0,"0:00",TEXT(AA17,"[h]:mm"))) -> 0:00
C18: =Jahreskalender!C18 -> 2023-08-11 | D18: 8 | E18: 33 | F18: 1 | G18: 0 | H18: 0 | I18: 1 | J18: FALSE | K18: 0 | L18: =Jahreskalender!S18 -> SFZ | M18: =Jahreskalender!V18 -> 0 | W18: =IF(ISERROR((SEARCH(N18,"_KR_MI_UN_UR_UU")*0)),0,IF(SEARCH(N18,"_KR_MI_UN_UR_UU")>1,K18,0)) -> 0 | X18: 0 | Y18: 0:00 | Z18: 0 | AA18: 0 | AB18: 0:00
C19: =Jahreskalender!C19 -> 2023-08-12 | D19: 8 | E19: 33 | F19: 0 | G19: 1 | H19: 0 | I19: 0 | J19: FALSE | K19: 0 | L19: =Jahreskalender!S19 -> SFZ | M19: =Jahreskalender!V19 -> 0 | W19: 0 | X19: 0 | Y19: 0:00 | Z19: 0 | AA19: 0 | AB19: 0:00
C20: =Jahreskalender!C20 -> 2023-08-13 | D20: 8 | E20: 33 | F20: 0 | G20: 1 | H20: 0 | I20: 0 | J20: FALSE | K20: 0 | L20: =Jahreskalender!S20 -> SFZ | M20: =Jahreskalender!V20 -> 0 | W20: 0 | X20: 0 | Y20: 0:00 | Z20: 0 | AA20: 0 | AB20: 0:00
C21: =Jahreskalender!C21 -> 2023-08-14 | D21: 8 | E21: 34 | F21: 1 | G21: 0 | H21: 0 | I21: 1 | J21: FALSE | K21: 0 | L21: =Jahreskalender!S21 -> SFZ | M21: =Jahreskalender!V21 -> 0 | W21: 0 | X21: 0 | Y21: 0:00 | Z21: 0 | AA21: 0 | AB21: 0:00
C22: =Jahreskalender!C22 -> 2023-08-15 | D22: 8 | E22: 34 | F22: 1 | G22: 0 | H22: 1 | I22: 0 | J22: TRUE | K22: 0 | L22: =Jahreskalender!S22 -> SFZ | M22: =Jahreskalender!V22 -> 0 | W22: 0 | X22: 0 | Y22: 0:00 | Z22: 0 | AA22: 0 | AB22: 0:00
C23: =Jahreskalender!C23 -> 2023-08-16 | D23: 8 | E23: 34 | F23: 1 | G23: 0 | H23: 0 | I23: 1 | J23: FALSE | K23: 0 | L23: =Jahreskalender!S23 -> SFZ | M23: =Jahreskalender!V23 -> 0 | W23: 0 | X23: 0 | Y23: 0:00 | Z23: 0 | AA23: 0 | AB23: 0:00
C24: =Jahreskalender!C24 -> 2023-08-17 | D24: 8 | E24: 34 | F24: 1 | G24: 0 | H24: 0 | I24: 1 | J24: FALSE | K24: 0 | L24: =Jahreskalender!S24 -> SFZ | M24: =Jahreskalender!V24 -> 0 | W24: 0 | X24: 0 | Y24: 0:00 | Z24: 0 | AA24: 0 | AB24: 0:00
C25: =Jahreskalender!C25 -> 2023-08-18 | D25: 8 | E25: 34 | F25: 1 | G25: 0 | H25: 0 | I25: 1 | J25: FALSE | K25: 0 | L25: =Jahreskalender!S25 -> SFZ | M25: =Jahreskalender!V25 -> 0 | W25: 0 | X25: 0 | Y25: 0:00 | Z25: 0 | AA25: 0 | AB25: 0:00
C26: =Jahreskalender!C26 -> 2023-08-19 | D26: 8 | E26: 34 | F26: 0 | G26: 1 | H26: 0 | I26: 0 | J26: FALSE | K26: 0 | L26: =Jahreskalender!S26 -> SFZ | M26: =Jahreskalender!V26 -> 0 | W26: 0 | X26: 0 | Y26: 0:00 | Z26: 0 | AA26: 0 | AB26: 0:00
C27: =Jahreskalender!C27 -> 2023-08-20 | D27: 8 | E27: 34 | F27: 0 | G27: 1 | H27: 0 | I27: 0 | J27: FALSE | K27: 0 | L27: =Jahreskalender!S27 -> SFZ | M27: =Jahreskalender!V27 -> 0 | W27: 0 | X27: 0 | Y27: 0:00 | Z27: 0 | AA27: 0 | AB27: 0:00
C28: =Jahreskalender!C28 -> 2023-08-21 | D28: 8 | E28: 35 | F28: 1 | G28: 0 | H28: 0 | I28: 1 | J28: FALSE | K28: 0 | L28: =Jahreskalender!S28 -> SZ | M28: =Jahreskalender!V28 -> 0 | W28: 0 | X28: 0 | Y28: 0:00 | Z28: 0 | AA28: 0 | AB28: 0:00
C29: =Jahreskalender!C29 -> 2023-08-22 | D29: 8 | E29: 35 | F29: 1 | G29: 0 | H29: 0 | I29: 1 | J29: FALSE | K29: 0 | L29: =Jahreskalender!S29 -> SZ | M29: =Jahreskalender!V29 -> 0 | W29: 0 | X29: 0 | Y29: 0:00 | Z29: 0 | AA29: 0 | AB29: 0:00
C30: =Jahreskalender!C30 -> 2023-08-23 | D30: 8 | E30: 35 | F30: 1 | G30: 0 | H30: 0 | I30: 1 | J30: FALSE | K30: 0 | L30: =Jahreskalender!S30 -> SZ | M30: =Jahreskalender!V30 -> 0 | W30: 0 | X30: 0 | Y30: 0:00 | Z30: 0 | AA30: 0 | AB30: 0:00
C31: =Jahreskalender!C31 -> 2023-08-24 | D31: 8 | E31: 35 | F31: 1 | G31: 0 | H31: 0 | I31: 1 | J31: FALSE | K31: 0 | L31: =Jahreskalender!S31 -> SZ | M31: =Jahreskalender!V31 -> 0 | W31: 0 | X31: 0 | Y31: 0:00 | Z31: 0 | AA31: 0 | AB31: 0:00
C32: =Jahreskalender!C32 -> 2023-08-25 | D32: 8 | E32: 35 | F32: 1 | G32: 0 | H32: 0 | I32: 1 | J32: FALSE | K32: 0 | L32: =Jahreskalender!S32 -> SZ | M32: =Jahreskalender!V32 -> 0 | W32: 0 | X32: 0 | Y32: 0:00 | Z32: 0 | AA32: 0 | AB32: 0:00
C33: =Jahreskalender!C33 -> 2023-08-26 | D33: 8 | E33: 35 | F33: 0 | G33: 1 | H33: 0 | I33: 0 | J33: FALSE | K33: 0 | L33: =Jahreskalender!S33 -> SZ | M33: =Jahreskalender!V33 -> 0 | W33: 0 | X33: 0 | Y33: 0:00 | Z33: 0 | AA33: 0 | AB33: 0:00
C34: =Jahreskalender!C34 -> 2023-08-27 | D34: 8 | E34: 35 | F34: 0 | G34: 1 | H34: 0 | I34: 0 | J34: FALSE | K34: 0 | L34: =Jahreskalender!S34 -> SZ | M34: =Jahreskalender!V34 -> 0 | W34: 0 | X34: 0 | Y34: 0:00 | Z34: 0 | AA34: 0 | AB34: 0:00
C35: =Jahreskalender!C35 -> 2023-08-28 | D35: 8 | E35: 36 | F35: 1 | G35: 0 | H35: 0 | I35: 1 | J35: FALSE | K35: 0 | L35: =Jahreskalender!S35 -> SZ | M35: =Jahreskalender!V35 -> 0 | W35: 0 | X35: 0 | Y35: 0:00 | Z35: 0 | AA35: 0 | AB35: 0:00
C36: =Jahreskalender!C36 -> 2023-08-29 | D36: 8 | E36: 36 | F36: 1 | G36: 0 | H36: 0 | I36: 1 | J36: FALSE | K36: 0 | L36: =Jahreskalender!S36 -> SZ | M36: =Jahreskalender!V36 -> 0 | W36: 0 | X36: 0 | Y36: 0:00 | Z36: 0 | AA36: 0 | AB36: 0:00
C37: =Jahreskalender!C37 -> 2023-08-30 | D37: 8 | E37: 36 | F37: 1 | G37: 0 | H37: 0 | I37: 1 | J37: FALSE | K37: 0 | L37: =Jahreskalender!S37 -> SZ | M37: =Jahreskalender!V37 -> 0 | W37: 0 | X37: 0 | Y37: 0:00 | Z37: 0 | AA37: 0 | AB37: 0:00
C38: =Jahreskalender!C38 -> 2023-08-31 | D38: 8 | E38: 36 | F38: 1 | G38: 0 | H38: 0 | I38: 1 | J38: FALSE | K38: 0 | L38: =Jahreskalender!S38 -> SZ | M38: =Jahreskalender!V38 -> 0 | W38: 0 | X38: 0 | Y38: 0:00 | Z38: 0 | AA38: 0 | AB38: 0:00
B39: =C39 -> 2023-09-01 | C39: =Jahreskalender!C39 -> 2023-09-01 | D39: 9 | E39: 36 | F39: 1 | G39: 0 | H39: 0 | I39: 1 | J39: FALSE | K39: 0 | L39: =Jahreskalender!S39 -> SZ | M39: =Jahreskalender!V39 -> 0 | W39: 0 | X39: 0 | Y39: 0:00 | Z39: 0 | AA39: 0 | AB39: 0:00
C40: =Jahreskalender!C40 -> 2023-09-02 | D40: 9 | E40: 36 | F40: 0 | G40: 1 | H40: 0 | I40: 0 | J40: FALSE | K40: 0 | L40: =Jahreskalender!S40 -> SZ | M40: =Jahreskalender!V40 -> 0 | W40: 0 | X40: 0 | Y40: 0:00 | Z40: 0 | AA40: 0 | AB40: 0:00
C41: =Jahreskalender!C41 -> 2023-09-03 | D41: 9 | E41: 36 | F41: 0 | G41: 1 | H41: 0 | I41: 0 | J41: FALSE | K41: 0 | L41: =Jahreskalender!S41 -> SZ | M41: =Jahreskalender!V41 -> 0 | W41: 0 | X41: 0 | Y41: 0:00 | Z41: 0 | AA41: 0 | AB41: 0:00
C42: =Jahreskalender!C42 -> 2023-09-04 | D42: 9 | E42: 37 | F42: 1 | G42: 0 | H42: 0 | I42: 1 | J42: FALSE | K42: 0 | L42: =Jahreskalender!S42 -> SZ | M42: =Jahreskalender!V42 -> 0 | W42: 0 | X42: 0 | Y42: 0:00 | Z42: 0 | AA42: 0 | AB42: 0:00
C43: =Jahreskalender!C43 -> 2023-09-05 | D43: 9 | E43: 37 | F43: 1 | G43: 0 | H43: 0 | I43: 1 | J43: FALSE | K43: 0 | L43: =Jahreskalender!S43 -> SZ | M43: =Jahreskalender!V43 -> 0 | W43: 0 | X43: 0 | Y43: 0:00 | Z43: 0 | AA43: 0 | AB43: 0:00
C44: =Jahreskalender!C44 -> 2023-09-06 | D44: 9 | E44: 37 | F44: 1 | G44: 0 | H44: 0 | I44: 1 | J44: FALSE | K44: 0 | L44: =Jahreskalender!S44 -> SZ | M44: =Jahreskalender!V44 -> 0 | W44: 0 | X44: 0 | Y44: 0:00 | Z44: 0 | AA44: 0 | AB44: 0:00
C45: =Jahreskalender!C45 -> 2023-09-07 | D45: 9 | E45: 37 | F45: 1 | G45: 0 | H45: 0 | I45: 1 | J45: FALSE | K45: 0 | L45: =Jahreskalender!S45 -> SZ | M45: =Jahreskalender!V45 -> 0 | W45: 0 | X45: 0 | Y45: 0:00 | Z45: 0 | AA45: 0 | AB45: 0:00
C46: =Jahreskalender!C46 -> 2023-09-08 | D46: 9 | E46: 37 | F46: 1 | G46: 0 | H46: 0 | I46: 1 | J46: FALSE | K46: 0 | L46: =Jahreskalender!S46 -> SZ | M46: =Jahreskalender!V46 -> 0 | W46: 0 | X46: 0 | Y46: 0:00 | Z46: 0 | AA46: 0 | AB46: 0:00
C47: =Jahreskalender!C47 -> 2023-09-09 | D47: 9 | E47: 37 | F47: 0 | G47: 1 | H47: 0 | I47: 0 | J47: FALSE | K47: 0 | L47: =Jahreskalender!S47 -> SZ | M47: =Jahreskalender!V47 -> 0 | W47: 0 | X47: 0 | Y47: 0:00 | Z47: 0 | AA47: 0 | AB47: 0:00
C48: =Jahreskalender!C48 -> 2023-09-10 | D48: 9 | E48: 37 | F48: 0 | G48: 1 | H48: 0 | I48: 0 | J48: FALSE | K48: 0 | L48: =Jahreskalender!S48 -> SZ | M48: =Jahreskalender!V48 -> 0 | W48: 0 | X48: 0 | Y48: 0:00 | Z48: 0 | AA48: 0 | AB48: 0:00
C49: =Jahreskalender!C49 -> 2023-09-11 | D49: 9 | E49: 38 | F49: 1 | G49: 0 | H49: 0 | I49: 1 | J49: FALSE | K49: 0 | L49: =Jahreskalender!S49 -> SZ | M49: =Jahreskalender!V49 -> 0 | W49: 0 | X49: 0 | Y49: 0:00 | Z49: 0 | AA49: 0 | AB49: 0:00
C50: =Jahreskalender!C50 -> 2023-09-12 | D50: 9 | E50: 38 | F50: 1 | G50: 0 | H50: 0 | I50: 1 | J50: FALSE | K50: 0 | L50: =Jahreskalender!S50 -> SZ | M50: =Jahreskalender!V50 -> 0 | W50: 0 | X50: 0 | Y50: 0:00 | Z50: 0 | AA50: 0 | AB50: 0:00
C51: =Jahreskalender!C51 -> 2023-09-13 | D51: 9 | E51: 38 | F51: 1 | G51: 0 | H51: 0 | I51: 1 | J51: FALSE | K51: 0 | L51: =Jahreskalender!S51 -> SZ | M51: =Jahreskalender!V51 -> 0 | W51: 0 | X51: 0 | Y51: 0:00 | Z51: 0 | AA51: 0 | AB51: 0:00
C52: =Jahreskalender!C52 -> 2023-09-14 | D52: 9 | E52: 38 | F52: 1 | G52: 0 | H52: 0 | I52: 1 | J52: FALSE | K52: 0 | L52: =Jahreskalender!S52 -> SZ | M52: =Jahreskalender!V52 -> 0 | W52: 0 | X52: 0 | Y52: 0:00 | Z52: 0 | AA52: 0 | AB52: 0:00
C53: =Jahreskalender!C53 -> 2023-09-15 | D53: 9 | E53: 38 | F53: 1 | G53: 0 | H53: 0 | I53: 1 | J53: FALSE | K53: 0 | L53: =Jahreskalender!S53 -> SZ | M53: =Jahreskalender!V53 -> 0 | W53: 0 | X53: 0 | Y53: 0:00 | Z53: 0 | AA53: 0 | AB53: 0:00
C54: =Jahreskalender!C54 -> 2023-09-16 | D54: 9 | E54: 38 | F54: 0 | G54: 1 | H54: 0 | I54: 0 | J54: FALSE | K54: 0 | L54: =Jahreskalender!S54 -> SZ | M54: =Jahreskalender!V54 -> 0 | W54: 0 | X54: 0 | Y54: 0:00 | Z54: 0 | AA54: 0 | AB54: 0:00
C55: =Jahreskalender!C55 -> 2023-09-17 | D55: 9 | E55: 38 | F55: 0 | G55: 1 | H55: 0 | I55: 0 | J55: FALSE | K55: 0 | L55: =Jahreskalender!S55 -> SZ | M55: =Jahreskalender!V55 -> 0 | W55: 0 | X55: 0 | Y55: 0:00 | Z55: 0 | AA55: 0 | AB55: 0:00
C56: =Jahreskalender!C56 -> 2023-09-18 | D56: 9 | E56: 39 | F56: 1 | G56: 0 | H56: 0 | I56: 1 | J56: FALSE | K56: 0 | L56: =Jahreskalender!S56 -> SZ | M56: =Jahreskalender!V56 -> 0 | W56: 0 | X56: 0 | Y56: 0:00 | Z56: 0 | AA56: 0 | AB56: 0:00
C57: =Jahreskalender!C57 -> 2023-09-19 | D57: 9 | E57: 39 | F57: 1 | G57: 0 | H57: 0 | I57: 1 | J57: FALSE | K57: 0 | L57: =Jahreskalender!S57 -> SZ | M57: =Jahreskalender!V57 -> 0 | W57: 0 | X57: 0 | Y57: 0:00 | Z57: 0 | AA57: 0 | AB57: 0:00
C58: =Jahreskalender!C58 -> 2023-09-20 | D58: 9 | E58: 39 | F58: 1 | G58: 0 | H58: 0 | I58: 1 | J58: FALSE | K58: 0 | L58: =Jahreskalender!S58 -> SZ | M58: =Jahreskalender!V58 -> 0 | W58: 0 | X58: 0 | Y58: 0:00 | Z58: 0 | AA58: 0 | AB58: 0:00
C59: =Jahreskalender!C59 -> 2023-09-21 | D59: 9 | E59: 39 | F59: 1 | G59: 0 | H59: 0 | I59: 1 | J59: FALSE | K59: 0 | L59: =Jahreskalender!S59 -> SZ | M59: =Jahreskalender!V59 -> 0 | W59: 0 | X59: 0 | Y59: 0:00 | Z59: 0 | AA59: 0 | AB59: 0:00
C60: =Jahreskalender!C60 -> 2023-09-22 | D60: 9 | E60: 39 | F60: 1 | G60: 0 | H60: 0 | I60: 1 | J60: FALSE | K60: 0 | L60: =Jahreskalender!S60 -> SZ | M60: =Jahreskalender!V60 -> 0 | W60: 0 | X60: 0 | Y60: 0:00 | Z60: 0 | AA60: 0 | AB60: 0:00
C61: =Jahreskalender!C61 -> 2023-09-23 | D61: 9 | E61: 39 | F61: 0 | G61: 1 | H61: 0 | I61: 0 | J61: FALSE | K61: 0 | L61: =Jahreskalender!S61 -> SZ | M61: =Jahreskalender!V61 -> 0 | W61: 0 | X61: 0 | Y61: 0:00 | Z61: 0 | AA61: 0 | AB61: 0:00
C62: =Jahreskalender!C62 -> 2023-09-24 | D62: 9 | E62: 39 | F62: 0 | G62: 1 | H62: 0 | I62: 0 | J62: FALSE | K62: 0 | L62: =Jahreskalender!S62 -> SZ | M62: =Jahreskalender!V62 -> 0 | W62: 0 | X62: 0 | Y62: 0:00 | Z62: 0 | AA62: 0 | AB62: 0:00
C63: =Jahreskalender!C63 -> 2023-09-25 | D63: 9 | E63: 40 | F63: 1 | G63: 0 | H63: 0 | I63: 1 | J63: FALSE | K63: 0 | L63: =Jahreskalender!S63 -> SZ | M63: =Jahreskalender!V63 -> 0 | W63: 0 | X63: 0 | Y63: 0:00 | Z63: 0 | AA63: 0 | AB63: 0:00
C64: =Jahreskalender!C64 -> 2023-09-26 | D64: 9 | E64: 40 | F64: 1 | G64: 0 | H64: 0 | I64: 1 | J64: FALSE | K64: 0 | L64: =Jahreskalender!S64 -> SZ | M64: =Jahreskalender!V64 -> 0 | W64: 0 | X64: =SUM(O64:W64) -> 0 | Y64: 0:00 | Z64: 0 | AA64: 0 | AB64: 0:00
C65: =Jahreskalender!C65 -> 2023-09-27 | D65: 9 | E65: 40 | F65: 1 | G65: 0 | H65: 0 | I65: 1 | J65: FALSE | K65: 0 | L65: =Jahreskalender!S65 -> SZ | M65: =Jahreskalender!V65 -> 0 | W65: 0 | X65: =SUM(O65:W65) -> 0 | Y65: 0:00 | Z65: 0 | AA65: 0 | AB65: 0:00
C66: =Jahreskalender!C66 -> 2023-09-28 | D66: 9 | E66: 40 | F66: 1 | G66: 0 | H66: 0 | I66: 1 | J66: FALSE | K66: 0 | L66: =Jahreskalender!S66 -> SZ | M66: =Jahreskalender!V66 -> 0 | W66: 0 | X66: =SUM(O66:W66) -> 0 | Y66: 0:00 | Z66: 0 | AA66: 0 | AB66: 0:00
C67: =Jahreskalender!C67 -> 2023-09-29 | D67: 9 | E67: 40 | F67: 1 | G67: 0 | H67: 0 | I67: 1 | J67: FALSE | K67: 0 | L67: =Jahreskalender!S67 -> SZ | M67: =Jahreskalender!V67 -> 0 | W67: 0 | X67: =SUM(O67:W67) -> 0 | Y67: 0:00 | Z67: 0 | AA67: 0 | AB67: 0:00
C68: =Jahreskalender!C68 -> 2023-09-30 | D68: 9 | E68: 40 | F68: 0 | G68: 1 | H68: 0 | I68: 0 | J68: FALSE | K68: 0 | L68: =Jahreskalender!S68 -> SFZ | M68: =Jahreskalender!V68 -> 0 | W68: 0 | X68: =SUM(O68:W68) -> 0 | Y68: 0:00 | Z68: 0 | AA68: 0 | AB68: 0:00
B69: =C69 -> 2023-10-01 | C69: =Jahreskalender!C69 -> 2023-10-01 | D69: 10 | E69: 40 | F69: 0 | G69: 1 | H69: 0 | I69: 0 | J69: FALSE | K69: 0 | L69: =Jahreskalender!S69 -> SFZ | M69: =Jahreskalender!V69 -> 0 | W69: 0 | X69: 0 | Y69: 0:00 | Z69: 0 | AA69: 0 | AB69: 0:00
C70: =Jahreskalender!C70 -> 2023-10-02 | D70: 10 | E70: 41 | F70: 1 | G70: 0 | H70: 0 | I70: 1 | J70: FALSE | K70: 0 | L70: =Jahreskalender!S70 -> SFZ | M70: =Jahreskalender!V70 -> 0 | W70: 0 | X70: 0 | Y70: 0:00 | Z70: 0 | AA70: 0 | AB70: 0:00
C71: =Jahreskalender!C71 -> 2023-10-03 | D71: 10 | E71: 41 | F71: 1 | G71: 0 | H71: 0 | I71: 1 | J71: FALSE | K71: 0 | L71: =Jahreskalender!S71 -> SFZ | M71: =Jahreskalender!V71 -> 0 | W71: 0 | X71: 0 | Y71: 0:00 | Z71: 0 | AA71: 0 | AB71: 0:00
C72: =Jahreskalender!C72 -> 2023-10-04 | D72: 10 | E72: 41 | F72: 1 | G72: 0 | H72: 0 | I72: 1 | J72: FALSE | K72: 0 | L72: =Jahreskalender!S72 -> SFZ | M72: =Jahreskalender!V72 -> 0 | W72: 0 | X72: 0 | Y72: 0:00 | Z72: 0 | AA72: 0 | AB72: 0:00
C73: =Jahreskalender!C73 -> 2023-10-05 | D73: 10 | E73: 41 | F73: 1 | G73: 0 | H73: 0 | I73: 1 | J73: FALSE | K73: 0 | L73: =Jahreskalender!S73 -> SFZ | M73: =Jahreskalender!V73 -> 0 | W73: 0 | X73: 0 | Y73: 0:00 | Z73: 0 | AA73: 0 | AB73: 0:00
C74: =Jahreskalender!C74 -> 2023-10-06 | D74: 10 | E74: 41 | F74: 1 | G74: 0 | H74: 0 | I74: 1 | J74: FALSE | K74: 0 | L74: =Jahreskalender!S74 -> SFZ | M74: =Jahreskalender!V74 -> 0 | W74: 0 | X74: 0 | Y74: 0:00 | Z74: 0 | AA74: 0 | AB74: 0:00
C75: =Jahreskalender!C75 -> 2023-10-07 | D75: 10 | E75: 41 | F75: 0 | G75: 1 | H75: 0 | I75: 0 | J75: FALSE | K75: 0 | L75: =Jahreskalender!S75 -> SFZ | M75: =Jahreskalender!V75 -> 0 | W75: 0 | X75: 0 | Y75: 0:00 | Z75: 0 | AA75: 0 | AB75: 0:00
C76: =Jahreskalender!C76 -> 2023-10-08 | D76: 10 | E76: 41 | F76: 0 | G76: 1 | H76: 0 | I76: 0 | J76: FALSE | K76: 0 | L76: =Jahreskalender!S76 -> SFZ | M76: =Jahreskalender!V76 -> 0 | W76: 0 | X76: 0 | Y76: 0:00 | Z76: 0 | AA76: 0 | AB76: 0:00
C77: =Jahreskalender!C77 -> 2023-10-09 | D77: 10 | E77: 42 | F77: 1 | G77: 0 | H77: 0 | I77: 1 | J77: FALSE | K77: 0 | L77: =Jahreskalender!S77 -> SFZ | M77: =Jahreskalender!V77 -> 0 | W77: 0 | X77: 0 | Y77: 0:00 | Z77: 0 | AA77: 0 | AB77: 0:00
C78: =Jahreskalender!C78 -> 2023-10-10 | D78: 10 | E78: 42 | F78: 1 | G78: 0 | H78: 0 | I78: 1 | J78: FALSE | K78: 0 | L78: =Jahreskalender!S78 -> SFZ | M78: =Jahreskalender!V78 -> 0 | W78: 0 | X78: 0 | Y78: 0:00 | Z78: 0 | AA78: 0 | AB78: 0:00
C79: =Jahreskalender!C79 -> 2023-10-11 | D79: 10 | E79: 42 | F79: 1 | G79: 0 | H79: 0 | I79: 1 | J79: FALSE | K79: 0 | L79: =Jahreskalender!S79 -> SFZ | M79: =Jahreskalender!V79 -> 0 | W79: 0 | X79: 0 | Y79: 0:00 | Z79: 0 | AA79: 0 | AB79: 0:00
C80: =Jahreskalender!C80 -> 2023-10-12 | D80: =MONTH(C80) -> 10 | E80: =WEEKNUM(C80,2) -> 42 | F80: =IF(WEEKDAY(C80,2)>5,0,1) -> 1 | G80: =IF(WEEKDAY(C80,2)>5,1,0) -> 0 | H80: =IF(ISERROR(VLOOKUP(C80,tabFeiertage,2,FALSE)),0,VLOOKUP(C80,tabFeiertage,3,FALSE))*F80 -> 0 | I80: =F80-H80 -> 1 | J80: =IF(ISERROR(VLOOKUP(C80,tabFeiertage,2,FALSE)),FALSE,TRUE) -> FALSE | K80: =INDIRECT("RAZ_"& TEXT(WEEKDAY(C80,2),0) & "WT")*I80 -> 0 | L80: =Jahreskalender!S80 -> SFZ | M80: =Jahreskalender!V80 -> 0 | W80: 0 | X80: =SUM(O80:W80) -> 0 | Y80: =IF(Z80<0,"-"&TEXT(ABS(Z80),"[Rot][h]:mm"),IF(Z80=0,"0:00",TEXT(Z80,"[h]:mm"))) -> 0:00 | Z80: =X80-M80 -> 0 | AA80: 0 | AB80: 0:00
C81: =Jahreskalender!C81 -> 2023-10-13 | D81: 10 | E81: 42 | F81: 1 | G81: 0 | H81: 0 | I81: 1 | J81: FALSE | K81: 0 | L81: =Jahreskalender!S81 -> SFZ | M81: =Jahreskalender!V81 -> 0 | W81: 0 | X81: 0 | Y81: 0:00 | Z81: 0 | AA81: =AA80+Z81 -> 0 | AB81: =IF(AA81<0,"-"&TEXT(ABS(AA81),"[Rot][h]:mm"),IF(AA81=0,"0:00",TEXT(AA81,"[h]:mm"))) -> 0:00
C82: =Jahreskalender!C82 -> 2023-10-14 | D82: 10 | E82: 42 | F82: 0 | G82: 1 | H82: 0 | I82: 0 | J82: FALSE | K82: 0 | L82: =Jahreskalender!S82 -> SFZ | M82: =Jahreskalender!V82 -> 0 | W82: =IF(ISERROR((SEARCH(N82,"_KR_MI_UN_UR_UU")*0)),0,IF(SEARCH(N82,"_KR_MI_UN_UR_UU")>1,K82,0)) -> 0 | X82: 0 | Y82: 0:00 | Z82: 0 | AA82: 0 | AB82: 0:00
C83: =Jahreskalender!C83 -> 2023-10-15 | D83: 10 | E83: 42 | F83: 0 | G83: 1 | H83: 0 | I83: 0 | J83: FALSE | K83: 0 | L83: =Jahreskalender!S83 -> SFZ | M83: =Jahreskalender!V83 -> 0 | W83: 0 | X83: 0 | Y83: 0:00 | Z83: 0 | AA83: 0 | AB83: 0:00
C84: =Jahreskalender!C84 -> 2023-10-16 | D84: 10 | E84: 43 | F84: 1 | G84: 0 | H84: 0 | I84: 1 | J84: FALSE | K84: 0 | L84: =Jahreskalender!S84 -> SZ | M84: =Jahreskalender!V84 -> 0 | W84: 0 | X84: 0 | Y84: 0:00 | Z84: 0 | AA84: 0 | AB84: 0:00
C85: =Jahreskalender!C85 -> 2023-10-17 | D85: 10 | E85: 43 | F85: 1 | G85: 0 | H85: 0 | I85: 1 | J85: FALSE | K85: 0 | L85: =Jahreskalender!S85 -> SZ | M85: =Jahreskalender!V85 -> 0 | W85: 0 | X85: 0 | Y85: 0:00 | Z85: 0 | AA85: 0 | AB85: 0:00
C86: =Jahreskalender!C86 -> 2023-10-18 | D86: 10 | E86: 43 | F86: 1 | G86: 0 | H86: 0 | I86: 1 | J86: FALSE | K86: 0 | L86: =Jahreskalender!S86 -> SZ | M86: =Jahreskalender!V86 -> 0 | W86: 0 | X86: 0 | Y86: 0:00 | Z86: 0 | AA86: 0 | AB86: 0:00
C87: =Jahreskalender!C87 -> 2023-10-19 | D87: 10 | E87: 43 | F87: 1 | G87: 0 | H87: 0 | I87: 1 | J87: FALSE | K87: 0 | L87: =Jahreskalender!S87 -> SZ | M87: =Jahreskalender!V87 -> 0 | W87: 0 | X87: 0 | Y87: 0:00 | Z87: 0 | AA87: 0 | AB87: 0:00
C88: =Jahreskalender!C88 -> 2023-10-20 | D88: 10 | E88: 43 | F88: 1 | G88: 0 | H88: 0 | I88: 1 | J88: FALSE | K88: 0 | L88: =Jahreskalender!S88 -> SZ | M88: =Jahreskalender!V88 -> 0 | W88: 0 | X88: 0 | Y88: 0:00 | Z88: 0 | AA88: 0 | AB88: 0:00
C89: =Jahreskalender!C89 -> 2023-10-21 | D89: 10 | E89: 43 | F89: 0 | G89: 1 | H89: 0 | I89: 0 | J89: FALSE | K89: 0 | L89: =Jahreskalender!S89 -> SZ | M89: =Jahreskalender!V89 -> 0 | W89: 0 | X89: 0 | Y89: 0:00 | Z89: 0 | AA89: 0 | AB89: 0:00
C90: =Jahreskalender!C90 -> 2023-10-22 | D90: 10 | E90: 43 | F90: 0 | G90: 1 | H90: 0 | I90: 0 | J90: FALSE | K90: 0 | L90: =Jahreskalender!S90 -> SZ | M90: =Jahreskalender!V90 -> 0 | W90: 0 | X90: 0 | Y90: 0:00 | Z90: 0 | AA90: 0 | AB90: 0:00
C91: =Jahreskalender!C91 -> 2023-10-23 | D91: 10 | E91: 44 | F91: 1 | G91: 0 | H91: 0 | I91: 1 | J91: FALSE | K91: 0 | L91: =Jahreskalender!S91 -> SZ | M91: =Jahreskalender!V91 -> 0 | W91: 0 | X91: 0 | Y91: 0:00 | Z91: 0 | AA91: 0 | AB91: 0:00
C92: =Jahreskalender!C92 -> 2023-10-24 | D92: 10 | E92: 44 | F92: 1 | G92: 0 | H92: 0 | I92: 1 | J92: FALSE | K92: 0 | L92: =Jahreskalender!S92 -> SZ | M92: =Jahreskalender!V92 -> 0 | W92: 0 | X92: 0 | Y92: 0:00 | Z92: 0 | AA92: 0 | AB92: 0:00
C93: =Jahreskalender!C93 -> 2023-10-25 | D93: 10 | E93: 44 | F93: 1 | G93: 0 | H93: 0 | I93: 1 | J93: FALSE | K93: 0 | L93: =Jahreskalender!S93 -> SZ | M93: =Jahreskalender!V93 -> 0 | W93: 0 | X93: 0 | Y93: 0:00 | Z93: 0 | AA93: 0 | AB93: 0:00
C94: =Jahreskalender!C94 -> 2023-10-26 | D94: 10 | E94: 44 | F94: 1 | G94: 0 | H94: 0 | I94: 1 | J94: FALSE | K94: 0 | L94: =Jahreskalender!S94 -> SZ | M94: =Jahreskalender!V94 -> 0 | W94: 0 | X94: 0 | Y94: 0:00 | Z94: 0 | AA94: 0 | AB94: 0:00
C95: =Jahreskalender!C95 -> 2023-10-27 | D95: 10 | E95: 44 | F95: 1 | G95: 0 | H95: 0 | I95: 1 | J95: FALSE | K95: 0 | L95: =Jahreskalender!S95 -> SZ | M95: =Jahreskalender!V95 -> 0 | W95: 0 | X95: 0 | Y95: 0:00 | Z95: 0 | AA95: 0 | AB95: 0:00
C96: =Jahreskalender!C96 -> 2023-10-28 | D96: 10 | E96: 44 | F96: 0 | G96: 1 | H96: 0 | I96: 0 | J96: FALSE | K96: 0 | L96: =Jahreskalender!S96 -> SZ | M96: =Jahreskalender!V96 -> 0 | W96: 0 | X96: 0 | Y96: 0:00 | Z96: 0 | AA96: 0 | AB96: 0:00
C97: =Jahreskalender!C97 -> 2023-10-29 | D97: 10 | E97: 44 | F97: 0 | G97: 1 | H97: 0 | I97: 0 | J97: FALSE | K97: 0 | L97: =Jahreskalender!S97 -> SZ | M97: =Jahreskalender!V97 -> 0 | W97: 0 | X97: 0 | Y97: 0:00 | Z97: 0 | AA97: 0 | AB97: 0:00
C98: =Jahreskalender!C98 -> 2023-10-30 | D98: 10 | E98: 45 | F98: 1 | G98: 0 | H98: 0 | I98: 1 | J98: FALSE | K98: 0 | L98: =Jahreskalender!S98 -> SZ | M98: =Jahreskalender!V98 -> 0 | W98: 0 | X98: 0 | Y98: 0:00 | Z98: 0 | AA98: 0 | AB98: 0:00
C99: =Jahreskalender!C99 -> 2023-10-31 | D99: 10 | E99: 45 | F99: 1 | G99: 0 | H99: 0 | I99: 1 | J99: FALSE | K99: 0 | L99: =Jahreskalender!S99 -> SZ | M99: =Jahreskalender!V99 -> 0 | W99: 0 | X99: 0 | Y99: 0:00 | Z99: 0 | AA99: 0 | AB99: 0:00
B100: =C100 -> 2023-11-01 | C100: =Jahreskalender!C100 -> 2023-11-01 | D100: 11 | E100: 45 | F100: 1 | G100: 0 | H100: 1 | I100: 0 | J100: TRUE | K100: 0 | L100: =Jahreskalender!S100 -> SZ | M100: =Jahreskalender!V100 -> 0 | W100: 0 | X100: 0 | Y100: 0:00 | Z100: 0 | AA100: 0 | AB100: 0:00
C101: =Jahreskalender!C101 -> 2023-11-02 | D101: 11 | E101: 45 | F101: 1 | G101: 0 | H101: 0 | I101: 1 | J101: FALSE | K101: 0 | L101: =Jahreskalender!S101 -> SZ | M101: =Jahreskalender!V101 -> 0 | W101: 0 | X101: 0 | Y101: 0:00 | Z101: 0 | AA101: 0 | AB101: 0:00
C102: =Jahreskalender!C102 -> 2023-11-03 | D102: 11 | E102: 45 | F102: 1 | G102: 0 | H102: 0 | I102: 1 | J102: FALSE | K102: 0 | L102: =Jahreskalender!S102 -> SZ | M102: =Jahreskalender!V102 -> 0 | W102: 0 | X102: 0 | Y102: 0:00 | Z102: 0 | AA102: 0 | AB102: 0:00
C103: =Jahreskalender!C103 -> 2023-11-04 | D103: 11 | E103: 45 | F103: 0 | G103: 1 | H103: 0 | I103: 0 | J103: FALSE | K103: 0 | L103: =Jahreskalender!S103 -> SZ | M103: =Jahreskalender!V103 -> 0 | W103: 0 | X103: 0 | Y103: 0:00 | Z103: 0 | AA103: 0 | AB103: 0:00
C104: =Jahreskalender!C104 -> 2023-11-05 | D104: 11 | E104: 45 | F104: 0 | G104: 1 | H104: 0 | I104: 0 | J104: FALSE | K104: 0 | L104: =Jahreskalender!S104 -> SZ | M104: =Jahreskalender!V104 -> 0 | W104: 0 | X104: 0 | Y104: 0:00 | Z104: 0 | AA104: 0 | AB104: 0:00
C105: =Jahreskalender!C105 -> 2023-11-06 | D105: 11 | E105: 46 | F105: 1 | G105: 0 | H105: 0 | I105: 1 | J105: FALSE | K105: 0 | L105: =Jahreskalender!S105 -> SZ | M105: =Jahreskalender!V105 -> 0 | W105: 0 | X105: 0 | Y105: 0:00 | Z105: 0 | AA105: 0 | AB105: 0:00
C106: =Jahreskalender!C106 -> 2023-11-07 | D106: 11 | E106: 46 | F106: 1 | G106: 0 | H106: 0 | I106: 1 | J106: FALSE | K106: 0 | L106: =Jahreskalender!S106 -> SZ | M106: =Jahreskalender!V106 -> 0 | W106: 0 | X106: 0 | Y106: 0:00 | Z106: 0 | AA106: 0 | AB106: 0:00
C107: =Jahreskalender!C107 -> 2023-11-08 | D107: 11 | E107: 46 | F107: 1 | G107: 0 | H107: 0 | I107: 1 | J107: FALSE | K107: 0 | L107: =Jahreskalender!S107 -> SZ | M107: =Jahreskalender!V107 -> 0 | W107: 0 | X107: 0 | Y107: 0:00 | Z107: 0 | AA107: 0 | AB107: 0:00
C108: =Jahreskalender!C108 -> 2023-11-09 | D108: 11 | E108: 46 | F108: 1 | G108: 0 | H108: 0 | I108: 1 | J108: FALSE | K108: 0 | L108: =Jahreskalender!S108 -> SZ | M108: =Jahreskalender!V108 -> 0 | W108: 0 | X108: 0 | Y108: 0:00 | Z108: 0 | AA108: 0 | AB108: 0:00
C109: =Jahreskalender!C109 -> 2023-11-10 | D109: 11 | E109: 46 | F109: 1 | G109: 0 | H109: 0 | I109: 1 | J109: FALSE | K109: 0 | L109: =Jahreskalender!S109 -> SZ | M109: =Jahreskalender!V109 -> 0 | W109: 0 | X109: 0 | Y109: 0:00 | Z109: 0 | AA109: 0 | AB109: 0:00
C110: =Jahreskalender!C110 -> 2023-11-11 | D110: 11 | E110: 46 | F110: 0 | G110: 1 | H110: 0 | I110: 0 | J110: FALSE | K110: 0 | L110: =Jahreskalender!S110 -> SZ | M110: =Jahreskalender!V110 -> 0 | W110: 0 | X110: 0 | Y110: 0:00 | Z110: 0 | AA110: 0 | AB110: 0:00
C111: =Jahreskalender!C111 -> 2023-11-12 | D111: 11 | E111: 46 | F111: 0 | G111: 1 | H111: 0 | I111: 0 | J111: FALSE | K111: 0 | L111: =Jahreskalender!S111 -> SZ | M111: =Jahreskalender!V111 -> 0 | W111: 0 | X111: 0 | Y111: 0:00 | Z111: 0 | AA111: 0 | AB111: 0:00
C112: =Jahreskalender!C112 -> 2023-11-13 | D112: 11 | E112: 47 | F112: 1 | G112: 0 | H112: 0 | I112: 1 | J112: FALSE | K112: 0 | L112: =Jahreskalender!S112 -> SZ | M112: =Jahreskalender!V112 -> 0 | W112: 0 | X112: 0 | Y112: 0:00 | Z112: 0 | AA112: 0 | AB112: 0:00
C113: =Jahreskalender!C113 -> 2023-11-14 | D113: 11 | E113: 47 | F113: 1 | G113: 0 | H113: 0 | I113: 1 | J113: FALSE | K113: 0 | L113: =Jahreskalender!S113 -> SZ | M113: =Jahreskalender!V113 -> 0 | W113: 0 | X113: 0 | Y113: 0:00 | Z113: 0 | AA113: 0 | AB113: 0:00
C114: =Jahreskalender!C114 -> 2023-11-15 | D114: 11 | E114: 47 | F114: 1 | G114: 0 | H114: 0 | I114: 1 | J114: FALSE | K114: 0 | L114: =Jahreskalender!S114 -> SZ | M114: =Jahreskalender!V114 -> 0 | W114: 0 | X114: 0 | Y114: 0:00 | Z114: 0 | AA114: 0 | AB114: 0:00
C115: =Jahreskalender!C115 -> 2023-11-16 | D115: 11 | E115: 47 | F115: 1 | G115: 0 | H115: 0 | I115: 1 | J115: FALSE | K115: 0 | L115: =Jahreskalender!S115 -> SZ | M115: =Jahreskalender!V115 -> 0 | W115: 0 | X115: 0 | Y115: 0:00 | Z115: 0 | AA115: 0 | AB115: 0:00
C116: =Jahreskalender!C116 -> 2023-11-17 | D116: 11 | E116: 47 | F116: 1 | G116: 0 | H116: 0 | I116: 1 | J116: FALSE | K116: 0 | L116: =Jahreskalender!S116 -> SZ | M116: =Jahreskalender!V116 -> 0 | W116: 0 | X116: 0 | Y116: 0:00 | Z116: 0 | AA116: 0 | AB116: 0:00
C117: =Jahreskalender!C117 -> 2023-11-18 | D117: 11 | E117: 47 | F117: 0 | G117: 1 | H117: 0 | I117: 0 | J117: FALSE | K117: 0 | L117: =Jahreskalender!S117 -> SZ | M117: =Jahreskalender!V117 -> 0 | W117: 0 | X117: 0 | Y117: 0:00 | Z117: 0 | AA117: 0 | AB117: 0:00
C118: =Jahreskalender!C118 -> 2023-11-19 | D118: 11 | E118: 47 | F118: 0 | G118: 1 | H118: 0 | I118: 0 | J118: FALSE | K118: 0 | L118: =Jahreskalender!S118 -> SZ | M118: =Jahreskalender!V118 -> 0 | W118: 0 | X118: 0 | Y118: 0:00 | Z118: 0 | AA118: 0 | AB118: 0:00
C119: =Jahreskalender!C119 -> 2023-11-20 | D119: 11 | E119: 48 | F119: 1 | G119: 0 | H119: 0 | I119: 1 | J119: FALSE | K119: 0 | L119: =Jahreskalender!S119 -> SZ | M119: =Jahreskalender!V119 -> 0 | W119: 0 | X119: 0 | Y119: 0:00 | Z119: 0 | AA119: 0 | AB119: 0:00
C120: =Jahreskalender!C120 -> 2023-11-21 | D120: 11 | E120: 48 | F120: 1 | G120: 0 | H120: 0 | I120: 1 | J120: FALSE | K120: 0 | L120: =Jahreskalender!S120 -> SZ | M120: =Jahreskalender!V120 -> 0 | W120: 0 | X120: 0 | Y120: 0:00 | Z120: 0 | AA120: 0 | AB120: 0:00
C121: =Jahreskalender!C121 -> 2023-11-22 | D121: 11 | E121: 48 | F121: 1 | G121: 0 | H121: 0 | I121: 1 | J121: FALSE | K121: 0 | L121: =Jahreskalender!S121 -> SZ | M121: =Jahreskalender!V121 -> 0 | W121: 0 | X121: 0 | Y121: 0:00 | Z121: 0 | AA121: 0 | AB121: 0:00
C122: =Jahreskalender!C122 -> 2023-11-23 | D122: 11 | E122: 48 | F122: 1 | G122: 0 | H122: 0 | I122: 1 | J122: FALSE | K122: 0 | L122: =Jahreskalender!S122 -> SZ | M122: =Jahreskalender!V122 -> 0 | W122: 0 | X122: 0 | Y122: 0:00 | Z122: 0 | AA122: 0 | AB122: 0:00
C123: =Jahreskalender!C123 -> 2023-11-24 | D123: 11 | E123: 48 | F123: 1 | G123: 0 | H123: 0 | I123: 1 | J123: FALSE | K123: 0 | L123: =Jahreskalender!S123 -> SZ | M123: =Jahreskalender!V123 -> 0 | W123: 0 | X123: 0 | Y123: 0:00 | Z123: 0 | AA123: 0 | AB123: 0:00
C124: =Jahreskalender!C124 -> 2023-11-25 | D124: 11 | E124: 48 | F124: 0 | G124: 1 | H124: 0 | I124: 0 | J124: FALSE | K124: 0 | L124: =Jahreskalender!S124 -> SZ | M124: =Jahreskalender!V124 -> 0 | W124: 0 | X124: 0 | Y124: 0:00 | Z124: 0 | AA124: 0 | AB124: 0:00
C125: =Jahreskalender!C125 -> 2023-11-26 | D125: 11 | E125: 48 | F125: 0 | G125: 1 | H125: 0 | I125: 0 | J125: FALSE | K125: 0 | L125: =Jahreskalender!S125 -> SZ | M125: =Jahreskalender!V125 -> 0 | W125: 0 | X125: 0 | Y125: 0:00 | Z125: 0 | AA125: 0 | AB125: 0:00
C126: =Jahreskalender!C126 -> 2023-11-27 | D126: 11 | E126: 49 | F126: 1 | G126: 0 | H126: 0 | I126: 1 | J126: FALSE | K126: 0 | L126: =Jahreskalender!S126 -> SZ | M126: =Jahreskalender!V126 -> 0 | W126: 0 | X126: 0 | Y126: 0:00 | Z126: 0 | AA126: 0 | AB126: 0:00
C127: =Jahreskalender!C127 -> 2023-11-28 | D127: 11 | E127: 49 | F127: 1 | G127: 0 | H127: 0 | I127: 1 | J127: FALSE | K127: 0 | L127: =Jahreskalender!S127 -> SZ | M127: =Jahreskalender!V127 -> 0 | W127: 0 | X127: 0 | Y127: 0:00 | Z127: 0 | AA127: 0 | AB127: 0:00
C128: =Jahreskalender!C128 -> 2023-11-29 | D128: 11 | E128: 49 | F128: 1 | G128: 0 | H128: 0 | I128: 1 | J128: FALSE | K128: 0 | L128: =Jahreskalender!S128 -> SZ | M128: =Jahreskalender!V128 -> 0 | W128: 0 | X128: 0 | Y128: 0:00 | Z128: 0 | AA128: 0 | AB128: 0:00
C129: =Jahreskalender!C129 -> 2023-11-30 | D129: 11 | E129: 49 | F129: 1 | G129: 0 | H129: 0 | I129: 1 | J129: FALSE | K129: 0 | L129: =Jahreskalender!S129 -> SZ | M129: =Jahreskalender!V129 -> 0 | W129: 0 | X129: 0 | Y129: 0:00 | Z129: 0 | AA129: 0 | AB129: 0:00
B130: =C130 -> 2023-12-01 | C130: =Jahreskalender!C130 -> 2023-12-01 | D130: 12 | E130: 49 | F130: 1 | G130: 0 | H130: 0 | I130: 1 | J130: FALSE | K130: 0 | L130: =Jahreskalender!S130 -> SZ | M130: =Jahreskalender!V130 -> 0 | W130: 0 | X130: 0 | Y130: 0:00 | Z130: 0 | AA130: 0 | AB130: 0:00
C131: =Jahreskalender!C131 -> 2023-12-02 | D131: 12 | E131: 49 | F131: 0 | G131: 1 | H131: 0 | I131: 0 | J131: FALSE | K131: 0 | L131: =Jahreskalender!S131 -> SZ | M131: =Jahreskalender!V131 -> 0 | W131: 0 | X131: 0 | Y131: 0:00 | Z131: 0 | AA131: 0 | AB131: 0:00
C132: =Jahreskalender!C132 -> 2023-12-03 | D132: 12 | E132: 49 | F132: 0 | G132: 1 | H132: 0 | I132: 0 | J132: FALSE | K132: 0 | L132: =Jahreskalender!S132 -> SZ | M132: =Jahreskalender!V132 -> 0 | W132: 0 | X132: 0 | Y132: 0:00 | Z132: 0 | AA132: 0 | AB132: 0:00
C133: =Jahreskalender!C133 -> 2023-12-04 | D133: 12 | E133: 50 | F133: 1 | G133: 0 | H133: 0 | I133: 1 | J133: FALSE | K133: 0 | L133: =Jahreskalender!S133 -> SZ | M133: =Jahreskalender!V133 -> 0 | W133: 0 | X133: 0 | Y133: 0:00 | Z133: 0 | AA133: 0 | AB133: 0:00
C134: =Jahreskalender!C134 -> 2023-12-05 | D134: 12 | E134: 50 | F134: 1 | G134: 0 | H134: 0 | I134: 1 | J134: FALSE | K134: 0 | L134: =Jahreskalender!S134 -> SZ | M134: =Jahreskalender!V134 -> 0 | W134: 0 | X134: 0 | Y134: 0:00 | Z134: 0 | AA134: 0 | AB134: 0:00
C135: =Jahreskalender!C135 -> 2023-12-06 | D135: 12 | E135: 50 | F135: 1 | G135: 0 | H135: 0 | I135: 1 | J135: FALSE | K135: 0 | L135: =Jahreskalender!S135 -> SZ | M135: =Jahreskalender!V135 -> 0 | W135: 0 | X135: 0 | Y135: 0:00 | Z135: 0 | AA135: 0 | AB135: 0:00
C136: =Jahreskalender!C136 -> 2023-12-07 | D136: 12 | E136: 50 | F136: 1 | G136: 0 | H136: 0 | I136: 1 | J136: FALSE | K136: 0 | L136: =Jahreskalender!S136 -> SZ | M136: =Jahreskalender!V136 -> 0 | W136: 0 | X136: 0 | Y136: 0:00 | Z136: 0 | AA136: 0 | AB136: 0:00
C137: =Jahreskalender!C137 -> 2023-12-08 | D137: 12 | E137: 50 | F137: 1 | G137: 0 | H137: 1 | I137: 0 | J137: TRUE | K137: 0 | L137: =Jahreskalender!S137 -> SZ | M137: =Jahreskalender!V137 -> 0 | W137: 0 | X137: 0 | Y137: 0:00 | Z137: 0 | AA137: 0 | AB137: 0:00
C138: =Jahreskalender!C138 -> 2023-12-09 | D138: 12 | E138: 50 | F138: 0 | G138: 1 | H138: 0 | I138: 0 | J138: FALSE | K138: 0 | L138: =Jahreskalender!S138 -> SZ | M138: =Jahreskalender!V138 -> 0 | W138: 0 | X138: 0 | Y138: 0:00 | Z138: 0 | AA138: 0 | AB138: 0:00
C139: =Jahreskalender!C139 -> 2023-12-10 | D139: 12 | E139: 50 | F139: 0 | G139: 1 | H139: 0 | I139: 0 | J139: FALSE | K139: 0 | L139: =Jahreskalender!S139 -> SZ | M139: =Jahreskalender!V139 -> 0 | W139: 0 | X139: 0 | Y139: 0:00 | Z139: 0 | AA139: 0 | AB139: 0:00
C140: =Jahreskalender!C140 -> 2023-12-11 | D140: 12 | E140: 51 | F140: 1 | G140: 0 | H140: 0 | I140: 1 | J140: FALSE | K140: 0 | L140: =Jahreskalender!S140 -> SZ | M140: =Jahreskalender!V140 -> 0 | W140: 0 | X140: 0 | Y140: 0:00 | Z140: 0 | AA140: 0 | AB140: 0:00
C141: =Jahreskalender!C141 -> 2023-12-12 | D141: 12 | E141: 51 | F141: 1 | G141: 0 | H141: 0 | I141: 1 | J141: FALSE | K141: 0 | L141: =Jahreskalender!S141 -> SZ | M141: =Jahreskalender!V141 -> 0 | W141: 0 | X141: 0 | Y141: 0:00 | Z141: 0 | AA141: 0 | AB141: 0:00
C142: =Jahreskalender!C142 -> 2023-12-13 | D142: 12 | E142: 51 | F142: 1 | G142: 0 | H142: 0 | I142: 1 | J142: FALSE | K142: 0 | L142: =Jahreskalender!S142 -> SZ | M142: =Jahreskalender!V142 -> 0 | W142: 0 | X142: 0 | Y142: 0:00 | Z142: 0 | AA142: 0 | AB142: 0:00
C143: =Jahreskalender!C143 -> 2023-12-14 | D143: 12 | E143: 51 | F143: 1 | G143: 0 | H143: 0 | I143: 1 | J143: FALSE | K143: 0 | L143: =Jahreskalender!S143 -> SZ | M143: =Jahreskalender!V143 -> 0 | W143: 0 | X143: 0 | Y143: 0:00 | Z143: 0 | AA143: 0 | AB143: 0:00
C144: =Jahreskalender!C144 -> 2023-12-15 | D144: =MONTH(C144) -> 12 | E144: =WEEKNUM(C144,2) -> 51 | F144: =IF(WEEKDAY(C144,2)>5,0,1) -> 1 | G144: =IF(WEEKDAY(C144,2)>5,1,0) -> 0 | H144: =IF(ISERROR(VLOOKUP(C144,tabFeiertage,2,FALSE)),0,VLOOKUP(C144,tabFeiertage,3,FALSE))*F144 -> 0 | I144: =F144-H144 -> 1 | J144: =IF(ISERROR(VLOOKUP(C144,tabFeiertage,2,FALSE)),FALSE,TRUE) -> FALSE | K144: =INDIRECT("RAZ_"& TEXT(WEEKDAY(C144,2),0) & "WT")*I144 -> 0 | L144: =Jahreskalender!S144 -> SZ | M144: =Jahreskalender!V144 -> 0 | W144: 0 | X144: =SUM(O144:W144) -> 0 | Y144: =IF(Z144<0,"-"&TEXT(ABS(Z144),"[Rot][h]:mm"),IF(Z144=0,"0:00",TEXT(Z144,"[h]:mm"))) -> 0:00 | Z144: =X144-M144 -> 0 | AA144: 0 | AB144: 0:00
C145: =Jahreskalender!C145 -> 2023-12-16 | D145: 12 | E145: 51 | F145: 0 | G145: 1 | H145: 0 | I145: 0 | J145: FALSE | K145: 0 | L145: =Jahreskalender!S145 -> SZ | M145: =Jahreskalender!V145 -> 0 | W145: 0 | X145: 0 | Y145: 0:00 | Z145: 0 | AA145: =AA144+Z145 -> 0 | AB145: =IF(AA145<0,"-"&TEXT(ABS(AA145),"[Rot][h]:mm"),IF(AA145=0,"0:00",TEXT(AA145,"[h]:mm"))) -> 0:00
C146: =Jahreskalender!C146 -> 2023-12-17 | D146: 12 | E146: 51 | F146: 0 | G146: 1 | H146: 0 | I146: 0 | J146: FALSE | K146: 0 | L146: =Jahreskalender!S146 -> SZ | M146: =Jahreskalender!V146 -> 0 | W146: =IF(ISERROR((SEARCH(N146,"_KR_MI_UN_UR_UU")*0)),0,IF(SEARCH(N146,"_KR_MI_UN_UR_UU")>1,K146,0)) -> 0 | X146: 0 | Y146: 0:00 | Z146: 0 | AA146: 0 | AB146: 0:00
C147: =Jahreskalender!C147 -> 2023-12-18 | D147: 12 | E147: 52 | F147: 1 | G147: 0 | H147: 0 | I147: 1 | J147: FALSE | K147: 0 | L147: =Jahreskalender!S147 -> SZ | M147: =Jahreskalender!V147 -> 0 | W147: 0 | X147: 0 | Y147: 0:00 | Z147: 0 | AA147: 0 | AB147: 0:00
C148: =Jahreskalender!C148 -> 2023-12-19 | D148: 12 | E148: 52 | F148: 1 | G148: 0 | H148: 0 | I148: 1 | J148: FALSE | K148: 0 | L148: =Jahreskalender!S148 -> SZ | M148: =Jahreskalender!V148 -> 0 | W148: 0 | X148: 0 | Y148: 0:00 | Z148: 0 | AA148: 0 | AB148: 0:00
C149: =Jahreskalender!C149 -> 2023-12-20 | D149: 12 | E149: 52 | F149: 1 | G149: 0 | H149: 0 | I149: 1 | J149: FALSE | K149: 0 | L149: =Jahreskalender!S149 -> SZ | M149: =Jahreskalender!V149 -> 0 | W149: 0 | X149: 0 | Y149: 0:00 | Z149: 0 | AA149: 0 | AB149: 0:00
C150: =Jahreskalender!C150 -> 2023-12-21 | D150: 12 | E150: 52 | F150: 1 | G150: 0 | H150: 0 | I150: 1 | J150: FALSE | K150: 0 | L150: =Jahreskalender!S150 -> SZ | M150: =Jahreskalender!V150 -> 0 | W150: 0 | X150: 0 | Y150: 0:00 | Z150: 0 | AA150: 0 | AB150: 0:00
C151: =Jahreskalender!C151 -> 2023-12-22 | D151: 12 | E151: 52 | F151: 1 | G151: 0 | H151: 0 | I151: 1 | J151: FALSE | K151: 0 | L151: =Jahreskalender!S151 -> SZ | M151: =Jahreskalender!V151 -> 0 | W151: 0 | X151: 0 | Y151: 0:00 | Z151: 0 | AA151: 0 | AB151: 0:00
C152: =Jahreskalender!C152 -> 2023-12-23 | D152: 12 | E152: 52 | F152: 0 | G152: 1 | H152: 0 | I152: 0 | J152: FALSE | K152: 0 | L152: =Jahreskalender!S152 -> SFZ | M152: =Jahreskalender!V152 -> 0 | W152: 0 | X152: 0 | Y152: 0:00 | Z152: 0 | AA152: 0 | AB152: 0:00
C153: =Jahreskalender!C153 -> 2023-12-24 | D153: 12 | E153: 52 | F153: 0 | G153: 1 | H153: 0 | I153: 0 | J153: TRUE | K153: 0 | L153: =Jahreskalender!S153 -> SFZ | M153: =Jahreskalender!V153 -> 0 | W153: 0 | X153: 0 | Y153: 0:00 | Z153: 0 | AA153: 0 | AB153: 0:00
C154: =Jahreskalender!C154 -> 2023-12-25 | D154: 12 | E154: 53 | F154: 1 | G154: 0 | H154: 1 | I154: 0 | J154: TRUE | K154: 0 | L154: =Jahreskalender!S154 -> SFZ | M154: =Jahreskalender!V154 -> 0 | W154: 0 | X154: 0 | Y154: 0:00 | Z154: 0 | AA154: 0 | AB154: 0:00
C155: =Jahreskalender!C155 -> 2023-12-26 | D155: 12 | E155: 53 | F155: 1 | G155: 0 | H155: 1 | I155: 0 | J155: TRUE | K155: 0 | L155: =Jahreskalender!S155 -> SFZ | M155: =Jahreskalender!V155 -> 0 | W155: 0 | X155: 0 | Y155: 0:00 | Z155: 0 | AA155: 0 | AB155: 0:00
C156: =Jahreskalender!C156 -> 2023-12-27 | D156: 12 | E156: 53 | F156: 1 | G156: 0 | H156: 0 | I156: 1 | J156: FALSE | K156: 0 | L156: =Jahreskalender!S156 -> SFZ | M156: =Jahreskalender!V156 -> 0 | W156: 0 | X156: 0 | Y156: 0:00 | Z156: 0 | AA156: 0 | AB156: 0:00
C157: =Jahreskalender!C157 -> 2023-12-28 | D157: 12 | E157: 53 | F157: 1 | G157: 0 | H157: 0 | I157: 1 | J157: FALSE | K157: 0 | L157: =Jahreskalender!S157 -> SFZ | M157: =Jahreskalender!V157 -> 0 | W157: 0 | X157: 0 | Y157: 0:00 | Z157: 0 | AA157: 0 | AB157: 0:00
C158: =Jahreskalender!C158 -> 2023-12-29 | D158: 12 | E158: 53 | F158: 1 | G158: 0 | H158: 0 | I158: 1 | J158: FALSE | K158: 0 | L158: =Jahreskalender!S158 -> SFZ | M158: =Jahreskalender!V158 -> 0 | W158: 0 | X158: 0 | Y158: 0:00 | Z158: 0 | AA158: 0 | AB158: 0:00
C159: =Jahreskalender!C159 -> 2023-12-30 | D159: 12 | E159: 53 | F159: 0 | G159: 1 | H159: 0 | I159: 0 | J159: FALSE | K159: 0 | L159: =Jahreskalender!S159 -> SFZ | M159: =Jahreskalender!V159 -> 0 | W159: 0 | X159: 0 | Y159: 0:00 | Z159: 0 | AA159: 0 | AB159: 0:00
C160: =Jahreskalender!C160 -> 2023-12-31 | D160: 12 | E160: 53 | F160: 0 | G160: 1 | H160: 0 | I160: 0 | J160: TRUE | K160: 0 | L160: =Jahreskalender!S160 -> SFZ | M160: =Jahreskalender!V160 -> 0 | W160: 0 | X160: 0 | Y160: 0:00 | Z160: 0 | AA160: 0 | AB160: 0:00
B161: =C161 -> 2024-01-01 | C161: =Jahreskalender!C161 -> 2024-01-01 | D161: 1 | E161: 1 | F161: 1 | G161: 0 | H161: 1 | I161: 0 | J161: TRUE | K161: 0 | L161: =Jahreskalender!S161 -> SFZ | M161: =Jahreskalender!V161 -> 0 | W161: 0 | X161: 0 | Y161: 0:00 | Z161: 0 | AA161: 0 | AB161: 0:00
C162: =Jahreskalender!C162 -> 2024-01-02 | D162: 1 | E162: 1 | F162: 1 | G162: 0 | H162: 1 | I162: 0 | J162: TRUE | K162: 0 | L162: =Jahreskalender!S162 -> SFZ | M162: =Jahreskalender!V162 -> 0 | W162: 0 | X162: 0 | Y162: 0:00 | Z162: 0 | AA162: 0 | AB162: 0:00
C163: =Jahreskalender!C163 -> 2024-01-03 | D163: 1 | E163: 1 | F163: 1 | G163: 0 | H163: 0 | I163: 1 | J163: FALSE | K163: 0 | L163: =Jahreskalender!S163 -> SFZ | M163: =Jahreskalender!V163 -> 0 | W163: 0 | X163: 0 | Y163: 0:00 | Z163: 0 | AA163: 0 | AB163: 0:00
C164: =Jahreskalender!C164 -> 2024-01-04 | D164: 1 | E164: 1 | F164: 1 | G164: 0 | H164: 0 | I164: 1 | J164: FALSE | K164: 0 | L164: =Jahreskalender!S164 -> SFZ | M164: =Jahreskalender!V164 -> 0 | W164: 0 | X164: 0 | Y164: 0:00 | Z164: 0 | AA164: 0 | AB164: 0:00
C165: =Jahreskalender!C165 -> 2024-01-05 | D165: 1 | E165: 1 | F165: 1 | G165: 0 | H165: 0 | I165: 1 | J165: FALSE | K165: 0 | L165: =Jahreskalender!S165 -> SFZ | M165: =Jahreskalender!V165 -> 0 | W165: 0 | X165: 0 | Y165: 0:00 | Z165: 0 | AA165: 0 | AB165: 0:00
C166: =Jahreskalender!C166 -> 2024-01-06 | D166: 1 | E166: 1 | F166: 0 | G166: 1 | H166: 0 | I166: 0 | J166: FALSE | K166: 0 | L166: =Jahreskalender!S166 -> SFZ | M166: =Jahreskalender!V166 -> 0 | W166: 0 | X166: 0 | Y166: 0:00 | Z166: 0 | AA166: 0 | AB166: 0:00
C167: =Jahreskalender!C167 -> 2024-01-07 | D167: 1 | E167: 1 | F167: 0 | G167: 1 | H167: 0 | I167: 0 | J167: FALSE | K167: 0 | L167: =Jahreskalender!S167 -> SFZ | M167: =Jahreskalender!V167 -> 0 | W167: 0 | X167: 0 | Y167: 0:00 | Z167: 0 | AA167: 0 | AB167: 0:00
C168: =Jahreskalender!C168 -> 2024-01-08 | D168: 1 | E168: 2 | F168: 1 | G168: 0 | H168: 0 | I168: 1 | J168: FALSE | K168: 0 | L168: =Jahreskalender!S168 -> SZ | M168: =Jahreskalender!V168 -> 0 | W168: 0 | X168: 0 | Y168: 0:00 | Z168: 0 | AA168: 0 | AB168: 0:00
C169: =Jahreskalender!C169 -> 2024-01-09 | D169: 1 | E169: 2 | F169: 1 | G169: 0 | H169: 0 | I169: 1 | J169: FALSE | K169: 0 | L169: =Jahreskalender!S169 -> SZ | M169: =Jahreskalender!V169 -> 0 | W169: 0 | X169: 0 | Y169: 0:00 | Z169: 0 | AA169: 0 | AB169: 0:00
C170: =Jahreskalender!C170 -> 2024-01-10 | D170: 1 | E170: 2 | F170: 1 | G170: 0 | H170: 0 | I170: 1 | J170: FALSE | K170: 0 | L170: =Jahreskalender!S170 -> SZ | M170: =Jahreskalender!V170 -> 0 | W170: 0 | X170: 0 | Y170: 0:00 | Z170: 0 | AA170: 0 | AB170: 0:00
C171: =Jahreskalender!C171 -> 2024-01-11 | D171: 1 | E171: 2 | F171: 1 | G171: 0 | H171: 0 | I171: 1 | J171: FALSE | K171: 0 | L171: =Jahreskalender!S171 -> SZ | M171: =Jahreskalender!V171 -> 0 | W171: 0 | X171: 0 | Y171: 0:00 | Z171: 0 | AA171: 0 | AB171: 0:00
C172: =Jahreskalender!C172 -> 2024-01-12 | D172: 1 | E172: 2 | F172: 1 | G172: 0 | H172: 0 | I172: 1 | J172: FALSE | K172: 0 | L172: =Jahreskalender!S172 -> SZ | M172: =Jahreskalender!V172 -> 0 | W172: 0 | X172: 0 | Y172: 0:00 | Z172: 0 | AA172: 0 | AB172: 0:00
C173: =Jahreskalender!C173 -> 2024-01-13 | D173: 1 | E173: 2 | F173: 0 | G173: 1 | H173: 0 | I173: 0 | J173: FALSE | K173: 0 | L173: =Jahreskalender!S173 -> SZ | M173: =Jahreskalender!V173 -> 0 | W173: 0 | X173: 0 | Y173: 0:00 | Z173: 0 | AA173: 0 | AB173: 0:00
C174: =Jahreskalender!C174 -> 2024-01-14 | D174: 1 | E174: 2 | F174: 0 | G174: 1 | H174: 0 | I174: 0 | J174: FALSE | K174: 0 | L174: =Jahreskalender!S174 -> SZ | M174: =Jahreskalender!V174 -> 0 | W174: 0 | X174: 0 | Y174: 0:00 | Z174: 0 | AA174: 0 | AB174: 0:00
C175: =Jahreskalender!C175 -> 2024-01-15 | D175: 1 | E175: 3 | F175: 1 | G175: 0 | H175: 0 | I175: 1 | J175: FALSE | K175: 0 | L175: =Jahreskalender!S175 -> SZ | M175: =Jahreskalender!V175 -> 0 | W175: 0 | X175: 0 | Y175: 0:00 | Z175: 0 | AA175: 0 | AB175: 0:00
C176: =Jahreskalender!C176 -> 2024-01-16 | D176: 1 | E176: 3 | F176: 1 | G176: 0 | H176: 0 | I176: 1 | J176: FALSE | K176: 0 | L176: =Jahreskalender!S176 -> SZ | M176: =Jahreskalender!V176 -> 0 | W176: 0 | X176: 0 | Y176: 0:00 | Z176: 0 | AA176: 0 | AB176: 0:00
C177: =Jahreskalender!C177 -> 2024-01-17 | D177: 1 | E177: 3 | F177: 1 | G177: 0 | H177: 0 | I177: 1 | J177: FALSE | K177: 0 | L177: =Jahreskalender!S177 -> SZ | M177: =Jahreskalender!V177 -> 0 | W177: 0 | X177: 0 | Y177: 0:00 | Z177: 0 | AA177: 0 | AB177: 0:00
C178: =Jahreskalender!C178 -> 2024-01-18 | D178: 1 | E178: 3 | F178: 1 | G178: 0 | H178: 0 | I178: 1 | J178: FALSE | K178: 0 | L178: =Jahreskalender!S178 -> SZ | M178: =Jahreskalender!V178 -> 0 | W178: 0 | X178: 0 | Y178: 0:00 | Z178: 0 | AA178: 0 | AB178: 0:00
C179: =Jahreskalender!C179 -> 2024-01-19 | D179: 1 | E179: 3 | F179: 1 | G179: 0 | H179: 0 | I179: 1 | J179: FALSE | K179: 0 | L179: =Jahreskalender!S179 -> SZ | M179: =Jahreskalender!V179 -> 0 | W179: 0 | X179: 0 | Y179: 0:00 | Z179: 0 | AA179: 0 | AB179: 0:00
C180: =Jahreskalender!C180 -> 2024-01-20 | D180: 1 | E180: 3 | F180: 0 | G180: 1 | H180: 0 | I180: 0 | J180: FALSE | K180: 0 | L180: =Jahreskalender!S180 -> SZ | M180: =Jahreskalender!V180 -> 0 | W180: 0 | X180: 0 | Y180: 0:00 | Z180: 0 | AA180: 0 | AB180: 0:00
C181: =Jahreskalender!C181 -> 2024-01-21 | D181: 1 | E181: 3 | F181: 0 | G181: 1 | H181: 0 | I181: 0 | J181: FALSE | K181: 0 | L181: =Jahreskalender!S181 -> SZ | M181: =Jahreskalender!V181 -> 0 | W181: 0 | X181: 0 | Y181: 0:00 | Z181: 0 | AA181: 0 | AB181: 0:00
C182: =Jahreskalender!C182 -> 2024-01-22 | D182: 1 | E182: 4 | F182: 1 | G182: 0 | H182: 0 | I182: 1 | J182: FALSE | K182: 0 | L182: =Jahreskalender!S182 -> SZ | M182: =Jahreskalender!V182 -> 0 | W182: 0 | X182: 0 | Y182: 0:00 | Z182: 0 | AA182: 0 | AB182: 0:00
C183: =Jahreskalender!C183 -> 2024-01-23 | D183: 1 | E183: 4 | F183: 1 | G183: 0 | H183: 0 | I183: 1 | J183: FALSE | K183: 0 | L183: =Jahreskalender!S183 -> SZ | M183: =Jahreskalender!V183 -> 0 | W183: 0 | X183: 0 | Y183: 0:00 | Z183: 0 | AA183: 0 | AB183: 0:00
C184: =Jahreskalender!C184 -> 2024-01-24 | D184: 1 | E184: 4 | F184: 1 | G184: 0 | H184: 0 | I184: 1 | J184: FALSE | K184: 0 | L184: =Jahreskalender!S184 -> SZ | M184: =Jahreskalender!V184 -> 0 | W184: 0 | X184: 0 | Y184: 0:00 | Z184: 0 | AA184: 0 | AB184: 0:00
C185: =Jahreskalender!C185 -> 2024-01-25 | D185: 1 | E185: 4 | F185: 1 | G185: 0 | H185: 0 | I185: 1 | J185: FALSE | K185: 0 | L185: =Jahreskalender!S185 -> SZ | M185: =Jahreskalender!V185 -> 0 | W185: 0 | X185: 0 | Y185: 0:00 | Z185: 0 | AA185: 0 | AB185: 0:00
C186: =Jahreskalender!C186 -> 2024-01-26 | D186: 1 | E186: 4 | F186: 1 | G186: 0 | H186: 0 | I186: 1 | J186: FALSE | K186: 0 | L186: =Jahreskalender!S186 -> SZ | M186: =Jahreskalender!V186 -> 0 | W186: 0 | X186: 0 | Y186: 0:00 | Z186: 0 | AA186: 0 | AB186: 0:00
C187: =Jahreskalender!C187 -> 2024-01-27 | D187: 1 | E187: 4 | F187: 0 | G187: 1 | H187: 0 | I187: 0 | J187: FALSE | K187: 0 | L187: =Jahreskalender!S187 -> SZ | M187: =Jahreskalender!V187 -> 0 | W187: 0 | X187: 0 | Y187: 0:00 | Z187: 0 | AA187: 0 | AB187: 0:00
C188: =Jahreskalender!C188 -> 2024-01-28 | D188: 1 | E188: 4 | F188: 0 | G188: 1 | H188: 0 | I188: 0 | J188: FALSE | K188: 0 | L188: =Jahreskalender!S188 -> SZ | M188: =Jahreskalender!V188 -> 0 | W188: 0 | X188: 0 | Y188: 0:00 | Z188: 0 | AA188: 0 | AB188: 0:00
C189: =Jahreskalender!C189 -> 2024-01-29 | D189: 1 | E189: 5 | F189: 1 | G189: 0 | H189: 0 | I189: 1 | J189: FALSE | K189: 0 | L189: =Jahreskalender!S189 -> SZ | M189: =Jahreskalender!V189 -> 0 | W189: 0 | X189: 0 | Y189: 0:00 | Z189: 0 | AA189: 0 | AB189: 0:00
C190: =Jahreskalender!C190 -> 2024-01-30 | D190: 1 | E190: 5 | F190: 1 | G190: 0 | H190: 0 | I190: 1 | J190: FALSE | K190: 0 | L190: =Jahreskalender!S190 -> SZ | M190: =Jahreskalender!V190 -> 0 | W190: 0 | X190: 0 | Y190: 0:00 | Z190: 0 | AA190: 0 | AB190: 0:00
C191: =Jahreskalender!C191 -> 2024-01-31 | D191: 1 | E191: 5 | F191: 1 | G191: 0 | H191: 0 | I191: 1 | J191: FALSE | K191: 0 | L191: =Jahreskalender!S191 -> SZ | M191: =Jahreskalender!V191 -> 0 | W191: 0 | X191: 0 | Y191: 0:00 | Z191: 0 | AA191: 0 | AB191: 0:00
B192: =C192 -> 2024-02-01 | C192: =Jahreskalender!C192 -> 2024-02-01 | D192: 2 | E192: 5 | F192: 1 | G192: 0 | H192: 0 | I192: 1 | J192: FALSE | K192: 0 | L192: =Jahreskalender!S192 -> SZ | M192: =Jahreskalender!V192 -> 0 | W192: 0 | X192: 0 | Y192: 0:00 | Z192: 0 | AA192: 0 | AB192: 0:00
C193: =Jahreskalender!C193 -> 2024-02-02 | D193: 2 | E193: 5 | F193: 1 | G193: 0 | H193: 0 | I193: 1 | J193: FALSE | K193: 0 | L193: =Jahreskalender!S193 -> SZ | M193: =Jahreskalender!V193 -> 0 | W193: 0 | X193: 0 | Y193: 0:00 | Z193: 0 | AA193: 0 | AB193: 0:00
C194: =Jahreskalender!C194 -> 2024-02-03 | D194: 2 | E194: 5 | F194: 0 | G194: 1 | H194: 0 | I194: 0 | J194: FALSE | K194: 0 | L194: =Jahreskalender!S194 -> SFZ | M194: =Jahreskalender!V194 -> 0 | W194: 0 | X194: 0 | Y194: 0:00 | Z194: 0 | AA194: 0 | AB194: 0:00
C195: =Jahreskalender!C195 -> 2024-02-04 | D195: 2 | E195: 5 | F195: 0 | G195: 1 | H195: 0 | I195: 0 | J195: FALSE | K195: 0 | L195: =Jahreskalender!S195 -> SFZ | M195: =Jahreskalender!V195 -> 0 | W195: 0 | X195: 0 | Y195: 0:00 | Z195: 0 | AA195: 0 | AB195: 0:00
C196: =Jahreskalender!C196 -> 2024-02-05 | D196: 2 | E196: 6 | F196: 1 | G196: 0 | H196: 0 | I196: 1 | J196: FALSE | K196: 0 | L196: =Jahreskalender!S196 -> SFZ | M196: =Jahreskalender!V196 -> 0 | W196: 0 | X196: 0 | Y196: 0:00 | Z196: 0 | AA196: 0 | AB196: 0:00
C197: =Jahreskalender!C197 -> 2024-02-06 | D197: 2 | E197: 6 | F197: 1 | G197: 0 | H197: 0 | I197: 1 | J197: FALSE | K197: 0 | L197: =Jahreskalender!S197 -> SFZ | M197: =Jahreskalender!V197 -> 0 | W197: 0 | X197: 0 | Y197: 0:00 | Z197: 0 | AA197: 0 | AB197: 0:00
C198: =Jahreskalender!C198 -> 2024-02-07 | D198: 2 | E198: 6 | F198: 1 | G198: 0 | H198: 0 | I198: 1 | J198: FALSE | K198: 0 | L198: =Jahreskalender!S198 -> SFZ | M198: =Jahreskalender!V198 -> 0 | W198: 0 | X198: 0 | Y198: 0:00 | Z198: 0 | AA198: 0 | AB198: 0:00
C199: =Jahreskalender!C199 -> 2024-02-08 | D199: 2 | E199: 6 | F199: 1 | G199: 0 | H199: 0 | I199: 1 | J199: FALSE | K199: 0 | L199: =Jahreskalender!S199 -> SFZ | M199: =Jahreskalender!V199 -> 0 | W199: 0 | X199: 0 | Y199: 0:00 | Z199: 0 | AA199: 0 | AB199: 0:00
C200: =Jahreskalender!C200 -> 2024-02-09 | D200: 2 | E200: 6 | F200: 1 | G200: 0 | H200: 0 | I200: 1 | J200: FALSE | K200: 0 | L200: =Jahreskalender!S200 -> SFZ | M200: =Jahreskalender!V200 -> 0 | W200: 0 | X200: 0 | Y200: 0:00 | Z200: 0 | AA200: 0 | AB200: 0:00
C201: =Jahreskalender!C201 -> 2024-02-10 | D201: 2 | E201: 6 | F201: 0 | G201: 1 | H201: 0 | I201: 0 | J201: FALSE | K201: 0 | L201: =Jahreskalender!S201 -> SFZ | M201: =Jahreskalender!V201 -> 0 | W201: 0 | X201: 0 | Y201: 0:00 | Z201: 0 | AA201: 0 | AB201: 0:00
... 172 more rows

Sheet Übersicht
B1: ="Übersicht " &TEXT(Jahresbezeichnung,"") -> Übersicht 2023/2024
B3: Lehrperson: | E3: =TRIM(Pensendefinition!D7 & " " & Pensendefinition!D5) ->  | M3: Schule: | N3: =TRIM(Pensendefinition!D9) -> 
B6: Monatsübersicht
B8: 1. Halbjahr
B11: Sollstunden | C11: =JAZ -> 0 | E11: =DSUM(_xlnm.Database,"Soll",INDIRECT("Filterkriterium_"&TEXT(E$12,))) -> 0 | G11: =DSUM(_xlnm.Database,"Soll",INDIRECT("Filterkriterium_"&TEXT(G$12,))) -> 0 | I11: =DSUM(_xlnm.Database,"Soll",INDIRECT("Filterkriterium_"&TEXT(I$12,))) -> 0 | K11: =DSUM(_xlnm.Database,"Soll",INDIRECT("Filterkriterium_"&TEXT(K$12,))) -> 0 | M11: =DSUM(_xlnm.Database,"Soll",INDIRECT("Filterkriterium_"&TEXT(M$12,))) -> 0 | O11: =DSUM(_xlnm.Database,"Soll",INDIRECT("Filterkriterium_"&TEXT(O$12,))) -> 0
E12: August | G12: September | I12: Oktober | K12: November | M12: Dezember | O12: Januar | Q12: 1. Halbjahr
E13: Soll | F13: Haben | G13: Soll | H13: Haben | I13: Soll | J13: Haben | K13: Soll | L13: Haben | M13: Soll | N13: Haben | O13: Soll | P13: Haben | Q13: Soll | R13: Haben
B14: =SUBSTITUTE(Titel_kurz_LG1,"-","") -> Kernauftrag | C14: =IF(ISERROR(GesamtAnteil_A),0,GesamtAnteil_A) -> 0 | D14: Kernauftrag | E14: =E$11*C14 -> 0 | F14: =SUM(F15:F18) -> 0 | G14: =C14*G$11 -> 0 | H14: =SUM(H15:H18) -> 0 | I14: =C14*I$11 -> 0 | J14: =SUM(J15:J18) -> 0 | K14: =C14*K$11 -> 0 | L14: =SUM(L15:L18) -> 0 | M14: =C14*M$11 -> 0 | N14: =SUM(N15:N18) -> 0 | O14: =C14*O$11 -> 0 | P14: =SUM(P15:P18) -> 0 | Q14: =SUM(E14,G14,I14,K14,M14,O14) -> 0 | R14: 0
B15: Unterricht | C15: =IF(ISERROR(GesamtAnteil_A1),0,GesamtAnteil_A1) -> 0 | D15: Unterricht | E15: 0 | F15: =DSUM(_xlnm.Database,$D15,INDIRECT("Filterkriterium_"&TEXT(E$12,))) -> 0 | G15: 0 | H15: =DSUM(_xlnm.Database,$D15,INDIRECT("Filterkriterium_"&TEXT(G$12,))) -> 0 | I15: 0 | J15: =DSUM(_xlnm.Database,$D15,INDIRECT("Filterkriterium_"&TEXT(I$12,))) -> 0 | K15: 0 | L15: =DSUM(_xlnm.Database,$D15,INDIRECT("Filterkriterium_"&TEXT(K$12,))) -> 0 | M15: 0 | N15: =DSUM(_xlnm.Database,$D15,INDIRECT("Filterkriterium_"&TEXT(M$12,))) -> 0 | O15: 0 | P15: 0 | Q15: 0 | R15: 0
B16: Lernende | C16: =IF(ISERROR(GesamtAnteil_A2),0,GesamtAnteil_A2) -> 0 | D16: Lernende | E16: 0 | F16: 0 | G16: 0 | H16: 0 | I16: 0 | J16: 0 | K16: 0 | L16: 0 | M16: 0 | N16: 0 | O16: 0 | P16: 0 | Q16: 0 | R16: 0
B17: Schule | C17: =IF(ISERROR(GesamtAnteil_A3),0,GesamtAnteil_A3) -> 0 | D17: Schule | E17: 0 | F17: 0 | G17: 0 | H17: 0 | I17: 0 | J17: 0 | K17: 0 | L17: 0 | M17: 0 | N17: 0 | O17: 0 | P17: 0 | Q17: 0 | R17: 0
B18: Lehrperson | C18: =IF(ISERROR(GesamtAnteil_A4),0,GesamtAnteil_A4) -> 0 | D18: Lehrperson | E18: 0 | F18: 0 | G18: 0 | H18: 0 | I18: 0 | J18: 0 | K18: 0 | L18: 0 | M18: 0 | N18: 0 | O18: 0 | P18: 0 | Q18: 0 | R18: 0
B19: =SUBSTITUTE(Titel_kurz_LG2,"-","") -> Klassenlehrperson | C19: =IF(ISERROR(GesamtAnteil_B),0,GesamtAnteil_B) -> 0 | D19: KLP | E19: 0 | F19: 0 | G19: 0 | H19: 0 | I19: 0 | J19: 0 | K19: 0 | L19: 0 | M19: 0 | N19: 0 | O19: 0 | P19: 0 | Q19: 0 | R19: 0
B20: =SUBSTITUTE(Titel_kurz_LG3,"-","") -> Besondere Aufgaben | C20: =IF(ISERROR(GesamtAnteil_C),0,GesamtAnteil_C) -> 0 | D20: BA | E20: 0 | F20: 0 | G20: 0 | H20: 0 | I20: 0 | J20: 0 | K20: 0 | L20: 0 | M20: 0 | N20: 0 | O20: 0 | P20: 0 | Q20: 0 | R20: 0
B21: =SUBSTITUTE(Titel_kurz_LG4,"-","") -> Tagesstrukturen | C21: =IF(ISERROR(GesamtAnteil_D),0,GesamtAnteil_D) -> 0 | D21: MT | E21: =E$11*C21 -> 0 | F21: 0 | G21: 0 | H21: 0 | I21: 0 | J21: 0 | K21: 0 | L21: 0 | M21: 0 | N21: 0 | O21: 0 | P21: 0 | Q21: 0 | R21: 0
B22: =SUBSTITUTE(Titel_kurz_LG5,"-","") -> Weitere Funktionen | C22: =IF(ISERROR(GesamtAnteil_E),0,GesamtAnteil_E) -> 0 | D22: KH | E22: =E$11*C22 -> 0 | F22: 0 | G22: 0 | H22: 0 | I22: 0 | J22: 0 | K22: 0 | L22: 0 | M22: 0 | N22: 0 | O22: 0 | P22: 0
B23: Abwesenheiten | F23: =DSUM(_xlnm.Database,"GSAbesend",INDIRECT("Filterkriterium_"&TEXT(E$12,))) -> 0 | H23: =DSUM(_xlnm.Database,"GSAbesend",INDIRECT("Filterkriterium_"&TEXT(G$12,))) -> 0 | J23: =DSUM(_xlnm.Database,"GSAbesend",INDIRECT("Filterkriterium_"&TEXT(I$12,))) -> 0 | L23: =DSUM(_xlnm.Database,"GSAbesend",INDIRECT("Filterkriterium_"&TEXT(K$12,))) -> 0 | N23: =DSUM(_xlnm.Database,"GSAbesend",INDIRECT("Filterkriterium_"&TEXT(M$12,))) -> 0 | P23: =DSUM(_xlnm.Database,"GSAbesend",INDIRECT("Filterkriterium_"&TEXT(O$12,))) -> 0 | R23: =SUM(F23,H23,J23,L23,N23,P23) -> 0
B24: Total | E24: =SUM(E15:E23) -> 0 | F24: 0 | G24: 0 | H24: 0 | I24: 0 | J24: 0 | K24: 0 | L24: 0 | M24: 0 | N24: 0 | O24: =SUM(O15:O23) -> 0 | P24: =SUM(P15:P23) -> 0 | Q24: =SUM(Q15:Q23) -> 0 | R24: =SUM(R15:R23) -> 0
E25: =F24-E24 -> 0 | G25: =H24-G24 -> 0 | I25: =J24-I24 -> 0 | K25: =L24-K24 -> 0 | M25: =N24-M24 -> 0 | O25: =P24-O24 -> 0 | Q25: =R24-Q24 -> 0
B26: Monatssaldo | E26: =IF(E25>=0,"+" & TEXT(E25,"[h]:mm"),"-"& TEXT(ABS(E25), "[h]:mm")) -> +0:00 | G26: =IF(G25>=0,"+" & TEXT(G25,"[h]:mm"),"-"& TEXT(ABS(G25), "[h]:mm")) -> +0:00 | I26: =IF(I25>=0,"+" & TEXT(I25,"[h]:mm"),"-"& TEXT(ABS(I25), "[h]:mm")) -> +0:00 | K26: =IF(K25>=0,"+" & TEXT(K25,"[h]:mm"),"-"& TEXT(ABS(K25), "[h]:mm")) -> +0:00 | M26: =IF(M25>=0,"+" & TEXT(M25,"[h]:mm"),"-"& TEXT(ABS(M25), "[h]:mm")) -> +0:00 | O26: =IF(O25>=0,"+" & TEXT(O25,"[h]:mm"),"-"& TEXT(ABS(O25), "[h]:mm")) -> +0:00 | Q26: =IF(Q25>0,"+" & TEXT(Q25,"[h]:mm"),"-"& TEXT(ABS(Q25), "[h]:mm")) -> -0:00
G27: =E25+G25 -> 0
G28: =E25+G25 -> 0 | I28: =G28+I25 -> 0 | K28: =I28+K25 -> 0 | M28: =K28+M25 -> 0 | O28: =M28+O25 -> 0
B29: Jahressaldo | E29: =E26 -> +0:00 | G29: =IF(G28>=0,"+" & TEXT(G28,"[h]:mm"),"-"& TEXT(ABS(G28), "[h]:mm")) -> +0:00 | I29: =IF(I28>=0,"+" & TEXT(I28,"[h]:mm"),"-"& TEXT(ABS(I28), "[h]:mm")) -> +0:00 | K29: =IF(K28>=0,"+" & TEXT(K28,"[h]:mm"),"-"& TEXT(ABS(K28), "[h]:mm")) -> +0:00 | M29: =IF(M28>=0,"+" & TEXT(M28,"[h]:mm"),"-"& TEXT(ABS(M28), "[h]:mm")) -> +0:00 | O29: =IF(O28>=0,"+" & TEXT(O28,"[h]:mm"),"-"& TEXT(ABS(O28), "[h]:mm")) -> +0:00
B31: 2. Halbjahr
B34: Sollstunden | C34: =JAZ -> 0 | E34: =DSUM(_xlnm.Database,"Soll",INDIRECT("Filterkriterium_"&TEXT(E35,))) -> 0 | G34: =DSUM(_xlnm.Database,"Soll",INDIRECT("Filterkriterium_"&TEXT(G35,))) -> 0 | I34: =DSUM(_xlnm.Database,"Soll",INDIRECT("Filterkriterium_"&TEXT(I35,))) -> 0 | K34: =DSUM(_xlnm.Database,"Soll",INDIRECT("Filterkriterium_"&TEXT(K35,))) -> 0 | M34: =DSUM(_xlnm.Database,"Soll",INDIRECT("Filterkriterium_"&TEXT(M35,))) -> 0 | O34: =DSUM(_xlnm.Database,"Soll",INDIRECT("Filterkriterium_"&TEXT(O35,))) -> 0
E35: Februar | G35: März | I35: April | K35: Mai | M35: Juni | O35: Juli | Q35: 2. Halbjahr
E36: Soll | F36: Haben | G36: Soll | H36: Haben | I36: Soll | J36: Haben | K36: Soll | L36: Haben | M36: Soll | N36: Haben | O36: Soll | P36: Haben | Q36: Soll | R36: Haben
B37: =SUBSTITUTE(Titel_kurz_LG1,"-","") -> Kernauftrag | C37: =IF(ISERROR(GesamtAnteil_A),0,GesamtAnteil_A) -> 0 | D37: Kernauftrag | E37: =E$34*C37 -> 0 | F37: =SUM(F38:F41) -> 0 | G37: =G$34*C37 -> 0 | H37: =SUM(H38:H41) -> 0 | I37: =C37*I$34 -> 0 | J37: =SUM(J38:J41) -> 0 | K37: =C37*K$34 -> 0 | L37: =SUM(L38:L41) -> 0 | M37: =C37*M$34 -> 0 | N37: =SUM(N38:N41) -> 0 | O37: =C37*O$34 -> 0 | P37: =SUM(P38:P41) -> 0 | Q37: =SUM(E37,G37,I37,K37,M37,O37) -> 0 | R37: =SUM(F37,H37,J37,L37,N37,P37) -> 0
B38: Unterricht | C38: =IF(ISERROR(GesamtAnteil_A1),0,GesamtAnteil_A1) -> 0 | D38: Unterricht | E38: 0 | F38: =DSUM(_xlnm.Database,$D38,INDIRECT("Filterkriterium_"&TEXT(E$35,))) -> 0 | G38: 0 | H38: =DSUM(_xlnm.Database,$D38,INDIRECT("Filterkriterium_"&TEXT(G$35,))) -> 0 | I38: 0 | J38: =DSUM(_xlnm.Database,$D38,INDIRECT("Filterkriterium_"&TEXT(I$35,))) -> 0 | K38: 0 | L38: =DSUM(_xlnm.Database,$D38,INDIRECT("Filterkriterium_"&TEXT(K$35,))) -> 0 | M38: 0 | N38: =DSUM(_xlnm.Database,$D38,INDIRECT("Filterkriterium_"&TEXT(M$35,))) -> 0 | O38: 0 | P38: 0 | Q38: 0 | R38: 0
B39: Lernende | C39: =IF(ISERROR(GesamtAnteil_A2),0,GesamtAnteil_A2) -> 0 | D39: Lernende | E39: 0 | F39: 0 | G39: 0 | H39: 0 | I39: 0 | J39: 0 | K39: 0 | L39: 0 | M39: 0 | N39: 0 | O39: 0 | P39: 0 | Q39: 0 | R39: 0
B40: Schule | C40: =IF(ISERROR(GesamtAnteil_A3),0,GesamtAnteil_A3) -> 0 | D40: Schule | E40: 0 | F40: 0 | G40: 0 | H40: 0 | I40: 0 | J40: 0 | K40: 0 | L40: 0 | M40: 0 | N40: 0 | O40: 0 | P40: 0 | Q40: 0 | R40: 0
B41: Lehrperson | C41: =IF(ISERROR(GesamtAnteil_A4),0,GesamtAnteil_A4) -> 0 | D41: Lehrperson | E41: 0 | F41: 0 | G41: 0 | H41: 0 | I41: 0 | J41: 0 | K41: 0 | L41: 0 | M41: 0 | N41: 0 | O41: 0 | P41: 0 | Q41: 0 | R41: 0
B42: =SUBSTITUTE(Titel_kurz_LG2,"-","") -> Klassenlehrperson | C42: =IF(ISERROR(GesamtAnteil_B),0,GesamtAnteil_B) -> 0 | D42: KLP | E42: 0 | F42: 0 | G42: 0 | H42: 0 | I42: 0 | J42: 0 | K42: 0 | L42: 0 | M42: 0 | N42: 0 | O42: 0 | P42: 0 | Q42: 0 | R42: 0
B43: =SUBSTITUTE(Titel_kurz_LG3,"-","") -> Besondere Aufgaben | C43: =IF(ISERROR(GesamtAnteil_C),0,GesamtAnteil_C) -> 0 | D43: BA | E43: 0 | F43: 0 | G43: 0 | H43: 0 | I43: 0 | J43: 0 | K43: 0 | L43: 0 | M43: 0 | N43: 0 | O43: 0 | P43: 0 | Q43: 0 | R43: 0
B44: =SUBSTITUTE(Titel_kurz_LG4,"-","") -> Tagesstrukturen | C44: =IF(ISERROR(GesamtAnteil_D),0,GesamtAnteil_D) -> 0 | D44: MT | E44: 0 | F44: 0 | G44: 0 | H44: 0 | I44: 0 | J44: 0 | K44: 0 | L44: 0 | M44: 0 | N44: 0 | O44: 0 | P44: 0 | Q44: 0 | R44: 0
B45: =SUBSTITUTE(Titel_kurz_LG5,"-","") -> Weitere Funktionen | C45: =IF(ISERROR(GesamtAnteil_E),0,GesamtAnteil_E) -> 0 | D45: KH | E45: 0 | F45: 0 | G45: 0 | H45: 0 | I45: 0 | J45: 0 | K45: 0 | L45: 0 | M45: 0 | N45: 0 | O45: 0 | P45: 0
B46: Abwesenheiten | F46: =DSUM(_xlnm.Database,"GSAbesend",INDIRECT("Filterkriterium_"&TEXT(E$35,))) -> 0 | H46: =DSUM(_xlnm.Database,"GSAbesend",INDIRECT("Filterkriterium_"&TEXT(G$35,))) -> 0 | J46: =DSUM(_xlnm.Database,"GSAbesend",INDIRECT("Filterkriterium_"&TEXT(I$35,))) -> 0 | L46: =DSUM(_xlnm.Database,"GSAbesend",INDIRECT("Filterkriterium_"&TEXT(K$35,))) -> 0 | N46: =DSUM(_xlnm.Database,"GSAbesend",INDIRECT("Filterkriterium_"&TEXT(M$35,))) -> 0 | P46: =DSUM(_xlnm.Database,"GSAbesend",INDIRECT("Filterkriterium_"&TEXT(O$35,))) -> 0 | R46: 0
B47: Total | E47: =SUM(E38:E46) -> 0 | F47: =SUM(F38:F46) -> 0 | G47: 0 | H47: 0 | I47: 0 | J47: 0 | K47: 0 | L47: 0 | M47: 0 | N47: 0 | O47: 0 | P47: 0 | Q47: 0 | R47: 0
E48: =F47-E47 -> 0 | G48: =H47-G47 -> 0 | I48: =J47-I47 -> 0 | K48: =L47-K47 -> 0 | M48: =N47-M47 -> 0 | O48: =P47-O47 -> 0 | Q48: =R47-Q47 -> 0
B49: Monatssaldo | E49: =IF(E48>=0,"+" & TEXT(E48,"[h]:mm"),"-"& TEXT(ABS(E48), "[h]:mm")) -> +0:00 | G49: =IF(G48>=0,"+" & TEXT(G48,"[h]:mm"),"-"& TEXT(ABS(G48), "[h]:mm")) -> +0:00 | I49: =IF(I48>=0,"+" & TEXT(I48,"[h]:mm"),"-"& TEXT(ABS(I48), "[h]:mm")) -> +0:00 | K49: =IF(K48>=0,"+" & TEXT(K48,"[h]:mm"),"-"& TEXT(ABS(K48), "[h]:mm")) -> +0:00 | M49: =IF(M48>=0,"+" & TEXT(M48,"[h]:mm"),"-"& TEXT(ABS(M48), "[h]:mm")) -> +0:00 | O49: =IF(O48>=0,"+" & TEXT(O48,"[h]:mm"),"-"& TEXT(ABS(O48), "[h]:mm")) -> +0:00 | Q49: =IF(Q48>0,"+" & TEXT(Q48,"[h]:mm"),"-"& TEXT(ABS(Q48), "[h]:mm")) -> -0:00
G50: =E48+G48 -> 0
E51: =O28+E48 -> 0 | G51: =E51+G48 -> 0 | I51: =G51+I48 -> 0 | K51: =I51+K48 -> 0 | M51: =K51+M48 -> 0 | O51: =M51+O48 -> 0
B52: Jahressaldo | E52: =IF(E51>=0,"+" & TEXT(E51,"[h]:mm"),"-"& TEXT(ABS(E51), "[h]:mm")) -> +0:00 | G52: =IF(G51>=0,"+" & TEXT(G51,"[h]:mm"),"-"& TEXT(ABS(G51), "[h]:mm")) -> +0:00 | I52: =IF(I51>=0,"+" & TEXT(I51,"[h]:mm"),"-"& TEXT(ABS(I51), "[h]:mm")) -> +0:00 | K52: =IF(K51>=0,"+" & TEXT(K51,"[h]:mm"),"-"& TEXT(ABS(K51), "[h]:mm")) -> +0:00 | M52: =IF(M51>=0,"+" & TEXT(M51,"[h]:mm"),"-"& TEXT(ABS(M51), "[h]:mm")) -> +0:00 | O52: =IF(O51>=0,"+" & TEXT(O51,"[h]:mm"),"-"& TEXT(ABS(O51), "[h]:mm")) -> +0:00
B54: Jahresübersicht | L54: Soll | M54: Soll% | N54: Haben | O54: Haben% | P54: Differenz
T55: Dezimal
B56: =Code_LG1 & " " & Titel_LG1 -> A) Ressourcen für Kernauftrag (4 Arbeitsfelder) | K56: Stunden | L56: =Pensendefinition!N85 -> 0 | M56: =SUM(M57:M60) -> 1 | N56: =SUM(N57:N60) -> 0 | O56: =SUM(O57:O60) -> 0 | P56: =IF(T56>=0,"+" & TEXT(T56,"[h]:mm"),"-"& TEXT(ABS(T56), "[h]:mm")) -> +0:00 | T56: =N56-L56 -> 0
B57: davon im Arbeitsfeld 1: | F57: =Titel_ULG1 -> Unterricht | K57: Stunden | L57: =Pensendefinition!N86 -> 0 | M57: =Pensendefinition!J86 -> 0.875 | N57: =SUM_HABEN_A1 -> 0 | O57: =IF($N$56>0,N57/$N$56,0) -> 0 | P57: =IF(T57>=0,"+" & TEXT(T57,"[h]:mm"),"-"& TEXT(ABS(T57), "[h]:mm")) -> +0:00 | T57: =N57-L57 -> 0
B58: davon im Arbeitsfeld 2: | F58: =Titel_ULG2 -> Lernende | K58: Stunden | L58: =Pensendefinition!N87 -> 0 | M58: =Pensendefinition!J87 -> 0.05 | N58: =SUM_HABEN_A2 -> 0 | O58: =IF($N$56>0,N58/$N$56,0) -> 0 | P58: =IF(T58>=0,"+" & TEXT(T58,"[h]:mm"),"-"& TEXT(ABS(T58), "[h]:mm")) -> +0:00 | T58: =N58-L58 -> 0
B59: davon im Arbeitsfeld 3: | F59: =Titel_ULG3 -> Schule | K59: Stunden | L59: =Pensendefinition!N88 -> 0 | M59: =Pensendefinition!J88 -> 0.05 | N59: =SUM_HABEN_A3 -> 0 | O59: =IF($N$56>0,N59/$N$56,0) -> 0 | P59: =IF(T59>=0,"+" & TEXT(T59,"[h]:mm"),"-"& TEXT(ABS(T59), "[h]:mm")) -> +0:00 | T59: =N59-L59 -> 0
B60: davon im Arbeitsfeld 4: | F60: =Titel_ULG4 -> Lehrperson | K60: Stunden | L60: =Pensendefinition!N89 -> 0 | M60: =Pensendefinition!J89 -> 0.025 | N60: =SUM_HABEN_A4 -> 0 | O60: =IF($N$56>0,N60/$N$56,0) -> 0 | P60: =IF(T60>=0,"+" & TEXT(T60,"[h]:mm"),"-"& TEXT(ABS(T60), "[h]:mm")) -> +0:00 | T60: =N60-L60 -> 0
B62: =Code_LG2 & " " & Titel_LG2 -> B) Ressourcen für die Klassenlehrperson | K62: Stunden | L62: =Pensendefinition!N91 -> 0 | N62: =SUM_HABEN_B -> 0 | P62: =IF(T62>=0,"+" & TEXT(T62,"[h]:mm"),"-"& TEXT(ABS(T62), "[h]:mm")) -> +0:00 | T62: =N62-L62 -> 0
B63: davon Funktion Klassenlehrperson | K63: Stunden | L63: =Pensendefinition!N92 -> 0 | P63: =IF(T63>=0,"+" & TEXT(T63,"[h]:mm"),"-"& TEXT(ABS(T63), "[h]:mm")) -> +0:00 | T63: =N63-L63 -> 0
B64: davon Entlastung Integrative Sonderschulung | K64: Stunden | L64: =Pensendefinition!N93 -> 0 | P64: =IF(T64>=0,"+" & TEXT(T64,"[h]:mm"),"-"& TEXT(ABS(T64), "[h]:mm")) -> +0:00 | T64: =N64-L64 -> 0
B66: =Code_LG3 & " " & Titel_LG3 -> C) Besondere Aufgaben (Schulpool) | K66: Stunden | L66: =Pensendefinition!N96 -> 0 | N66: =SUM_HABEN_C -> 0 | P66: =IF(T66>=0,"+" & TEXT(T66,"[h]:mm"),"-"& TEXT(ABS(T66), "[h]:mm")) -> +0:00 | T66: =N66-L66 -> 0
B68: =Code_LG4 & " " & Titel_LG4 -> D) Tagesstrukturen | K68: Stunden | L68: =Pensendefinition!N98 -> 0 | N68: =SUM_HABEN_D -> 0 | P68: =IF(T68>=0,"+" & TEXT(T68,"[h]:mm"),"-"& TEXT(ABS(T68), "[h]:mm")) -> +0:00 | T68: =N68-L68 -> 0
B70: =Code_LG5 & " " & Titel_LG5 -> E) Weitere Funktionen in 42 h/Wo | K70: Stunden | L70: =Pensendefinition!N100 -> 0 | N70: =SUM_HABEN_E -> 0 | P70: =IF(T70>=0,"+" & TEXT(T70,"[h]:mm"),"-"& TEXT(ABS(T70), "[h]:mm")) -> +0:00 | T70: =N70-L70 -> 0
B72: Abwesenheiten | N72: =SUM(N73:N77) -> 0
B73: Krankheit (KR) | N73: =DSUM(_xlnm.Database,"GSAbesend",INDIRECT("Filterkriterium_Abw_Krankheit")) -> 0
B74: Militär (MI) | N74: =DSUM(_xlnm.Database,"GSAbesend",INDIRECT("Filterkriterium_Abw_Militär")) -> 0
B75: Unfall (UN) | N75: =DSUM(_xlnm.Database,"GSAbesend",INDIRECT("Filterkriterium_Abw_Unfall")) -> 0
B76: Urlaub (UR) | N76: =DSUM(_xlnm.Database,"GSAbesend",INDIRECT("Filterkriterium_Abw_Urlaub")) -> 0
B77: Urlaub unbezahlter (UU) | N77: =DSUM(_xlnm.Database,"GSAbesend",INDIRECT("Filterkriterium_Abw_KOMPENSATION")) -> 0
B79: Total | L79: =SUM(L56+L62+L66+L68+L70) -> 0 | N79: =N56+N62+N66+N68+N70+SUM(N73:N77) -> 0 | P79: =IF(T79>=0,"+" & TEXT(T79,"[h]:mm"),"-"& TEXT(ABS(T79), "[h]:mm")) -> +0:00 | T79: =N79-L79 -> 0

Sheet Auswertungsbasis (hidden)
B1: ="Auswertung " &TEXT(Jahresbezeichnung,"") -> Auswertung 2023/2024
B3: Lehrperson: | C3: =TRIM(Pensendefinition!D7 & " " & Pensendefinition!D5) ->  | H3: Schule: | J3: =Pensendefinition!D9 -> 0
B5: Arbeitszeit
B7: Haben bis | D7: 2014-07-31 | E7: =SUMIF(Zeiterfassung!C8:C371,"<" &D7,Zeiterfassung!X8:X371)*24 -> 0
B9: Soll bis | D9: =D7 -> 2014-07-31 | E9: =SUMIF(Zeiterfassung!C8:C371,"<" &D9,Zeiterfassung!Z8:Z371)*24 -> 0
C21: Unterricht | D21: Lernende | E21: Schule | F21: Lehrperson | G21: Klassen- lehrperson | H21: Besondere Aufgaben | I21: Tages- strukturen | J21: Klassenhilfe/-assistenz
C22: A1 | D22: A2 | E22: A3 | F22: A4 | G22: B | H22: C | I22: D | J22: E | K22: Total
C23: Unterricht | D23: Lernende | E23: Schule | F23: Lehrperson | G23: KLP | H23: BA | I23: MT | J23: KH
B24: August | C24: =DSUM(_xlnm.Database,C$23,INDIRECT("Filterkriterium_"&TEXT($B24,))) -> 0 | D24: 0 | E24: 0 | F24: 0 | G24: 0 | H24: 0 | I24: 0 | J24: 0 | K24: =SUM(C24:J24) -> 0
B25: September | C25: =DSUM(_xlnm.Database,C$23,INDIRECT("Filterkriterium_"&TEXT($B25,))) -> 0 | D25: 0 | E25: 0 | F25: 0 | G25: 0 | H25: 0 | I25: 0 | J25: 0 | K25: 0
B26: Oktober | C26: =DSUM(_xlnm.Database,C$23,INDIRECT("Filterkriterium_"&TEXT($B26,))) -> 0 | D26: 0 | E26: 0 | F26: 0 | G26: 0 | H26: 0 | I26: 0 | J26: 0 | K26: 0
B27: November | C27: =DSUM(_xlnm.Database,C$23,INDIRECT("Filterkriterium_"&TEXT($B27,))) -> 0 | D27: 0 | E27: 0 | F27: 0 | G27: 0 | H27: 0 | I27: 0 | J27: 0 | K27: 0
B28: Dezember | C28: =DSUM(_xlnm.Database,C$23,INDIRECT("Filterkriterium_"&TEXT($B28,))) -> 0 | D28: 0 | E28: 0 | F28: 0 | G28: 0 | H28: 0 | I28: 0 | J28: 0 | K28: 0
B29: Januar | C29: =DSUM(_xlnm.Database,C$23,INDIRECT("Filterkriterium_"&TEXT($B29,))) -> 0 | D29: 0 | E29: 0 | F29: 0 | G29: 0 | H29: 0 | I29: 0 | J29: 0 | K29: 0
B30: Februar | C30: =DSUM(_xlnm.Database,C$23,INDIRECT("Filterkriterium_"&TEXT($B30,))) -> 0 | D30: 0 | E30: 0 | F30: 0 | G30: 0 | H30: 0 | I30: 0 | J30: 0 | K30: 0
B31: März | C31: =DSUM(_xlnm.Database,C$23,INDIRECT("Filterkriterium_"&TEXT($B31,))) -> 0 | D31: 0 | E31: 0 | F31: 0 | G31: 0 | H31: 0 | I31: 0 | J31: 0 | K31: 0
B32: April | C32: =DSUM(_xlnm.Database,C$23,INDIRECT("Filterkriterium_"&TEXT($B32,))) -> 0 | D32: 0 | E32: 0 | F32: 0 | G32: 0 | H32: 0 | I32: 0 | J32: 0 | K32: 0
B33: Mai | C33: =DSUM(_xlnm.Database,C$23,INDIRECT("Filterkriterium_"&TEXT($B33,))) -> 0 | D33: 0 | E33: 0 | F33: 0 | G33: 0 | H33: 0 | I33: 0 | J33: 0 | K33: 0
B34: Juni | C34: =DSUM(_xlnm.Database,C$23,INDIRECT("Filterkriterium_"&TEXT($B34,))) -> 0 | D34: 0 | E34: 0 | F34: 0 | G34: 0 | H34: 0 | I34: 0 | J34: 0 | K34: 0
B35: Juli | C35: =DSUM(_xlnm.Database,C$23,INDIRECT("Filterkriterium_"&TEXT($B35,))) -> 0 | D35: 0 | E35: 0 | F35: 0 | G35: 0 | H35: 0 | I35: 0 | J35: 0 | K35: 0
B37: Haben | C37: =SUM(C24,C25,C26,C27,C28,C29,C30,C31,C32,C33,C34,C35) -> 0 | D37: 0 | E37: 0 | F37: 0 | G37: 0 | H37: 0 | I37: =SUM(I24,I25,I26,I27,I28,I29,I30,I31,I32,I33,I34,I35) -> 0 | J37: 0 | K37: =SUM(C37:J37) -> 0
B38: Soll | C38: =SUM_SOLL_A1/24 -> 0 | D38: =SUM_SOLL_A2/24 -> 0 | E38: =SUM_SOLL_A3/24 -> 0 | F38: =SUM_SOLL_A4/24 -> 0 | G38: =SUM_SOLL_B/24 -> 0 | H38: =SUM_SOLL_C/24 -> 0 | I38: =SUM_SOLL_D/24 -> 0 | J38: =SUM_SOLL_D/24 -> 0 | K38: =SUM(C38:J38) -> 0
C40: =C37-C38 -> 0 | D40: 0 | E40: 0 | F40: 0 | G40: 0 | H40: 0 | I40: =I37-I38 -> 0 | J40: 0 | K40: 0
B42: Differnz | C42: =IF(C40<0,"-"&TEXT(ABS(C40),"[H]:mm "),IF(C40=0,"0:00 ",TEXT(C40,"[h]:mm "))) -> 0:00 | D42: =IF(D40<0,"-"&TEXT(ABS(D40),"[H]:mm "),IF(D40=0,"0:00 ",TEXT(D40,"[h]:mm "))) -> 0:00 | E42: 0:00 | F42: 0:00 | G42: 0:00 | H42: 0:00 | I42: =IF(I40<0,"-"&TEXT(ABS(I40),"[H]:mm "),IF(I40=0,"0:00 ",TEXT(I40,"[h]:mm "))) -> 0:00 | J42: 0:00 | K42: 0:00
B46: Ferien
B48: Tage | D48: =JAZ_Pensum_oF -> 1881.6
B49: Stunden p. Tag | D49: =TagesSoll -> 0.35
B50: Ferienstunden p. Jahr | D50: =D49*20 -> 7
B52: Anteil Jahrespensum | D52: =Jahreskalender!R5/Jahreskalender!Q5 -> 
B53: Ferienstunden gem PL | D53: =D50*D52 -> 
B55: Pensum | D55: =Pensum1 -> 0
B56: Ferienanteil | D56: =D53*D55 -> 

Sheet Pensendefinition
A1: =" Pensendefinition " &TEXT(Jahresbezeichnung,"") -> Pensendefinition 2023/2024
B5: Name
B7: Vorname
B9: Schule
B11: Geburtsdatum
J12: =J11*TagesSoll*24 -> 0
B13: Klasse | D13: 4KA
D15: Tage | F15: Std./Tag
B16: Tage | D16: =AnzahlTage -> 366
B17: Wochenendtage | D17: =AnzahlWochenendtage -> 104
D19: Tage | H19: In Stunden
B20: Werktage | D20: =AnzahlWerktage -> 262 | F20: =TagesSoll*24 -> 8.4 | H20: =D20*F20 -> 2200.8
B21: Feiertage | D21: =AnzahlFeiertage -> 13 | F21: =TagesSoll*24 -> 8.4 | H21: =D21*F21 -> 109.2
B23: Arbeitstage inkl. Ferien | D23: =D20-D21 -> 249 | H23: =H20-H21 -> 2091.6
B25: Ferientage fix | D25: 25 | F25: =TagesSoll*24 -> 8.4 | H25: =D25*F25 -> 210
B26: Arbeitstage | D26: =D23-D25 -> 224 | H26: =H23-H25 -> 1881.6
B27: Von | D27: 2023-08-01
B29: Bis | D29: 2024-07-31
B32: Ferienanspruch in Stunden | H32: =Ferienanspruch_Stunden -> 210 | J32: s. Register Kennzahlen
B34: Anzahl Arbeitstage im Schuljahr | H34: =AnzahlArbeitstage -> 249
B36: Anzahl Arbeitstage im defierten Zeitraum | H36: =AnzahlArbeitstage_PE1 -> 249
B38: Anteil Jahrespensum | H38: =H36/H34 -> 1
B40: ="Sollsarbeitszeit im Schuljahr " &TEXT(Jahresbezeichnung,"")& " bei 100%" -> Sollsarbeitszeit im Schuljahr 2023/2024 bei 100% | H40: =JAZ_o_Ferien -> 1881.6
B42: ="Sollarbeitszeit im Schuljahr " &TEXT(Jahresbezeichnung,"")& " bei 100%" -> Sollarbeitszeit im Schuljahr 2023/2024 bei 100% | H42: =H40/24 -> 78.4
B44: Sollarbeitszeit dieses Pensums | H44: =H40*H38 -> 1881.6
B46: Sollarbeitszeit dieses Pensums inkl. Ferientage | H46: =H23*Pensum1_Anteil_Jahrespensum -> 2091.6
Y47: JAZ | AA47: JAZ | AC47: JAZ | AE47: JAZ m. Ferien
B48: Pensum in … | H48: Lektionen | J48: Lektionen | L48: Lektionen | N48: Stunden | Y48: =JAZ_Pensum_oF -> 1881.6 | AA48: =JAZ_Pensum_oF -> 1881.6 | AC48: =JAZ_Pensum_oF -> 1881.6 | AE48: =JAZ_Pensum_oF_mit_Ferien -> 2091.6 | AG48: Sollstunden
H49: 28 | J49: 29 | L49: 30 | N49: 42 | Q49: =H49 -> 28 | S49: =J49 -> 29 | U49: =L49 -> 30 | W49: =N49 -> 42 | Y49: =H49 -> 28 | AA49: =J49 -> 29 | AC49: =L49 -> 30 | AE49: =N49 -> 42
B50: =Code_LG1 -> A) | C50: =Titel_LG1 -> Ressourcen für Kernauftrag (4 Arbeitsfelder) | H50: 0 | J50: 0 | L50: 0 | Q50: =H50/H$49 -> 0 | S50: =J50/J$49 -> 0 | U50: =L50/L$49 -> 0 | W50: =N50/N$49 -> 0 | Y50: =Y$48*Q50 -> 0 | AA50: =AA$48*S50 -> 0 | AC50: =AC$48*U50 -> 0 | AE50: =AE$48*W50-Ferienanspruch_Stunden*W50 -> 0 | AG50: =SUM(Y50:AE50) -> 0
B52: =Code_LG2 -> B) | C52: =Titel_LG2 -> Ressourcen für die Klassenlehrperson | D52: Entlastung Funktion Klassenlehrperson | H52: 0 | J52: 0 | L52: 0 | Q52: =H52/H$49 -> 0 | S52: =J52/J$49 -> 0 | U52: =L52/L$49 -> 0 | W52: =N52/N$49 -> 0 | Y52: =Y$48*Q52 -> 0 | AA52: =AA$48*S52 -> 0 | AC52: =AC$48*U52 -> 0 | AE52: =AE$48*W52-Ferienanspruch_Stunden*W52 -> 0 | AG52: =SUM(Y52:AE52) -> 0
D54: Entlastung Integrative Sonderschulung | H54: 0 | J54: 0 | L54: 0 | Q54: =H54/H$49 -> 0 | S54: =J54/J$49 -> 0 | U54: =L54/L$49 -> 0 | W54: =N54/N$49 -> 0 | Y54: =Y$48*Q54 -> 0 | AA54: =AA$48*S54 -> 0 | AC54: =AC$48*U54 -> 0 | AE54: =AE$48*W54-Ferienanspruch_Stunden*W54 -> 0 | AG54: =SUM(Y54:AE54) -> 0
B56: =Code_LG3 -> C) | C56: =Titel_LG3 -> Besondere Aufgaben (Schulpool) | H56: 0 | J56: 0 | L56: 0 | N56: 0 | Q56: =H56/H$49 -> 0 | S56: =J56/J$49 -> 0 | U56: =L56/L$49 -> 0 | W56: =N56/N$49 -> 0 | Y56: =Y$48*Q56 -> 0 | AA56: =AA$48*S56 -> 0 | AC56: =AC$48*U56 -> 0 | AE56: =AE$48*W56-Ferienanspruch_Stunden*W56 -> 0 | AG56: =SUM(Y56:AE56) -> 0
B58: =Code_LG4 -> D) | C58: =Titel_LG4 -> Tagesstrukturen | N58: 0 | Q58: =H58/H$49 -> 0 | S58: =J58/J$49 -> 0 | U58: =L58/L$49 -> 0 | W58: =N58/N$49 -> 0 | Y58: =Y$48*Q58 -> 0 | AA58: =AA$48*S58 -> 0 | AC58: =AC$48*U58 -> 0 | AE58: =AE$48*W58-Ferienanspruch_Stunden*W58 -> 0 | AG58: =SUM(Y58:AE58) -> 0
B60: =Code_LG5 -> E) | C60: =Titel_LG5 -> Weitere Funktionen in 42 h/Wo | N60: 0 | Q60: =H60/H$49 -> 0 | S60: =J60/J$49 -> 0 | U60: =L60/L$49 -> 0 | W60: =N60/N$49 -> 0 | Y60: =Y$48*Q60 -> 0 | AA60: =AA$48*S60 -> 0 | AC60: =AC$48*U60 -> 0 | AE60: =AE$48*W60-Ferienanspruch_Stunden*W60 -> 0 | AG60: =SUM(Y60:AE60) -> 0
B62: F) | C62: Reduktionen | D62: Bezug Altersentlastung | H62: 0 | J62: 0 | L62: 0 | Q62: =H62/H$49 -> 0 | S62: =J62/J$49 -> 0 | U62: =L62/L$49 -> 0 | W62: =N62/N$49 -> 0 | Y62: =Y$48*Q62 -> 0 | AA62: =AA$48*S62 -> 0 | AC62: =AC$48*U62 -> 0 | AE62: =AE$48*W62-Ferienanspruch_Stunden*W62 -> 0 | AG62: =SUM(Y62:AE62) -> 0
D64: Kompensation von Mehr- oder Minderlektionen | H64: 0 | J64: 0 | L64: 0 | N64: 0 | Q64: =H64/H$49 -> 0 | S64: =J64/J$49 -> 0 | U64: =L64/L$49 -> 0 | W64: =N64/N$49 -> 0 | Y64: =Y$48*Q64 -> 0 | AA64: =AA$48*S64 -> 0 | AC64: =AC$48*U64 -> 0 | AE64: =AE$48*W64-Ferienanspruch_Stunden*W64 -> 0 | AG64: =SUM(Y64:AE64) -> 0
B66: Lektionen | F66: =SUM(H66:M66) -> 0 | H66: =SUM(H50:H65) -> 0 | J66: =SUM(J50:J65) -> 0 | L66: =SUM(L50:L65) -> 0 | N66: =SUM(N50:N65) -> 0 | Q66: =SUM(Q50:Q64) -> 0 | S66: =SUM(S50:S64) -> 0 | W66: =SUM(W50:X64) -> 0 | Y66: =SUM(Y50:Y60) -> 0 | AA66: =SUM(AA50:AA60) -> 0 | AC66: =SUM(AC50:AC60) -> 0 | AE66: =SUM(AE50:AE60) -> 0 | AG66: =SUM(AG50:AG64) -> 0
B67: Unterrichtsverpflichtung | F67: =SUM(H67:L67) -> 0 | H67: =SUM(H50:H60) -> 0 | J67: =SUM(J50:J60) -> 0 | L67: =SUM(L50:L60) -> 0
B68: Pensum | F68: =SUM(G68:N68) -> 0 | H68: =H66/H49 -> 0 | J68: =J66/J49 -> 0 | L68: =L66/L49 -> 0 | N68: =N66/N49 -> 0
B71: Jahresarbeitszeit (Sollarbeitszeit) | F71: =SUM(G71:N71) -> 0 | H71: =Y66 -> 0 | J71: =AA66 -> 0 | L71: =AC66 -> 0 | N71: =AE66 -> 0
B74: Lektionen | H74: =H66 -> 0 | J74: =J66 -> 0 | L74: =L66 -> 0 | N74: =N66 -> 0
B76: Besoldetes Pensum | N76: =Pensum1 -> 0
B78: Sollarbeitszeit in Stunden | N78: =F71 -> 0
B80: Sollarbeitszeit | N80: =N78/24 -> 0
B83: Pensum in Stunden
B85: =Code_LG1 -> A) | C85: =Titel_LG1 -> Ressourcen für Kernauftrag (4 Arbeitsfelder) | J85: =SUM(J86:J89) -> 1 | L85: Stunden | M85: =SUM_SOLL_A/$N$78*24 ->  | N85: =SOLL_A/24 -> 0
C86: davon im Arbeitsfeld 1: | D86: =Titel_ULG1 -> Unterricht | J86: 0.875 | L86: Stunden | M86: =SUM_SOLL_A1/$N$78*24 ->  | N86: =$N$85*J86 -> 0
C87: davon im Arbeitsfeld 2: | D87: =Titel_ULG2 -> Lernende | J87: 0.05 | L87: Stunden | M87: =SUM_SOLL_A2/$N$78*24 ->  | N87: =$N$85*J87 -> 0
C88: davon im Arbeitsfeld 3: | D88: =Titel_ULG3 -> Schule | J88: 0.05 | L88: Stunden | M88: =SUM_SOLL_A3/$N$78*24 ->  | N88: =$N$85*J88 -> 0
C89: davon im Arbeitsfeld 4: | D89: =Titel_ULG4 -> Lehrperson | J89: 0.025 | L89: Stunden | M89: =SUM_SOLL_A4/$N$78*24 ->  | N89: =$N$85*J89 -> 0
B91: =Code_LG2 -> B) | C91: =Titel_LG2 -> Ressourcen für die Klassenlehrperson | L91: Stunden | M91: =SUM_SOLL_B/$N$78*24 ->  | N91: =SUM(N92:N93) -> 0
C92: davon Entlastung Funktion Klassenlehrperson | L92: Stunden | M92: =SUM_SOLL_B1/$N$78*24 ->  | N92: =SOLL_B1/24 -> 0
C93: davon Entlastung Integrative Sonderschulung | L93: Stunden | M93: =SUM_SOLL_B2/$N$78*24 ->  | N93: =SOLL_B2/24 -> 0
B96: =Code_LG3 -> C) | C96: =Titel_LG3 -> Besondere Aufgaben (Schulpool) | L96: Stunden | M96: =SUM_SOLL_C/$N$78*24 ->  | N96: =SOLL_C/24 -> 0
B98: =Code_LG4 -> D) | C98: =Titel_LG4 -> Tagesstrukturen | L98: Stunden | M98: =SUM_SOLL_D/$N$78*24 ->  | N98: =SOLL_D/24 -> 0
B100: =Code_LG5 -> E) | C100: =Titel_LG5 -> Weitere Funktionen in 42 h/Wo | L100: Stunden | M100: =SUM_SOLL_E/$N$78*24 ->  | N100: =SOLL_E/24 -> 0
B102: Sollarbeitszeit | N102: =N85+N91+N96+N98+N100 -> 0
B105: Sollarbeitszeiten | D105: Ungewichtet | F105: Schulzeit | H105: Ferienzeit
S107: 43.25 | U107: =S107/5 -> 8.65 | W107: =U107/24 -> 0.3604166667
B108: Tagessoll bei 100.0% | D108: 0.35 | F108: =F71/AnzahlArbeitstage_PE1/24 -> 0
B109: Wochensoll bei 100% | D109: =TagesSoll*5 -> 1.75 | E109: =WochenSoll*24 -> 42
B111: ="Tagessoll bei " & TEXT(F68,"0.0%") & " ohne Ferien" -> Tagessoll bei 0.0% ohne Ferien | D111: =F108 -> 0
B112: ="Wochensoll bei " & TEXT(F68,"0.0%") & " ohne Ferien" -> Wochensoll bei 0.0% ohne Ferien | D112: =TagesSoll_PA*5 -> 0
E113: 1.102380952
F114: =IF(N138<=0.1,1,E113) -> 1.102380952 | H114: =IF(H138=0,0,IF(FaktorSZ=1,1,J114)) -> 1 | J114: =IF(ISERROR(((D139-F139)/H138/24/D125)),1,(D139-F139)/H138/24/D125) -> 1
B115: Sollzeiten pro Tag | D115: Ungewichtet | F115: Schulzeit | H115: Ferienzeit
B116: Montag | D116: =D111 -> 0 | F116: =RAZ_1WT*FaktorSZ -> 0 | H116: =RAZ_1WT*FaktorFZ -> 0
B117: Dienstag | D117: =D111 -> 0 | F117: =RAZ_2WT*FaktorSZ -> 0 | H117: =RAZ_2WT*FaktorFZ -> 0
B118: Mittwoch | D118: =D111 -> 0 | F118: =RAZ_3WT*FaktorSZ -> 0 | H118: =RAZ_3WT*FaktorFZ -> 0
B119: Donnerstag | D119: =D111 -> 0 | F119: =RAZ_4WT*FaktorSZ -> 0 | H119: =RAZ_4WT*FaktorFZ -> 0
B120: Freitag | D120: =D111 -> 0 | F120: =RAZ_5WT*FaktorSZ -> 0 | H120: =RAZ_5WT*FaktorFZ -> 0
B121: Samstag | D121: 0 | F121: =RAZ_6WT*FaktorSZ -> 0 | H121: =RAZ_6WT*FaktorFZ -> 0
B122: Sonntag | D122: 0 | F122: =RAZ_7WT*FaktorSZ -> 0 | H122: =RAZ_7WT*FaktorFZ -> 0
B123: Arbeitszeit pro Woche | D123: =SUM(D116:D122) -> 0 | F123: =SUM(F116:F122) -> 0 | H123: =SUM(H116:H122) -> 0
B125: Arbeitszeit pro Tag | D125: =D123/5 -> 0 | F125: =F123/5 -> 0 | H125: =H123/5 -> 0
B127: Tagespensum
B129: Sollarbeitszeit pro Tag | D129: durchschnittlich pro Arbeitstag | N129: =Tagessoll_ungewichtet -> 0
D131: während der Schulzeit (SZ) | N131: =Tagessoll_gewichtet_SZ -> 0
D133: während der Schulferienzeit (SFZ) | N133: =Tagessoll_gewichtet_SFZ -> 0
C137: =IF(MINUTE(D137)=0,"","Regelarbeitszeit prüfen") -> 
C138: Anzahl Arbeitstage | D138: =F138+H138 -> 249 | F138: =AnzahlTage_PE1_SZ -> 184 | H138: =AnzahlTage_PE1_FZ -> 65 | N138: =IF(ISERROR(H138/F138),0,H138/F138) -> 0.3532608696
C139: Anzahl Arbeitsstunden | D139: =D138*D125*24 -> 0 | F139: =F138*F125*24 -> 0 | H139: =H138*H125*24 -> 0 | N139: =F139+H139 -> 0

Sheet Pensenvereinbarung
A1: =" Pensenvereinbarung " &TEXT(Jahresbezeichnung,"") -> Pensenvereinbarung 2023/2024
B5: Name | D5: =UserName -> 0
B7: Vorname | D7: =UserVorname -> 0
B9: Schule | D9: =UserSchule -> 0
B11: Geburtsdatum | D11: =Geburtsdatum -> 00:00:00
J12: =J11*TagesSoll*24 -> 0
B13: Klasse | D13: 4KA
D15: Tage | F15: Std./Tag
B16: Tage | D16: =AnzahlTage -> 366
B17: Wochenendtage | D17: =AnzahlWochenendtage -> 104
D19: Tage | H19: In Stunden
B20: Werktage | D20: =AnzahlWerktage -> 262 | F20: =TagesSoll*24 -> 8.4 | H20: =D20*F20 -> 2200.8
B21: Feiertage | D21: =AnzahlFeiertage -> 13 | F21: =TagesSoll*24 -> 8.4 | H21: =D21*F21 -> 109.2
B23: Arbeitstage inkl. Ferien | D23: =D20-D21 -> 249 | H23: =H20-H21 -> 2091.6
B25: Ferientage fix | D25: 25 | F25: =TagesSoll*24 -> 8.4 | H25: =D25*F25 -> 210
B26: Arbeitstage | D26: =D23-D25 -> 224 | H26: =H23-H25 -> 1881.6
B27: Von | D27: =Pensum1_Start -> 2023-08-01
B29: Bis | D29: =Pensum1_Ende -> 2024-07-31
B32: Pensum in … | H32: Lektionen | J32: Lektionen | L32: Lektionen | N32: Stunden
H33: 28 | J33: 29 | L33: 30 | N33: 42
B34: =Code_LG1 -> A) | C34: =Titel_LG1 -> Ressourcen für Kernauftrag (4 Arbeitsfelder) | H34: =Pensendefinition!H50 -> 0 | J34: =Pensendefinition!J50 -> 0 | K34: =Pensendefinition!K50 -> 0 | L34: =Pensendefinition!L50 -> 0 | M34: =Pensendefinition!M50 -> 0 | N34: =Pensendefinition!N50 -> 0
B36: =Code_LG2 -> B) | C36: =Titel_LG2 -> Ressourcen für die Klassenlehrperson | D36: Entlastung Funktion Klassenlehrperson | H36: =Pensendefinition!H52 -> 0 | J36: =Pensendefinition!J52 -> 0 | K36: =Pensendefinition!K52 -> 0 | L36: =Pensendefinition!L52 -> 0 | M36: =Pensendefinition!M52 -> 0
D38: Entlastung Integrative Sonderschulung | H38: =Pensendefinition!H54 -> 0 | J38: =Pensendefinition!J54 -> 0 | K38: =Pensendefinition!K54 -> 0 | L38: =Pensendefinition!L54 -> 0 | M38: =Pensendefinition!M54 -> 0
B40: =Code_LG3 -> C) | C40: =Titel_LG3 -> Besondere Aufgaben (Schulpool) | H40: =Pensendefinition!H56 -> 0 | J40: =Pensendefinition!J56 -> 0 | K40: =Pensendefinition!K56 -> 0 | L40: =Pensendefinition!L56 -> 0 | M40: =Pensendefinition!M56 -> 0 | N40: =Pensendefinition!N56 -> 0
B42: =Code_LG4 -> D) | C42: =Titel_LG4 -> Tagesstrukturen | M42: =Pensendefinition!M58 -> 0 | N42: =Pensendefinition!N58 -> 0
B44: =Code_LG5 -> E) | C44: =Titel_LG5 -> Weitere Funktionen in 42 h/Wo | M44: =Pensendefinition!M60 -> 0 | N44: =Pensendefinition!N60 -> 0
B46: F) | C46: Reduktionen | D46: Bezug Altersentlastung | H46: =Pensendefinition!H62 -> 0 | J46: =Pensendefinition!J62 -> 0 | K46: =Pensendefinition!K62 -> 0 | L46: =Pensendefinition!L62 -> 0 | M46: =Pensendefinition!M62 -> 0
D48: Kompensation von Mehr- oder Minderlektionen | H48: =Pensendefinition!H64 -> 0 | J48: =Pensendefinition!J64 -> 0 | K48: =Pensendefinition!K64 -> 0 | L48: =Pensendefinition!L64 -> 0 | M48: =Pensendefinition!M64 -> 0 | N48: =Pensendefinition!N64 -> 0
B51: Lektionen | H51: =Pensendefinition!H74 -> 0 | J51: =Pensendefinition!J74 -> 0 | K51: =Pensendefinition!K74 -> 0 | L51: =Pensendefinition!L74 -> 0 | M51: =Pensendefinition!M74 -> 0 | N51: =Pensendefinition!N74 -> 0
M52: =Pensendefinition!M75 -> 0
B53: Besoldetes Pensum | M53: =Pensendefinition!M76 -> 0 | N53: =Pensendefinition!N76 -> 0
M54: =Pensendefinition!M77 -> 0
B55: Sollarbeitszeit | M55: =Pensendefinition!M80 -> 0 | N55: =Pensendefinition!N80 -> 0
B57: Pensum in Stunden
B59: =Code_LG1 -> A) | C59: =Titel_LG1 -> Ressourcen für Kernauftrag (4 Arbeitsfelder) | J59: =SUM(J60:J63) -> 1 | L59: Stunden | N59: =SOLL_A/24 -> 0
C60: davon im Arbeitsfeld 1: | D60: =Titel_ULG1 -> Unterricht | J60: =Anteil_A1 -> 0.875 | L60: Stunden | N60: =$N$59*J60 -> 0
C61: davon im Arbeitsfeld 2: | D61: =Titel_ULG2 -> Lernende | J61: =Anteil_A2 -> 0.05 | L61: Stunden | N61: =$N$59*J61 -> 0
C62: davon im Arbeitsfeld 3: | D62: =Titel_ULG3 -> Schule | J62: =Anteil_A3 -> 0.05 | L62: Stunden | N62: =$N$59*J62 -> 0
C63: davon im Arbeitsfeld 4: | D63: =Titel_ULG4 -> Lehrperson | J63: =Anteil_A4 -> 0.025 | L63: Stunden | N63: =$N$59*J63 -> 0
B65: =Code_LG2 -> B) | C65: =Titel_LG2 -> Ressourcen für die Klassenlehrperson | L65: Stunden | N65: =SUM(N66:N67) -> 0
C66: davon Entlastung Funktion Klassenlehrperson | L66: Stunden | N66: =SOLL_B1/24 -> 0
C67: davon Entlastung Integrative Sonderschulung | L67: Stunden | N67: =SOLL_B2/24 -> 0
B70: =Code_LG3 -> C) | C70: =Titel_LG3 -> Besondere Aufgaben (Schulpool) | L70: Stunden | N70: =SOLL_C/24 -> 0
B72: =Code_LG4 -> D) | C72: =Titel_LG4 -> Tagesstrukturen | L72: Stunden | N72: =SOLL_D/24 -> 0
B74: =Code_LG5 -> E) | C74: =Titel_LG5 -> Weitere Funktionen in 42 h/Wo | L74: Stunden | N74: =SOLL_E/24 -> 0
B76: Sollarbeitszeit | N76: =N59+N65+N70+N72+N74 -> 0
B78: Unterschriften
B80: Ort und Datum
B82: Unterschrift Schulleitung | H82: Unterschrift Lehrperson/Fachperson
B84: __________________________________ | H84: __________________________________
B101: Weitere Vereinbarungen
B104: A) Kernauftrag (4 Arbeitsfelder)
B112: B) Ressourcen für die Klassenlehrperson
B120: C) Ressourcen für besondere Aufgaben (Schulpool)
B128: D) Tagesstrukturen
B136: E) Klassenassistenz I und II
B144: F) Reduktionen

Sheet Jahreskalender
B1: ="Jahreskalender " &TEXT(Jahresbezeichnung,"") -> Jahreskalender 2023/2024
C5: =COUNT(Spalte_TG) -> 366 | G5: =SUM(Spalte_WT) -> 262 | H5: =SUM(Spalte_WE) -> 104 | I5: =SUM(Spalte_FT) -> 13 | J5: =SUM(Spalte_AT) -> 249 | K5: =SUM(Spalte_AT_1HJ) -> 103 | L5: =SUM(Spalte_AT_2HJ) -> 146 | M5: =SUM(Spalte_PE) -> 249 | N5: =SUM(Spalte_Arbeitstage_PE1_1HJ) -> 103 | O5: =SUM(Spalte_Arbeitstage_PE1_2HJ) -> 146 | Q5: =SUM(Spalte_JAZ_PA) -> 0 | R5: =SUM(R8:R373) -> 0 | T5: =SUM(Spalte_PE1_SZ) -> 184 | U5: =SUM(Spalte_PE1_FZ) -> 65 | V5: =SUM(V8:V373) -> 0
C6: Datum | P6: Feiertag | S6: Definition | V6: Tagessoll
B7: MT | C7: TG | D7: Datum | E7: M | F7: KW | G7: WT | H7: WE | I7: FT | J7: AT | M7: PE | P7: Feiertag | Q7: JAZ_VZ | R7: RAZ | S7: Typ | T7: PE1_SZ | U7: PE1_FZ | V7: Soll
B8: =C8 -> 2023-08-01 | C8: =JahresKalenderStartdatum -> 2023-08-01 | D8: =C8 -> 2023-08-01 | E8: =MONTH(C8) -> 8 | F8: =WEEKNUM(C8,2) -> 32 | G8: =IF(WEEKDAY(C8,2)>5,0,1) -> 1 | H8: =IF(WEEKDAY(C8,2)>5,1,0) -> 0 | I8: =IF(ISERROR(VLOOKUP(C8,tabFeiertage,2,FALSE)),0,VLOOKUP(C8,tabFeiertage,3,FALSE))*G8 -> 1 | J8: =G8-I8 -> 0 | K8: =J8 -> 0 | M8: =IF(AND(C8>=Pensum1_Start,C8<=Pensum1_Ende),1,0)*J8 -> 0 | N8: =M8 -> 0 | P8: =IF(ISERROR(VLOOKUP(C8,tabFeiertage,2,FALSE)),"",VLOOKUP(C8,tabFeiertage,2,FALSE)) -> Nationalfeiertag | Q8: =INDIRECT("RAZ_"& TEXT(WEEKDAY(C8,2),0) & "WT")*J8 -> 0 | R8: =INDIRECT("RAZ_"& TEXT(WEEKDAY(C8,2),0) & "WT")*J8*IF(M8>0,1,0) -> 0 | S8: SFZ | T8: =IF(UPPER(S8)="SZ",1,0)*J8*M8 -> 0 | U8: =IF(UPPER(S8)="SFZ",1,0)*J8*IF(M8>0,1,0) -> 0 | V8: =R8*IF(S8="SFZ",FaktorFZ,IF(S8="SZ",FaktorSZ,IF(S8="KT",0,1))) -> 0
C9: =C8+1 -> 2023-08-02 | D9: 2023-08-02 | E9: 8 | F9: 32 | G9: 1 | H9: 0 | I9: 0 | J9: 1 | K9: =J9 -> 1 | M9: 1 | N9: =M9 -> 1 | Q9: =INDIRECT("RAZ_"& TEXT(WEEKDAY(C9,2),0) & "WT")*J9 -> 0 | R9: 0 | S9: SFZ | T9: 0 | U9: 1 | V9: 0
C10: =C9+1 -> 2023-08-03 | D10: 2023-08-03 | E10: 8 | F10: 32 | G10: 1 | H10: 0 | I10: 0 | J10: 1 | K10: 1 | M10: 1 | N10: 1 | Q10: 0 | R10: 0 | S10: SFZ | T10: 0 | U10: 1 | V10: 0
C11: 2023-08-04 | D11: 2023-08-04 | E11: 8 | F11: 32 | G11: 1 | H11: 0 | I11: 0 | J11: 1 | K11: 1 | M11: 1 | N11: 1 | Q11: 0 | R11: 0 | S11: SFZ | T11: 0 | U11: 1 | V11: 0
C12: 2023-08-05 | D12: 2023-08-05 | E12: 8 | F12: 32 | G12: 0 | H12: 1 | I12: 0 | J12: 0 | K12: 0 | M12: 0 | N12: 0 | Q12: 0 | R12: 0 | S12: SFZ | T12: 0 | U12: 0 | V12: 0
C13: 2023-08-06 | D13: 2023-08-06 | E13: 8 | F13: 32 | G13: 0 | H13: 1 | I13: 0 | J13: 0 | K13: 0 | M13: 0 | N13: 0 | Q13: 0 | R13: 0 | S13: SFZ | T13: 0 | U13: 0 | V13: 0
C14: 2023-08-07 | D14: 2023-08-07 | E14: 8 | F14: 33 | G14: 1 | H14: 0 | I14: 0 | J14: 1 | K14: 1 | M14: 1 | N14: 1 | Q14: 0 | R14: 0 | S14: SFZ | T14: 0 | U14: 1 | V14: 0
C15: 2023-08-08 | D15: 2023-08-08 | E15: 8 | F15: 33 | G15: 1 | H15: 0 | I15: 0 | J15: 1 | K15: 1 | M15: 1 | N15: 1 | Q15: 0 | R15: 0 | S15: SFZ | T15: 0 | U15: 1 | V15: 0
C16: 2023-08-09 | D16: =C16 -> 2023-08-09 | E16: =MONTH(C16) -> 8 | F16: =WEEKNUM(C16,2) -> 33 | G16: =IF(WEEKDAY(C16,2)>5,0,1) -> 1 | H16: =IF(WEEKDAY(C16,2)>5,1,0) -> 0 | I16: =IF(ISERROR(VLOOKUP(C16,tabFeiertage,2,FALSE)),0,VLOOKUP(C16,tabFeiertage,3,FALSE))*G16 -> 0 | J16: =G16-I16 -> 1 | K16: 1 | M16: =IF(AND(C16>=Pensum1_Start,C16<=Pensum1_Ende),1,0)*J16 -> 1 | N16: 1 | P16: =IF(ISERROR(VLOOKUP(C16,tabFeiertage,2,FALSE)),"",VLOOKUP(C16,tabFeiertage,2,FALSE)) ->  | Q16: =INDIRECT("RAZ_"& TEXT(WEEKDAY(C16,2),0) & "WT")*J16 -> 0 | R16: =INDIRECT("RAZ_"& TEXT(WEEKDAY(C16,2),0) & "WT")*J16*IF(M16>0,1,0) -> 0 | S16: SFZ | T16: =IF(UPPER(S16)="SZ",1,0)*J16*M16 -> 0 | U16: =IF(UPPER(S16)="SFZ",1,0)*J16*IF(M16>0,1,0) -> 1 | V16: =R16*IF(S16="SFZ",FaktorFZ,IF(S16="SZ",FaktorSZ,IF(S16="KT",0,1))) -> 0
C17: 2023-08-10 | D17: 2023-08-10 | E17: 8 | F17: 33 | G17: 1 | H17: 0 | I17: 0 | J17: 1 | K17: 1 | M17: 1 | N17: 1 | Q17: 0 | R17: 0 | S17: SFZ | T17: 0 | U17: 1 | V17: 0
C18: 2023-08-11 | D18: 2023-08-11 | E18: 8 | F18: 33 | G18: 1 | H18: 0 | I18: 0 | J18: 1 | K18: 1 | M18: 1 | N18: 1 | Q18: 0 | R18: 0 | S18: SFZ | T18: 0 | U18: 1 | V18: 0
C19: 2023-08-12 | D19: 2023-08-12 | E19: 8 | F19: 33 | G19: 0 | H19: 1 | I19: 0 | J19: 0 | K19: 0 | M19: 0 | N19: 0 | Q19: 0 | R19: 0 | S19: SFZ | T19: 0 | U19: 0 | V19: 0
C20: 2023-08-13 | D20: 2023-08-13 | E20: 8 | F20: 33 | G20: 0 | H20: 1 | I20: 0 | J20: 0 | K20: 0 | M20: 0 | N20: 0 | Q20: 0 | R20: 0 | S20: SFZ | T20: 0 | U20: 0 | V20: 0
C21: 2023-08-14 | D21: 2023-08-14 | E21: 8 | F21: 34 | G21: 1 | H21: 0 | I21: 0 | J21: 1 | K21: 1 | M21: 1 | N21: 1 | Q21: 0 | R21: 0 | S21: SFZ | T21: 0 | U21: 1 | V21: 0
C22: 2023-08-15 | D22: 2023-08-15 | E22: 8 | F22: 34 | G22: 1 | H22: 0 | I22: 1 | J22: 0 | K22: 0 | M22: 0 | N22: 0 | P22: Maria Himmelfahrt | Q22: 0 | R22: 0 | S22: SFZ | T22: 0 | U22: 0 | V22: 0
C23: 2023-08-16 | D23: 2023-08-16 | E23: 8 | F23: 34 | G23: 1 | H23: 0 | I23: 0 | J23: 1 | K23: 1 | M23: 1 | N23: 1 | Q23: 0 | R23: 0 | S23: SFZ | T23: 0 | U23: 1 | V23: 0
C24: 2023-08-17 | D24: 2023-08-17 | E24: 8 | F24: 34 | G24: 1 | H24: 0 | I24: 0 | J24: 1 | K24: 1 | M24: 1 | N24: 1 | Q24: 0 | R24: 0 | S24: SFZ | T24: 0 | U24: 1 | V24: 0
C25: 2023-08-18 | D25: 2023-08-18 | E25: 8 | F25: 34 | G25: 1 | H25: 0 | I25: 0 | J25: 1 | K25: 1 | M25: 1 | N25: 1 | Q25: 0 | R25: 0 | S25: SFZ | T25: 0 | U25: 1 | V25: 0
C26: 2023-08-19 | D26: 2023-08-19 | E26: 8 | F26: 34 | G26: 0 | H26: 1 | I26: 0 | J26: 0 | K26: 0 | M26: 0 | N26: 0 | Q26: 0 | R26: 0 | S26: SFZ | T26: 0 | U26: 0 | V26: 0
C27: 2023-08-20 | D27: 2023-08-20 | E27: 8 | F27: 34 | G27: 0 | H27: 1 | I27: 0 | J27: 0 | K27: 0 | M27: 0 | N27: 0 | Q27: 0 | R27: 0 | S27: SFZ | T27: 0 | U27: 0 | V27: 0
C28: 2023-08-21 | D28: 2023-08-21 | E28: 8 | F28: 35 | G28: 1 | H28: 0 | I28: 0 | J28: 1 | K28: 1 | M28: 1 | N28: 1 | Q28: 0 | R28: 0 | S28: SZ | T28: 1 | U28: 0 | V28: 0
C29: 2023-08-22 | D29: 2023-08-22 | E29: 8 | F29: 35 | G29: 1 | H29: 0 | I29: 0 | J29: 1 | K29: 1 | M29: 1 | N29: 1 | Q29: 0 | R29: 0 | S29: SZ | T29: 1 | U29: 0 | V29: 0
C30: 2023-08-23 | D30: 2023-08-23 | E30: 8 | F30: 35 | G30: 1 | H30: 0 | I30: 0 | J30: 1 | K30: 1 | M30: 1 | N30: 1 | Q30: 0 | R30: 0 | S30: SZ | T30: 1 | U30: 0 | V30: 0
C31: 2023-08-24 | D31: 2023-08-24 | E31: 8 | F31: 35 | G31: 1 | H31: 0 | I31: 0 | J31: 1 | K31: 1 | M31: 1 | N31: 1 | Q31: 0 | R31: 0 | S31: SZ | T31: 1 | U31: 0 | V31: 0
C32: 2023-08-25 | D32: 2023-08-25 | E32: 8 | F32: 35 | G32: 1 | H32: 0 | I32: 0 | J32: 1 | K32: 1 | M32: 1 | N32: 1 | Q32: 0 | R32: 0 | S32: SZ | T32: 1 | U32: 0 | V32: 0
C33: 2023-08-26 | D33: 2023-08-26 | E33: 8 | F33: 35 | G33: 0 | H33: 1 | I33: 0 | J33: 0 | K33: 0 | M33: 0 | N33: 0 | Q33: 0 | R33: 0 | S33: SZ | T33: 0 | U33: 0 | V33: 0
C34: 2023-08-27 | D34: 2023-08-27 | E34: 8 | F34: 35 | G34: 0 | H34: 1 | I34: 0 | J34: 0 | K34: 0 | M34: 0 | N34: 0 | Q34: 0 | R34: 0 | S34: SZ | T34: 0 | U34: 0 | V34: 0
C35: 2023-08-28 | D35: 2023-08-28 | E35: 8 | F35: 36 | G35: 1 | H35: 0 | I35: 0 | J35: 1 | K35: 1 | M35: 1 | N35: 1 | Q35: 0 | R35: 0 | S35: SZ | T35: 1 | U35: 0 | V35: 0
C36: 2023-08-29 | D36: 2023-08-29 | E36: 8 | F36: 36 | G36: 1 | H36: 0 | I36: 0 | J36: 1 | K36: 1 | M36: 1 | N36: 1 | Q36: 0 | R36: 0 | S36: SZ | T36: 1 | U36: 0 | V36: 0
C37: 2023-08-30 | D37: 2023-08-30 | E37: 8 | F37: 36 | G37: 1 | H37: 0 | I37: 0 | J37: 1 | K37: 1 | M37: 1 | N37: 1 | Q37: 0 | R37: 0 | S37: SZ | T37: 1 | U37: 0 | V37: 0
C38: 2023-08-31 | D38: 2023-08-31 | E38: 8 | F38: 36 | G38: 1 | H38: 0 | I38: 0 | J38: 1 | K38: 1 | M38: 1 | N38: 1 | Q38: 0 | R38: 0 | S38: SZ | T38: 1 | U38: 0 | V38: 0
B39: =C39 -> 2023-09-01 | C39: 2023-09-01 | D39: 2023-09-01 | E39: 9 | F39: 36 | G39: 1 | H39: 0 | I39: 0 | J39: 1 | K39: 1 | M39: 1 | N39: 1 | Q39: 0 | R39: 0 | S39: SZ | T39: 1 | U39: 0 | V39: 0
C40: 2023-09-02 | D40: 2023-09-02 | E40: 9 | F40: 36 | G40: 0 | H40: 1 | I40: 0 | J40: 0 | K40: 0 | M40: 0 | N40: 0 | Q40: 0 | R40: 0 | S40: SZ | T40: 0 | U40: 0 | V40: 0
C41: 2023-09-03 | D41: 2023-09-03 | E41: 9 | F41: 36 | G41: 0 | H41: 1 | I41: 0 | J41: 0 | K41: 0 | M41: 0 | N41: 0 | Q41: 0 | R41: 0 | S41: SZ | T41: 0 | U41: 0 | V41: 0
C42: 2023-09-04 | D42: 2023-09-04 | E42: 9 | F42: 37 | G42: 1 | H42: 0 | I42: 0 | J42: 1 | K42: 1 | M42: 1 | N42: 1 | Q42: 0 | R42: 0 | S42: SZ | T42: 1 | U42: 0 | V42: 0
C43: 2023-09-05 | D43: 2023-09-05 | E43: 9 | F43: 37 | G43: 1 | H43: 0 | I43: 0 | J43: 1 | K43: 1 | M43: 1 | N43: 1 | Q43: 0 | R43: 0 | S43: SZ | T43: 1 | U43: 0 | V43: 0
C44: 2023-09-06 | D44: 2023-09-06 | E44: 9 | F44: 37 | G44: 1 | H44: 0 | I44: 0 | J44: 1 | K44: 1 | M44: 1 | N44: 1 | Q44: 0 | R44: 0 | S44: SZ | T44: 1 | U44: 0 | V44: 0
C45: 2023-09-07 | D45: 2023-09-07 | E45: 9 | F45: 37 | G45: 1 | H45: 0 | I45: 0 | J45: 1 | K45: 1 | M45: 1 | N45: 1 | Q45: 0 | R45: 0 | S45: SZ | T45: 1 | U45: 0 | V45: 0
C46: 2023-09-08 | D46: 2023-09-08 | E46: 9 | F46: 37 | G46: 1 | H46: 0 | I46: 0 | J46: 1 | K46: 1 | M46: 1 | N46: 1 | Q46: 0 | R46: 0 | S46: SZ | T46: 1 | U46: 0 | V46: 0
C47: 2023-09-09 | D47: 2023-09-09 | E47: 9 | F47: 37 | G47: 0 | H47: 1 | I47: 0 | J47: 0 | K47: 0 | M47: 0 | N47: 0 | Q47: 0 | R47: 0 | S47: SZ | T47: 0 | U47: 0 | V47: 0
C48: 2023-09-10 | D48: 2023-09-10 | E48: 9 | F48: 37 | G48: 0 | H48: 1 | I48: 0 | J48: 0 | K48: 0 | M48: 0 | N48: 0 | Q48: 0 | R48: 0 | S48: SZ | T48: 0 | U48: 0 | V48: 0
C49: 2023-09-11 | D49: 2023-09-11 | E49: 9 | F49: 38 | G49: 1 | H49: 0 | I49: 0 | J49: 1 | K49: 1 | M49: 1 | N49: 1 | Q49: 0 | R49: 0 | S49: SZ | T49: 1 | U49: 0 | V49: 0
C50: 2023-09-12 | D50: 2023-09-12 | E50: 9 | F50: 38 | G50: 1 | H50: 0 | I50: 0 | J50: 1 | K50: 1 | M50: 1 | N50: 1 | Q50: 0 | R50: 0 | S50: SZ | T50: 1 | U50: 0 | V50: 0
C51: 2023-09-13 | D51: 2023-09-13 | E51: 9 | F51: 38 | G51: 1 | H51: 0 | I51: 0 | J51: 1 | K51: 1 | M51: 1 | N51: 1 | Q51: 0 | R51: 0 | S51: SZ | T51: 1 | U51: 0 | V51: 0
C52: 2023-09-14 | D52: 2023-09-14 | E52: 9 | F52: 38 | G52: 1 | H52: 0 | I52: 0 | J52: 1 | K52: 1 | M52: 1 | N52: 1 | Q52: 0 | R52: 0 | S52: SZ | T52: 1 | U52: 0 | V52: 0
C53: 2023-09-15 | D53: 2023-09-15 | E53: 9 | F53: 38 | G53: 1 | H53: 0 | I53: 0 | J53: 1 | K53: 1 | M53: 1 | N53: 1 | Q53: 0 | R53: 0 | S53: SZ | T53: 1 | U53: 0 | V53: 0
C54: 2023-09-16 | D54: 2023-09-16 | E54: 9 | F54: 38 | G54: 0 | H54: 1 | I54: 0 | J54: 0 | K54: 0 | M54: 0 | N54: 0 | Q54: 0 | R54: 0 | S54: SZ | T54: 0 | U54: 0 | V54: 0
C55: 2023-09-17 | D55: 2023-09-17 | E55: 9 | F55: 38 | G55: 0 | H55: 1 | I55: 0 | J55: 0 | K55: 0 | M55: 0 | N55: 0 | Q55: 0 | R55: 0 | S55: SZ | T55: 0 | U55: 0 | V55: 0
C56: 2023-09-18 | D56: 2023-09-18 | E56: 9 | F56: 39 | G56: 1 | H56: 0 | I56: 0 | J56: 1 | K56: 1 | M56: 1 | N56: 1 | Q56: 0 | R56: 0 | S56: SZ | T56: 1 | U56: 0 | V56: 0
C57: 2023-09-19 | D57: 2023-09-19 | E57: 9 | F57: 39 | G57: 1 | H57: 0 | I57: 0 | J57: 1 | K57: 1 | M57: 1 | N57: 1 | Q57: 0 | R57: 0 | S57: SZ | T57: 1 | U57: 0 | V57: 0
C58: 2023-09-20 | D58: 2023-09-20 | E58: 9 | F58: 39 | G58: 1 | H58: 0 | I58: 0 | J58: 1 | K58: 1 | M58: 1 | N58: 1 | Q58: 0 | R58: 0 | S58: SZ | T58: 1 | U58: 0 | V58: 0
C59: 2023-09-21 | D59: 2023-09-21 | E59: 9 | F59: 39 | G59: 1 | H59: 0 | I59: 0 | J59: 1 | K59: 1 | M59: 1 | N59: 1 | Q59: 0 | R59: 0 | S59: SZ | T59: 1 | U59: 0 | V59: 0
C60: 2023-09-22 | D60: 2023-09-22 | E60: 9 | F60: 39 | G60: 1 | H60: 0 | I60: 0 | J60: 1 | K60: 1 | M60: 1 | N60: 1 | Q60: 0 | R60: 0 | S60: SZ | T60: 1 | U60: 0 | V60: 0
C61: 2023-09-23 | D61: 2023-09-23 | E61: 9 | F61: 39 | G61: 0 | H61: 1 | I61: 0 | J61: 0 | K61: 0 | M61: 0 | N61: 0 | Q61: 0 | R61: 0 | S61: SZ | T61: 0 | U61: 0 | V61: 0
C62: 2023-09-24 | D62: 2023-09-24 | E62: 9 | F62: 39 | G62: 0 | H62: 1 | I62: 0 | J62: 0 | K62: 0 | M62: 0 | N62: 0 | Q62: 0 | R62: 0 | S62: SZ | T62: 0 | U62: 0 | V62: 0
C63: 2023-09-25 | D63: 2023-09-25 | E63: 9 | F63: 40 | G63: 1 | H63: 0 | I63: 0 | J63: 1 | K63: 1 | M63: 1 | N63: 1 | Q63: 0 | R63: 0 | S63: SZ | T63: 1 | U63: 0 | V63: 0
C64: 2023-09-26 | D64: 2023-09-26 | E64: 9 | F64: 40 | G64: 1 | H64: 0 | I64: 0 | J64: 1 | K64: 1 | M64: 1 | N64: 1 | Q64: 0 | R64: 0 | S64: SZ | T64: 1 | U64: 0 | V64: 0
C65: 2023-09-27 | D65: 2023-09-27 | E65: 9 | F65: 40 | G65: 1 | H65: 0 | I65: 0 | J65: 1 | K65: 1 | M65: 1 | N65: 1 | Q65: 0 | R65: 0 | S65: SZ | T65: 1 | U65: 0 | V65: 0
C66: 2023-09-28 | D66: 2023-09-28 | E66: 9 | F66: 40 | G66: 1 | H66: 0 | I66: 0 | J66: 1 | K66: 1 | M66: 1 | N66: 1 | Q66: 0 | R66: 0 | S66: SZ | T66: 1 | U66: 0 | V66: 0
C67: 2023-09-29 | D67: 2023-09-29 | E67: 9 | F67: 40 | G67: 1 | H67: 0 | I67: 0 | J67: 1 | K67: 1 | M67: 1 | N67: 1 | Q67: 0 | R67: 0 | S67: SZ | T67: 1 | U67: 0 | V67: 0
C68: 2023-09-30 | D68: 2023-09-30 | E68: 9 | F68: 40 | G68: 0 | H68: 1 | I68: 0 | J68: 0 | K68: 0 | M68: 0 | N68: 0 | Q68: 0 | R68: 0 | S68: SFZ | T68: 0 | U68: 0 | V68: 0
B69: =C69 -> 2023-10-01 | C69: 2023-10-01 | D69: 2023-10-01 | E69: 10 | F69: 40 | G69: 0 | H69: 1 | I69: 0 | J69: 0 | K69: 0 | M69: 0 | N69: 0 | Q69: 0 | R69: 0 | S69: SFZ | T69: 0 | U69: 0 | V69: 0
C70: 2023-10-02 | D70: 2023-10-02 | E70: 10 | F70: 41 | G70: 1 | H70: 0 | I70: 0 | J70: 1 | K70: 1 | M70: 1 | N70: 1 | Q70: 0 | R70: 0 | S70: SFZ | T70: 0 | U70: 1 | V70: 0
C71: 2023-10-03 | D71: 2023-10-03 | E71: 10 | F71: 41 | G71: 1 | H71: 0 | I71: 0 | J71: 1 | K71: 1 | M71: 1 | N71: 1 | Q71: 0 | R71: 0 | S71: SFZ | T71: 0 | U71: 1 | V71: 0
C72: 2023-10-04 | D72: 2023-10-04 | E72: 10 | F72: 41 | G72: 1 | H72: 0 | I72: 0 | J72: 1 | K72: 1 | M72: 1 | N72: 1 | Q72: 0 | R72: 0 | S72: SFZ | T72: 0 | U72: 1 | V72: 0
C73: 2023-10-05 | D73: 2023-10-05 | E73: 10 | F73: 41 | G73: 1 | H73: 0 | I73: 0 | J73: 1 | K73: =J73 -> 1 | M73: 1 | N73: =M73 -> 1 | Q73: 0 | R73: 0 | S73: SFZ | T73: 0 | U73: 1 | V73: 0
C74: =C73+1 -> 2023-10-06 | D74: 2023-10-06 | E74: 10 | F74: 41 | G74: 1 | H74: 0 | I74: 0 | J74: 1 | K74: 1 | M74: 1 | N74: 1 | Q74: 0 | R74: 0 | S74: SFZ | T74: 0 | U74: 1 | V74: 0
C75: 2023-10-07 | D75: 2023-10-07 | E75: 10 | F75: 41 | G75: 0 | H75: 1 | I75: 0 | J75: 0 | K75: 0 | M75: 0 | N75: 0 | Q75: 0 | R75: 0 | S75: SFZ | T75: 0 | U75: 0 | V75: 0
C76: 2023-10-08 | D76: 2023-10-08 | E76: 10 | F76: 41 | G76: 0 | H76: 1 | I76: 0 | J76: 0 | K76: 0 | M76: 0 | N76: 0 | Q76: 0 | R76: 0 | S76: SFZ | T76: 0 | U76: 0 | V76: 0
C77: 2023-10-09 | D77: 2023-10-09 | E77: 10 | F77: 42 | G77: 1 | H77: 0 | I77: 0 | J77: 1 | K77: 1 | M77: 1 | N77: 1 | Q77: 0 | R77: 0 | S77: SFZ | T77: 0 | U77: 1 | V77: 0
C78: 2023-10-10 | D78: 2023-10-10 | E78: 10 | F78: 42 | G78: 1 | H78: 0 | I78: 0 | J78: 1 | K78: 1 | M78: 1 | N78: 1 | Q78: 0 | R78: 0 | S78: SFZ | T78: 0 | U78: 1 | V78: 0
C79: 2023-10-11 | D79: 2023-10-11 | E79: 10 | F79: 42 | G79: 1 | H79: 0 | I79: 0 | J79: 1 | K79: 1 | M79: 1 | N79: 1 | Q79: 0 | R79: 0 | S79: SFZ | T79: 0 | U79: 1 | V79: 0
C80: 2023-10-12 | D80: =C80 -> 2023-10-12 | E80: =MONTH(C80) -> 10 | F80: =WEEKNUM(C80,2) -> 42 | G80: =IF(WEEKDAY(C80,2)>5,0,1) -> 1 | H80: =IF(WEEKDAY(C80,2)>5,1,0) -> 0 | I80: =IF(ISERROR(VLOOKUP(C80,tabFeiertage,2,FALSE)),0,VLOOKUP(C80,tabFeiertage,3,FALSE))*G80 -> 0 | J80: =G80-I80 -> 1 | K80: 1 | M80: =IF(AND(C80>=Pensum1_Start,C80<=Pensum1_Ende),1,0)*J80 -> 1 | N80: 1 | P80: =IF(ISERROR(VLOOKUP(C80,tabFeiertage,2,FALSE)),"",VLOOKUP(C80,tabFeiertage,2,FALSE)) ->  | Q80: =INDIRECT("RAZ_"& TEXT(WEEKDAY(C80,2),0) & "WT")*J80 -> 0 | R80: =INDIRECT("RAZ_"& TEXT(WEEKDAY(C80,2),0) & "WT")*J80*IF(M80>0,1,0) -> 0 | S80: SFZ | T80: =IF(UPPER(S80)="SZ",1,0)*J80*M80 -> 0 | U80: =IF(UPPER(S80)="SFZ",1,0)*J80*IF(M80>0,1,0) -> 1 | V80: =R80*IF(S80="SFZ",FaktorFZ,IF(S80="SZ",FaktorSZ,IF(S80="KT",0,1))) -> 0
C81: 2023-10-13 | D81: 2023-10-13 | E81: 10 | F81: 42 | G81: 1 | H81: 0 | I81: 0 | J81: 1 | K81: 1 | M81: 1 | N81: 1 | Q81: 0 | R81: 0 | S81: SFZ | T81: 0 | U81: 1 | V81: 0
C82: 2023-10-14 | D82: 2023-10-14 | E82: 10 | F82: 42 | G82: 0 | H82: 1 | I82: 0 | J82: 0 | K82: 0 | M82: 0 | N82: 0 | Q82: 0 | R82: 0 | S82: SFZ | T82: 0 | U82: 0 | V82: 0
C83: 2023-10-15 | D83: 2023-10-15 | E83: 10 | F83: 42 | G83: 0 | H83: 1 | I83: 0 | J83: 0 | K83: 0 | M83: 0 | N83: 0 | Q83: 0 | R83: 0 | S83: SFZ | T83: 0 | U83: 0 | V83: 0
C84: 2023-10-16 | D84: 2023-10-16 | E84: 10 | F84: 43 | G84: 1 | H84: 0 | I84: 0 | J84: 1 | K84: 1 | M84: 1 | N84: 1 | Q84: 0 | R84: 0 | S84: SZ | T84: 1 | U84: 0 | V84: 0
C85: 2023-10-17 | D85: 2023-10-17 | E85: 10 | F85: 43 | G85: 1 | H85: 0 | I85: 0 | J85: 1 | K85: 1 | M85: 1 | N85: 1 | Q85: 0 | R85: 0 | S85: SZ | T85: 1 | U85: 0 | V85: 0
C86: 2023-10-18 | D86: 2023-10-18 | E86: 10 | F86: 43 | G86: 1 | H86: 0 | I86: 0 | J86: 1 | K86: 1 | M86: 1 | N86: 1 | Q86: 0 | R86: 0 | S86: SZ | T86: 1 | U86: 0 | V86: 0
C87: 2023-10-19 | D87: 2023-10-19 | E87: 10 | F87: 43 | G87: 1 | H87: 0 | I87: 0 | J87: 1 | K87: 1 | M87: 1 | N87: 1 | Q87: 0 | R87: 0 | S87: SZ | T87: 1 | U87: 0 | V87: 0
C88: 2023-10-20 | D88: 2023-10-20 | E88: 10 | F88: 43 | G88: 1 | H88: 0 | I88: 0 | J88: 1 | K88: 1 | M88: 1 | N88: 1 | Q88: 0 | R88: 0 | S88: SZ | T88: 1 | U88: 0 | V88: 0
C89: 2023-10-21 | D89: 2023-10-21 | E89: 10 | F89: 43 | G89: 0 | H89: 1 | I89: 0 | J89: 0 | K89: 0 | M89: 0 | N89: 0 | Q89: 0 | R89: 0 | S89: SZ | T89: 0 | U89: 0 | V89: 0
C90: 2023-10-22 | D90: 2023-10-22 | E90: 10 | F90: 43 | G90: 0 | H90: 1 | I90: 0 | J90: 0 | K90: 0 | M90: 0 | N90: 0 | Q90: 0 | R90: 0 | S90: SZ | T90: 0 | U90: 0 | V90: 0
C91: 2023-10-23 | D91: 2023-10-23 | E91: 10 | F91: 44 | G91: 1 | H91: 0 | I91: 0 | J91: 1 | K91: 1 | M91: 1 | N91: 1 | Q91: 0 | R91: 0 | S91: SZ | T91: 1 | U91: 0 | V91: 0
C92: 2023-10-24 | D92: 2023-10-24 | E92: 10 | F92: 44 | G92: 1 | H92: 0 | I92: 0 | J92: 1 | K92: 1 | M92: 1 | N92: 1 | Q92: 0 | R92: 0 | S92: SZ | T92: 1 | U92: 0 | V92: 0
C93: 2023-10-25 | D93: 2023-10-25 | E93: 10 | F93: 44 | G93: 1 | H93: 0 | I93: 0 | J93: 1 | K93: 1 | M93: 1 | N93: 1 | Q93: 0 | R93: 0 | S93: SZ | T93: 1 | U93: 0 | V93: 0
C94: 2023-10-26 | D94: 2023-10-26 | E94: 10 | F94: 44 | G94: 1 | H94: 0 | I94: 0 | J94: 1 | K94: 1 | M94: 1 | N94: 1 | Q94: 0 | R94: 0 | S94: SZ | T94: 1 | U94: 0 | V94: 0
C95: 2023-10-27 | D95: 2023-10-27 | E95: 10 | F95: 44 | G95: 1 | H95: 0 | I95: 0 | J95: 1 | K95: 1 | M95: 1 | N95: 1 | Q95: 0 | R95: 0 | S95: SZ | T95: 1 | U95: 0 | V95: 0
C96: 2023-10-28 | D96: 2023-10-28 | E96: 10 | F96: 44 | G96: 0 | H96: 1 | I96: 0 | J96: 0 | K96: 0 | M96: 0 | N96: 0 | Q96: 0 | R96: 0 | S96: SZ | T96: 0 | U96: 0 | V96: 0
C97: 2023-10-29 | D97: 2023-10-29 | E97: 10 | F97: 44 | G97: 0 | H97: 1 | I97: 0 | J97: 0 | K97: 0 | M97: 0 | N97: 0 | Q97: 0 | R97: 0 | S97: SZ | T97: 0 | U97: 0 | V97: 0
C98: 2023-10-30 | D98: 2023-10-30 | E98: 10 | F98: 45 | G98: 1 | H98: 0 | I98: 0 | J98: 1 | K98: 1 | M98: 1 | N98: 1 | Q98: 0 | R98: 0 | S98: SZ | T98: 1 | U98: 0 | V98: 0
C99: 2023-10-31 | D99: 2023-10-31 | E99: 10 | F99: 45 | G99: 1 | H99: 0 | I99: 0 | J99: 1 | K99: 1 | M99: 1 | N99: 1 | Q99: 0 | R99: 0 | S99: SZ | T99: 1 | U99: 0 | V99: 0
B100: =C100 -> 2023-11-01 | C100: 2023-11-01 | D100: 2023-11-01 | E100: 11 | F100: 45 | G100: 1 | H100: 0 | I100: 1 | J100: 0 | K100: 0 | M100: 0 | N100: 0 | P100: Allerheiligen | Q100: 0 | R100: 0 | S100: SZ | T100: 0 | U100: 0 | V100: 0
C101: 2023-11-02 | D101: 2023-11-02 | E101: 11 | F101: 45 | G101: 1 | H101: 0 | I101: 0 | J101: 1 | K101: 1 | M101: 1 | N101: 1 | Q101: 0 | R101: 0 | S101: SZ | T101: 1 | U101: 0 | V101: 0
C102: 2023-11-03 | D102: 2023-11-03 | E102: 11 | F102: 45 | G102: 1 | H102: 0 | I102: 0 | J102: 1 | K102: 1 | M102: 1 | N102: 1 | Q102: 0 | R102: 0 | S102: SZ | T102: 1 | U102: 0 | V102: 0
C103: 2023-11-04 | D103: 2023-11-04 | E103: 11 | F103: 45 | G103: 0 | H103: 1 | I103: 0 | J103: 0 | K103: 0 | M103: 0 | N103: 0 | Q103: 0 | R103: 0 | S103: SZ | T103: 0 | U103: 0 | V103: 0
C104: 2023-11-05 | D104: 2023-11-05 | E104: 11 | F104: 45 | G104: 0 | H104: 1 | I104: 0 | J104: 0 | K104: 0 | M104: 0 | N104: 0 | Q104: 0 | R104: 0 | S104: SZ | T104: 0 | U104: 0 | V104: 0
C105: 2023-11-06 | D105: 2023-11-06 | E105: 11 | F105: 46 | G105: 1 | H105: 0 | I105: 0 | J105: 1 | K105: 1 | M105: 1 | N105: 1 | Q105: 0 | R105: 0 | S105: SZ | T105: 1 | U105: 0 | V105: 0
C106: 2023-11-07 | D106: 2023-11-07 | E106: 11 | F106: 46 | G106: 1 | H106: 0 | I106: 0 | J106: 1 | K106: 1 | M106: 1 | N106: 1 | Q106: 0 | R106: 0 | S106: SZ | T106: 1 | U106: 0 | V106: 0
C107: 2023-11-08 | D107: 2023-11-08 | E107: 11 | F107: 46 | G107: 1 | H107: 0 | I107: 0 | J107: 1 | K107: 1 | M107: 1 | N107: 1 | Q107: 0 | R107: 0 | S107: SZ | T107: 1 | U107: 0 | V107: 0
C108: 2023-11-09 | D108: 2023-11-09 | E108: 11 | F108: 46 | G108: 1 | H108: 0 | I108: 0 | J108: 1 | K108: 1 | M108: 1 | N108: 1 | Q108: 0 | R108: 0 | S108: SZ | T108: 1 | U108: 0 | V108: 0
C109: 2023-11-10 | D109: 2023-11-10 | E109: 11 | F109: 46 | G109: 1 | H109: 0 | I109: 0 | J109: 1 | K109: 1 | M109: 1 | N109: 1 | Q109: 0 | R109: 0 | S109: SZ | T109: 1 | U109: 0 | V109: 0
C110: 2023-11-11 | D110: 2023-11-11 | E110: 11 | F110: 46 | G110: 0 | H110: 1 | I110: 0 | J110: 0 | K110: 0 | M110: 0 | N110: 0 | Q110: 0 | R110: 0 | S110: SZ | T110: 0 | U110: 0 | V110: 0
C111: 2023-11-12 | D111: 2023-11-12 | E111: 11 | F111: 46 | G111: 0 | H111: 1 | I111: 0 | J111: 0 | K111: 0 | M111: 0 | N111: 0 | Q111: 0 | R111: 0 | S111: SZ | T111: 0 | U111: 0 | V111: 0
C112: 2023-11-13 | D112: 2023-11-13 | E112: 11 | F112: 47 | G112: 1 | H112: 0 | I112: 0 | J112: 1 | K112: 1 | M112: 1 | N112: 1 | Q112: 0 | R112: 0 | S112: SZ | T112: 1 | U112: 0 | V112: 0
C113: 2023-11-14 | D113: 2023-11-14 | E113: 11 | F113: 47 | G113: 1 | H113: 0 | I113: 0 | J113: 1 | K113: 1 | M113: 1 | N113: 1 | Q113: 0 | R113: 0 | S113: SZ | T113: 1 | U113: 0 | V113: 0
C114: 2023-11-15 | D114: 2023-11-15 | E114: 11 | F114: 47 | G114: 1 | H114: 0 | I114: 0 | J114: 1 | K114: 1 | M114: 1 | N114: 1 | Q114: 0 | R114: 0 | S114: SZ | T114: 1 | U114: 0 | V114: 0
C115: 2023-11-16 | D115: 2023-11-16 | E115: 11 | F115: 47 | G115: 1 | H115: 0 | I115: 0 | J115: 1 | K115: 1 | M115: 1 | N115: 1 | Q115: 0 | R115: 0 | S115: SZ | T115: 1 | U115: 0 | V115: 0
C116: 2023-11-17 | D116: 2023-11-17 | E116: 11 | F116: 47 | G116: 1 | H116: 0 | I116: 0 | J116: 1 | K116: 1 | M116: 1 | N116: 1 | Q116: 0 | R116: 0 | S116: SZ | T116: 1 | U116: 0 | V116: 0
C117: 2023-11-18 | D117: 2023-11-18 | E117: 11 | F117: 47 | G117: 0 | H117: 1 | I117: 0 | J117: 0 | K117: 0 | M117: 0 | N117: 0 | Q117: 0 | R117: 0 | S117: SZ | T117: 0 | U117: 0 | V117: 0
C118: 2023-11-19 | D118: 2023-11-19 | E118: 11 | F118: 47 | G118: 0 | H118: 1 | I118: 0 | J118: 0 | K118: 0 | M118: 0 | N118: 0 | Q118: 0 | R118: 0 | S118: SZ | T118: 0 | U118: 0 | V118: 0
C119: 2023-11-20 | D119: 2023-11-20 | E119: 11 | F119: 48 | G119: 1 | H119: 0 | I119: 0 | J119: 1 | K119: 1 | M119: 1 | N119: 1 | Q119: 0 | R119: 0 | S119: SZ | T119: 1 | U119: 0 | V119: 0
C120: 2023-11-21 | D120: 2023-11-21 | E120: 11 | F120: 48 | G120: 1 | H120: 0 | I120: 0 | J120: 1 | K120: 1 | M120: 1 | N120: 1 | Q120: 0 | R120: 0 | S120: SZ | T120: 1 | U120: 0 | V120: 0
C121: 2023-11-22 | D121: 2023-11-22 | E121: 11 | F121: 48 | G121: 1 | H121: 0 | I121: 0 | J121: 1 | K121: 1 | M121: 1 | N121: 1 | Q121: 0 | R121: 0 | S121: SZ | T121: 1 | U121: 0 | V121: 0
C122: 2023-11-23 | D122: 2023-11-23 | E122: 11 | F122: 48 | G122: 1 | H122: 0 | I122: 0 | J122: 1 | K122: 1 | M122: 1 | N122: 1 | Q122: 0 | R122: 0 | S122: SZ | T122: 1 | U122: 0 | V122: 0
C123: 2023-11-24 | D123: 2023-11-24 | E123: 11 | F123: 48 | G123: 1 | H123: 0 | I123: 0 | J123: 1 | K123: 1 | M123: 1 | N123: 1 | Q123: 0 | R123: 0 | S123: SZ | T123: 1 | U123: 0 | V123: 0
C124: 2023-11-25 | D124: 2023-11-25 | E124: 11 | F124: 48 | G124: 0 | H124: 1 | I124: 0 | J124: 0 | K124: 0 | M124: 0 | N124: 0 | Q124: 0 | R124: 0 | S124: SZ | T124: 0 | U124: 0 | V124: 0
C125: 2023-11-26 | D125: 2023-11-26 | E125: 11 | F125: 48 | G125: 0 | H125: 1 | I125: 0 | J125: 0 | K125: 0 | M125: 0 | N125: 0 | Q125: 0 | R125: 0 | S125: SZ | T125: 0 | U125: 0 | V125: 0
C126: 2023-11-27 | D126: 2023-11-27 | E126: 11 | F126: 49 | G126: 1 | H126: 0 | I126: 0 | J126: 1 | K126: 1 | M126: 1 | N126: 1 | Q126: 0 | R126: 0 | S126: SZ | T126: 1 | U126: 0 | V126: 0
C127: 2023-11-28 | D127: 2023-11-28 | E127: 11 | F127: 49 | G127: 1 | H127: 0 | I127: 0 | J127: 1 | K127: 1 | M127: 1 | N127: 1 | Q127: 0 | R127: 0 | S127: SZ | T127: 1 | U127: 0 | V127: 0
C128: 2023-11-29 | D128: 2023-11-29 | E128: 11 | F128: 49 | G128: 1 | H128: 0 | I128: 0 | J128: 1 | K128: 1 | M128: 1 | N128: 1 | Q128: 0 | R128: 0 | S128: SZ | T128: 1 | U128: 0 | V128: 0
C129: 2023-11-30 | D129: 2023-11-30 | E129: 11 | F129: 49 | G129: 1 | H129: 0 | I129: 0 | J129: 1 | K129: 1 | M129: 1 | N129: 1 | Q129: 0 | R129: 0 | S129: SZ | T129: 1 | U129: 0 | V129: 0
B130: =C130 -> 2023-12-01 | C130: 2023-12-01 | D130: 2023-12-01 | E130: 12 | F130: 49 | G130: 1 | H130: 0 | I130: 0 | J130: 1 | K130: 1 | M130: 1 | N130: 1 | Q130: 0 | R130: 0 | S130: SZ | T130: 1 | U130: 0 | V130: 0
C131: 2023-12-02 | D131: 2023-12-02 | E131: 12 | F131: 49 | G131: 0 | H131: 1 | I131: 0 | J131: 0 | K131: 0 | M131: 0 | N131: 0 | Q131: 0 | R131: 0 | S131: SZ | T131: 0 | U131: 0 | V131: 0
C132: 2023-12-03 | D132: 2023-12-03 | E132: 12 | F132: 49 | G132: 0 | H132: 1 | I132: 0 | J132: 0 | K132: 0 | M132: 0 | N132: 0 | Q132: 0 | R132: 0 | S132: SZ | T132: 0 | U132: 0 | V132: 0
C133: 2023-12-04 | D133: 2023-12-04 | E133: 12 | F133: 50 | G133: 1 | H133: 0 | I133: 0 | J133: 1 | K133: 1 | M133: 1 | N133: 1 | Q133: 0 | R133: 0 | S133: SZ | T133: 1 | U133: 0 | V133: 0
C134: 2023-12-05 | D134: 2023-12-05 | E134: 12 | F134: 50 | G134: 1 | H134: 0 | I134: 0 | J134: 1 | K134: 1 | M134: 1 | N134: 1 | Q134: 0 | R134: 0 | S134: SZ | T134: 1 | U134: 0 | V134: 0
C135: 2023-12-06 | D135: 2023-12-06 | E135: 12 | F135: 50 | G135: 1 | H135: 0 | I135: 0 | J135: 1 | K135: 1 | M135: 1 | N135: 1 | Q135: 0 | R135: 0 | S135: SZ | T135: 1 | U135: 0 | V135: 0
C136: 2023-12-07 | D136: 2023-12-07 | E136: 12 | F136: 50 | G136: 1 | H136: 0 | I136: 0 | J136: 1 | K136: 1 | M136: 1 | N136: 1 | Q136: 0 | R136: 0 | S136: SZ | T136: 1 | U136: 0 | V136: 0
C137: 2023-12-08 | D137: 2023-12-08 | E137: 12 | F137: 50 | G137: 1 | H137: 0 | I137: 1 | J137: 0 | K137: =J137 -> 0 | M137: 0 | N137: =M137 -> 0 | P137: Maria Empfängnis | Q137: 0 | R137: 0 | S137: SZ | T137: 0 | U137: 0 | V137: 0
C138: =C137+1 -> 2023-12-09 | D138: 2023-12-09 | E138: 12 | F138: 50 | G138: 0 | H138: 1 | I138: 0 | J138: 0 | K138: 0 | M138: 0 | N138: 0 | Q138: 0 | R138: 0 | S138: SZ | T138: 0 | U138: 0 | V138: 0
C139: 2023-12-10 | D139: 2023-12-10 | E139: 12 | F139: 50 | G139: 0 | H139: 1 | I139: 0 | J139: 0 | K139: 0 | M139: 0 | N139: 0 | Q139: 0 | R139: 0 | S139: SZ | T139: 0 | U139: 0 | V139: 0
C140: 2023-12-11 | D140: 2023-12-11 | E140: 12 | F140: 51 | G140: 1 | H140: 0 | I140: 0 | J140: 1 | K140: 1 | M140: 1 | N140: 1 | Q140: 0 | R140: 0 | S140: SZ | T140: 1 | U140: 0 | V140: 0
C141: 2023-12-12 | D141: 2023-12-12 | E141: 12 | F141: 51 | G141: 1 | H141: 0 | I141: 0 | J141: 1 | K141: 1 | M141: 1 | N141: 1 | Q141: 0 | R141: 0 | S141: SZ | T141: 1 | U141: 0 | V141: 0
C142: 2023-12-13 | D142: 2023-12-13 | E142: 12 | F142: 51 | G142: 1 | H142: 0 | I142: 0 | J142: 1 | K142: 1 | M142: 1 | N142: 1 | Q142: 0 | R142: 0 | S142: SZ | T142: 1 | U142: 0 | V142: 0
C143: 2023-12-14 | D143: 2023-12-14 | E143: 12 | F143: 51 | G143: 1 | H143: 0 | I143: 0 | J143: 1 | K143: 1 | M143: 1 | N143: 1 | Q143: 0 | R143: 0 | S143: SZ | T143: 1 | U143: 0 | V143: 0
C144: 2023-12-15 | D144: =C144 -> 2023-12-15 | E144: =MONTH(C144) -> 12 | F144: =WEEKNUM(C144,2) -> 51 | G144: =IF(WEEKDAY(C144,2)>5,0,1) -> 1 | H144: =IF(WEEKDAY(C144,2)>5,1,0) -> 0 | I144: =IF(ISERROR(VLOOKUP(C144,tabFeiertage,2,FALSE)),0,VLOOKUP(C144,tabFeiertage,3,FALSE))*G144 -> 0 | J144: =G144-I144 -> 1 | K144: 1 | M144: =IF(AND(C144>=Pensum1_Start,C144<=Pensum1_Ende),1,0)*J144 -> 1 | N144: 1 | P144: =IF(ISERROR(VLOOKUP(C144,tabFeiertage,2,FALSE)),"",VLOOKUP(C144,tabFeiertage,2,FALSE)) ->  | Q144: =INDIRECT("RAZ_"& TEXT(WEEKDAY(C144,2),0) & "WT")*J144 -> 0 | R144: =INDIRECT("RAZ_"& TEXT(WEEKDAY(C144,2),0) & "WT")*J144*IF(M144>0,1,0) -> 0 | S144: SZ | T144: =IF(UPPER(S144)="SZ",1,0)*J144*M144 -> 1 | U144: =IF(UPPER(S144)="SFZ",1,0)*J144*IF(M144>0,1,0) -> 0 | V144: =R144*IF(S144="SFZ",FaktorFZ,IF(S144="SZ",FaktorSZ,IF(S144="KT",0,1))) -> 0
C145: 2023-12-16 | D145: 2023-12-16 | E145: 12 | F145: 51 | G145: 0 | H145: 1 | I145: 0 | J145: 0 | K145: 0 | M145: 0 | N145: 0 | Q145: 0 | R145: 0 | S145: SZ | T145: 0 | U145: 0 | V145: 0
C146: 2023-12-17 | D146: 2023-12-17 | E146: 12 | F146: 51 | G146: 0 | H146: 1 | I146: 0 | J146: 0 | K146: 0 | M146: 0 | N146: 0 | Q146: 0 | R146: 0 | S146: SZ | T146: 0 | U146: 0 | V146: 0
C147: 2023-12-18 | D147: 2023-12-18 | E147: 12 | F147: 52 | G147: 1 | H147: 0 | I147: 0 | J147: 1 | K147: 1 | M147: 1 | N147: 1 | Q147: 0 | R147: 0 | S147: SZ | T147: 1 | U147: 0 | V147: 0
C148: 2023-12-19 | D148: 2023-12-19 | E148: 12 | F148: 52 | G148: 1 | H148: 0 | I148: 0 | J148: 1 | K148: 1 | M148: 1 | N148: 1 | Q148: 0 | R148: 0 | S148: SZ | T148: 1 | U148: 0 | V148: 0
C149: 2023-12-20 | D149: 2023-12-20 | E149: 12 | F149: 52 | G149: 1 | H149: 0 | I149: 0 | J149: 1 | K149: 1 | M149: 1 | N149: 1 | Q149: 0 | R149: 0 | S149: SZ | T149: 1 | U149: 0 | V149: 0
C150: 2023-12-21 | D150: 2023-12-21 | E150: 12 | F150: 52 | G150: 1 | H150: 0 | I150: 0 | J150: 1 | K150: 1 | M150: 1 | N150: 1 | Q150: 0 | R150: 0 | S150: SZ | T150: 1 | U150: 0 | V150: 0
C151: 2023-12-22 | D151: 2023-12-22 | E151: 12 | F151: 52 | G151: 1 | H151: 0 | I151: 0 | J151: 1 | K151: 1 | M151: 1 | N151: 1 | Q151: 0 | R151: 0 | S151: SZ | T151: 1 | U151: 0 | V151: 0
C152: 2023-12-23 | D152: 2023-12-23 | E152: 12 | F152: 52 | G152: 0 | H152: 1 | I152: 0 | J152: 0 | K152: 0 | M152: 0 | N152: 0 | Q152: 0 | R152: 0 | S152: SFZ | T152: 0 | U152: 0 | V152: 0
C153: 2023-12-24 | D153: 2023-12-24 | E153: 12 | F153: 52 | G153: 0 | H153: 1 | I153: 0 | J153: 0 | K153: 0 | M153: 0 | N153: 0 | P153: Heiligabend | Q153: 0 | R153: 0 | S153: SFZ | T153: 0 | U153: 0 | V153: 0
C154: 2023-12-25 | D154: 2023-12-25 | E154: 12 | F154: 53 | G154: 1 | H154: 0 | I154: 1 | J154: 0 | K154: 0 | M154: 0 | N154: 0 | P154: Weihnachtstag | Q154: 0 | R154: 0 | S154: SFZ | T154: 0 | U154: 0 | V154: 0
C155: 2023-12-26 | D155: 2023-12-26 | E155: 12 | F155: 53 | G155: 1 | H155: 0 | I155: 1 | J155: 0 | K155: 0 | M155: 0 | N155: 0 | P155: Stephanstag | Q155: 0 | R155: 0 | S155: SFZ | T155: 0 | U155: 0 | V155: 0
C156: 2023-12-27 | D156: 2023-12-27 | E156: 12 | F156: 53 | G156: 1 | H156: 0 | I156: 0 | J156: 1 | K156: 1 | M156: 1 | N156: 1 | Q156: 0 | R156: 0 | S156: SFZ | T156: 0 | U156: 1 | V156: 0
C157: 2023-12-28 | D157: 2023-12-28 | E157: 12 | F157: 53 | G157: 1 | H157: 0 | I157: 0 | J157: 1 | K157: 1 | M157: 1 | N157: 1 | Q157: 0 | R157: 0 | S157: SFZ | T157: 0 | U157: 1 | V157: 0
C158: 2023-12-29 | D158: 2023-12-29 | E158: 12 | F158: 53 | G158: 1 | H158: 0 | I158: 0 | J158: 1 | K158: 1 | M158: 1 | N158: 1 | Q158: 0 | R158: 0 | S158: SFZ | T158: 0 | U158: 1 | V158: 0
C159: 2023-12-30 | D159: 2023-12-30 | E159: 12 | F159: 53 | G159: 0 | H159: 1 | I159: 0 | J159: 0 | K159: 0 | M159: 0 | N159: 0 | Q159: 0 | R159: 0 | S159: SFZ | T159: 0 | U159: 0 | V159: 0
C160: 2023-12-31 | D160: 2023-12-31 | E160: 12 | F160: 53 | G160: 0 | H160: 1 | I160: 0 | J160: 0 | K160: 0 | M160: 0 | N160: 0 | P160: Silvester | Q160: 0 | R160: 0 | S160: SFZ | T160: 0 | U160: 0 | V160: 0
B161: =C161 -> 2024-01-01 | C161: 2024-01-01 | D161: 2024-01-01 | E161: 1 | F161: 1 | G161: 1 | H161: 0 | I161: 1 | J161: 0 | L161: =J161 -> 0 | M161: 0 | O161: =M161 -> 0 | P161: Neujahr | Q161: 0 | R161: 0 | S161: SFZ | T161: 0 | U161: 0 | V161: 0
C162: 2024-01-02 | D162: 2024-01-02 | E162: 1 | F162: 1 | G162: 1 | H162: 0 | I162: 1 | J162: 0 | L162: =J162 -> 0 | M162: 0 | O162: =M162 -> 0 | P162: Berchtoldstag | Q162: 0 | R162: 0 | S162: SFZ | T162: 0 | U162: 0 | V162: 0
C163: 2024-01-03 | D163: 2024-01-03 | E163: 1 | F163: 1 | G163: 1 | H163: 0 | I163: 0 | J163: 1 | L163: 1 | M163: 1 | O163: 1 | Q163: 0 | R163: 0 | S163: SFZ | T163: 0 | U163: 1 | V163: 0
C164: 2024-01-04 | D164: 2024-01-04 | E164: 1 | F164: 1 | G164: 1 | H164: 0 | I164: 0 | J164: 1 | L164: 1 | M164: 1 | O164: 1 | Q164: 0 | R164: 0 | S164: SFZ | T164: 0 | U164: 1 | V164: 0
C165: 2024-01-05 | D165: 2024-01-05 | E165: 1 | F165: 1 | G165: 1 | H165: 0 | I165: 0 | J165: 1 | L165: 1 | M165: 1 | O165: 1 | Q165: 0 | R165: 0 | S165: SFZ | T165: 0 | U165: 1 | V165: 0
C166: 2024-01-06 | D166: 2024-01-06 | E166: 1 | F166: 1 | G166: 0 | H166: 1 | I166: 0 | J166: 0 | L166: 0 | M166: 0 | O166: 0 | Q166: 0 | R166: 0 | S166: SFZ | T166: 0 | U166: 0 | V166: 0
C167: 2024-01-07 | D167: 2024-01-07 | E167: 1 | F167: 1 | G167: 0 | H167: 1 | I167: 0 | J167: 0 | L167: 0 | M167: 0 | O167: 0 | Q167: 0 | R167: 0 | S167: SFZ | T167: 0 | U167: 0 | V167: 0
C168: 2024-01-08 | D168: 2024-01-08 | E168: 1 | F168: 2 | G168: 1 | H168: 0 | I168: 0 | J168: 1 | L168: 1 | M168: 1 | O168: 1 | Q168: 0 | R168: 0 | S168: SZ | T168: 1 | U168: 0 | V168: 0
C169: 2024-01-09 | D169: 2024-01-09 | E169: 1 | F169: 2 | G169: 1 | H169: 0 | I169: 0 | J169: 1 | L169: 1 | M169: 1 | O169: 1 | Q169: 0 | R169: 0 | S169: SZ | T169: 1 | U169: 0 | V169: 0
C170: 2024-01-10 | D170: 2024-01-10 | E170: 1 | F170: 2 | G170: 1 | H170: 0 | I170: 0 | J170: 1 | L170: 1 | M170: 1 | O170: 1 | Q170: 0 | R170: 0 | S170: SZ | T170: 1 | U170: 0 | V170: 0
C171: 2024-01-11 | D171: 2024-01-11 | E171: 1 | F171: 2 | G171: 1 | H171: 0 | I171: 0 | J171: 1 | L171: 1 | M171: 1 | O171: 1 | Q171: 0 | R171: 0 | S171: SZ | T171: 1 | U171: 0 | V171: 0
C172: 2024-01-12 | D172: 2024-01-12 | E172: 1 | F172: 2 | G172: 1 | H172: 0 | I172: 0 | J172: 1 | L172: 1 | M172: 1 | O172: 1 | Q172: 0 | R172: 0 | S172: SZ | T172: 1 | U172: 0 | V172: 0
C173: 2024-01-13 | D173: 2024-01-13 | E173: 1 | F173: 2 | G173: 0 | H173: 1 | I173: 0 | J173: 0 | L173: 0 | M173: 0 | O173: 0 | Q173: 0 | R173: 0 | S173: SZ | T173: 0 | U173: 0 | V173: 0
C174: 2024-01-14 | D174: 2024-01-14 | E174: 1 | F174: 2 | G174: 0 | H174: 1 | I174: 0 | J174: 0 | L174: 0 | M174: 0 | O174: 0 | Q174: 0 | R174: 0 | S174: SZ | T174: 0 | U174: 0 | V174: 0
C175: 2024-01-15 | D175: 2024-01-15 | E175: 1 | F175: 3 | G175: 1 | H175: 0 | I175: 0 | J175: 1 | L175: 1 | M175: 1 | O175: 1 | Q175: 0 | R175: 0 | S175: SZ | T175: 1 | U175: 0 | V175: 0
C176: 2024-01-16 | D176: 2024-01-16 | E176: 1 | F176: 3 | G176: 1 | H176: 0 | I176: 0 | J176: 1 | L176: 1 | M176: 1 | O176: 1 | Q176: 0 | R176: 0 | S176: SZ | T176: 1 | U176: 0 | V176: 0
C177: 2024-01-17 | D177: 2024-01-17 | E177: 1 | F177: 3 | G177: 1 | H177: 0 | I177: 0 | J177: 1 | L177: 1 | M177: 1 | O177: 1 | Q177: 0 | R177: 0 | S177: SZ | T177: 1 | U177: 0 | V177: 0
C178: 2024-01-18 | D178: 2024-01-18 | E178: 1 | F178: 3 | G178: 1 | H178: 0 | I178: 0 | J178: 1 | L178: 1 | M178: 1 | O178: 1 | Q178: 0 | R178: 0 | S178: SZ | T178: 1 | U178: 0 | V178: 0
C179: 2024-01-19 | D179: 2024-01-19 | E179: 1 | F179: 3 | G179: 1 | H179: 0 | I179: 0 | J179: 1 | L179: 1 | M179: 1 | O179: 1 | Q179: 0 | R179: 0 | S179: SZ | T179: 1 | U179: 0 | V179: 0
C180: 2024-01-20 | D180: 2024-01-20 | E180: 1 | F180: 3 | G180: 0 | H180: 1 | I180: 0 | J180: 0 | L180: 0 | M180: 0 | O180: 0 | Q180: 0 | R180: 0 | S180: SZ | T180: 0 | U180: 0 | V180: 0
C181: 2024-01-21 | D181: 2024-01-21 | E181: 1 | F181: 3 | G181: 0 | H181: 1 | I181: 0 | J181: 0 | L181: 0 | M181: 0 | O181: 0 | Q181: 0 | R181: 0 | S181: SZ | T181: 0 | U181: 0 | V181: 0
C182: 2024-01-22 | D182: 2024-01-22 | E182: 1 | F182: 4 | G182: 1 | H182: 0 | I182: 0 | J182: 1 | L182: 1 | M182: 1 | O182: 1 | Q182: 0 | R182: 0 | S182: SZ | T182: 1 | U182: 0 | V182: 0
C183: 2024-01-23 | D183: 2024-01-23 | E183: 1 | F183: 4 | G183: 1 | H183: 0 | I183: 0 | J183: 1 | L183: 1 | M183: 1 | O183: 1 | Q183: 0 | R183: 0 | S183: SZ | T183: 1 | U183: 0 | V183: 0
C184: 2024-01-24 | D184: 2024-01-24 | E184: 1 | F184: 4 | G184: 1 | H184: 0 | I184: 0 | J184: 1 | L184: 1 | M184: 1 | O184: 1 | Q184: 0 | R184: 0 | S184: SZ | T184: 1 | U184: 0 | V184: 0
C185: 2024-01-25 | D185: 2024-01-25 | E185: 1 | F185: 4 | G185: 1 | H185: 0 | I185: 0 | J185: 1 | L185: 1 | M185: 1 | O185: 1 | Q185: 0 | R185: 0 | S185: SZ | T185: 1 | U185: 0 | V185: 0
C186: 2024-01-26 | D186: 2024-01-26 | E186: 1 | F186: 4 | G186: 1 | H186: 0 | I186: 0 | J186: 1 | L186: 1 | M186: 1 | O186: 1 | Q186: 0 | R186: 0 | S186: SZ | T186: 1 | U186: 0 | V186: 0
C187: 2024-01-27 | D187: 2024-01-27 | E187: 1 | F187: 4 | G187: 0 | H187: 1 | I187: 0 | J187: 0 | L187: 0 | M187: 0 | O187: 0 | Q187: 0 | R187: 0 | S187: SZ | T187: 0 | U187: 0 | V187: 0
C188: 2024-01-28 | D188: 2024-01-28 | E188: 1 | F188: 4 | G188: 0 | H188: 1 | I188: 0 | J188: 0 | L188: 0 | M188: 0 | O188: 0 | Q188: 0 | R188: 0 | S188: SZ | T188: 0 | U188: 0 | V188: 0
C189: 2024-01-29 | D189: 2024-01-29 | E189: 1 | F189: 5 | G189: 1 | H189: 0 | I189: 0 | J189: 1 | L189: 1 | M189: 1 | O189: 1 | Q189: 0 | R189: 0 | S189: SZ | T189: 1 | U189: 0 | V189: 0
C190: 2024-01-30 | D190: 2024-01-30 | E190: 1 | F190: 5 | G190: 1 | H190: 0 | I190: 0 | J190: 1 | L190: 1 | M190: 1 | O190: 1 | Q190: 0 | R190: 0 | S190: SZ | T190: 1 | U190: 0 | V190: 0
C191: 2024-01-31 | D191: 2024-01-31 | E191: 1 | F191: 5 | G191: 1 | H191: 0 | I191: 0 | J191: 1 | L191: 1 | M191: 1 | O191: 1 | Q191: 0 | R191: 0 | S191: SZ | T191: 1 | U191: 0 | V191: 0
B192: =C192 -> 2024-02-01 | C192: 2024-02-01 | D192: 2024-02-01 | E192: 2 | F192: 5 | G192: 1 | H192: 0 | I192: 0 | J192: 1 | L192: 1 | M192: 1 | O192: 1 | Q192: 0 | R192: 0 | S192: SZ | T192: 1 | U192: 0 | V192: 0
C193: 2024-02-02 | D193: 2024-02-02 | E193: 2 | F193: 5 | G193: 1 | H193: 0 | I193: 0 | J193: 1 | L193: 1 | M193: 1 | O193: 1 | Q193: 0 | R193: 0 | S193: SZ | T193: 1 | U193: 0 | V193: 0
C194: 2024-02-03 | D194: 2024-02-03 | E194: 2 | F194: 5 | G194: 0 | H194: 1 | I194: 0 | J194: 0 | L194: 0 | M194: 0 | O194: 0 | Q194: 0 | R194: 0 | S194: SFZ | T194: 0 | U194: 0 | V194: 0
C195: 2024-02-04 | D195: 2024-02-04 | E195: 2 | F195: 5 | G195: 0 | H195: 1 | I195: 0 | J195: 0 | L195: 0 | M195: 0 | O195: 0 | Q195: 0 | R195: 0 | S195: SFZ | T195: 0 | U195: 0 | V195: 0
C196: 2024-02-05 | D196: 2024-02-05 | E196: 2 | F196: 6 | G196: 1 | H196: 0 | I196: 0 | J196: 1 | L196: 1 | M196: 1 | O196: 1 | Q196: 0 | R196: 0 | S196: SFZ | T196: 0 | U196: 1 | V196: 0
C197: 2024-02-06 | D197: 2024-02-06 | E197: 2 | F197: 6 | G197: 1 | H197: 0 | I197: 0 | J197: 1 | L197: 1 | M197: 1 | O197: 1 | Q197: 0 | R197: 0 | S197: SFZ | T197: 0 | U197: 1 | V197: 0
C198: 2024-02-07 | D198: 2024-02-07 | E198: 2 | F198: 6 | G198: 1 | H198: 0 | I198: 0 | J198: 1 | L198: 1 | M198: 1 | O198: 1 | Q198: 0 | R198: 0 | S198: SFZ | T198: 0 | U198: 1 | V198: 0
C199: 2024-02-08 | D199: 2024-02-08 | E199: 2 | F199: 6 | G199: 1 | H199: 0 | I199: 0 | J199: 1 | L199: 1 | M199: 1 | O199: 1 | Q199: 0 | R199: 0 | S199: SFZ | T199: 0 | U199: 1 | V199: 0
C200: 2024-02-09 | D200: 2024-02-09 | E200: 2 | F200: 6 | G200: 1 | H200: 0 | I200: 0 | J200: 1 | L200: 1 | M200: 1 | O200: 1 | Q200: 0 | R200: 0 | S200: SFZ | T200: 0 | U200: 1 | V200: 0
C201: 2024-02-10 | D201: 2024-02-10 | E201: 2 | F201: 6 | G201: 0 | H201: 1 | I201: 0 | J201: 0 | L201: 0 | M201: 0 | O201: 0 | Q201: 0 | R201: 0 | S201: SFZ | T201: 0 | U201: 0 | V201: 0
C202: =C201+1 -> 2024-02-11 | D202: 2024-02-11 | E202: 2 | F202: 6 | G202: 0 | H202: 1 | I202: 0 | J202: 0 | L202: 0 | M202: 0 | O202: 0 | Q202: 0 | R202: 0 | S202: SFZ | T202: 0 | U202: 0 | V202: 0
C203: 2024-02-12 | D203: 2024-02-12 | E203: 2 | F203: 7 | G203: 1 | H203: 0 | I203: 0 | J203: 1 | L203: 1 | M203: 1 | O203: 1 | Q203: 0 | R203: 0 | S203: SFZ | T203: 0 | U203: 1 | V203: 0
... 170 more rows

Sheet Feiertage
B1: ="Feiertage " &TEXT(Jahresbezeichnung,"") -> Feiertage 2023/2024
B5: Datum | C5: Bezeichnung | D5: Tagesanteil | E5: =SUM(E6:E27) -> 0 | F5: =SUM(F6:F27) -> 0
B6: =DATE(StartJahr,8,1) -> 2023-08-01 | C6: Nationalfeiertag | D6: 1 | E6: =INDIRECT("RAZ_"& TEXT(WEEKDAY(B6,2),0) & "WT")*D6 -> 0 | F6: =IF(E6=0,0,D6) -> 0
B7: =DATE(StartJahr,8,15) -> 2023-08-15 | C7: Maria Himmelfahrt | D7: 1 | E7: =INDIRECT("RAZ_"& TEXT(WEEKDAY(B7,2),0) & "WT")*D7 -> 0 | F7: =IF(E7=0,0,D7) -> 0
B8: =DATE(StartJahr,11,1) -> 2023-11-01 | C8: Allerheiligen | D8: 1 | E8: 0 | F8: 0
B9: =DATE(StartJahr,12,8) -> 2023-12-08 | C9: Maria Empfängnis | D9: 1 | E9: =INDIRECT("RAZ_"& TEXT(WEEKDAY(B9,2),0) & "WT")*D9 -> 0 | F9: =IF(E9=0,0,D9) -> 0
B10: =DATE(StartJahr,12,24) -> 2023-12-24 | C10: Heiligabend | D10: 0.5 | E10: 0 | F10: 0
B11: =DATE(StartJahr,12,25) -> 2023-12-25 | C11: Weihnachtstag | D11: 1 | E11: 0 | F11: 0
B12: =DATE(StartJahr,12,26) -> 2023-12-26 | C12: Stephanstag | D12: 1 | E12: 0 | F12: 0
B13: =DATE(StartJahr,12,31) -> 2023-12-31 | C13: Silvester | D13: 0.5 | E13: 0 | F13: 0
B14: =DATE(EndJahr,1,1) -> 2024-01-01 | C14: Neujahr | D14: 1 | E14: 0 | F14: 0
B15: =DATE(EndJahr,1,2) -> 2024-01-02 | C15: Berchtoldstag | D15: 1 | E15: 0 | F15: 0
B16: =DOLLAR((DAY(MINUTE(EndJahr/38)/2+55)&".4."&EndJahr)/7,)*7-8 -> 2024-03-29 | C16: Karfreitag | D16: 1 | E16: 0 | F16: 0
B17: =B16+3 -> 2024-04-01 | C17: Ostermontag | D17: 1 | E17: 0 | F17: 0
B18: =B17+38 -> 2024-05-09 | C18: Auffahrt | D18: 1 | E18: 0 | F18: 0
B19: =B18+11 -> 2024-05-20 | C19: Pfingstmontag | D19: 1 | E19: 0 | F19: 0
B20: =B19+10 -> 2024-05-30 | C20: Fronleichnam | D20: 1 | E20: 0 | F20: 0
C22: Weiterer Feiertag | E22: =INDIRECT("RAZ_"& TEXT(WEEKDAY(B22,2),0) & "WT")*D22 -> 0 | F22: =IF(E22=0,0,D22) -> 0 | G22: =DCOUNT($B$5:$D$27,"Datum",Filter!A21:A22) -> 0 | I22: =IF(G22>1,"Achtung: dieses Datum ist bereits belegt","") -> 
C23: Weiterer Feiertag | E23: 0 | F23: 0 | G23: =DCOUNT($B$5:$D$27,"Datum",Filter!B21:B22) -> 0 | I23: =IF(G23>1,"Achtung: dieses Datum ist bereits belegt","") -> 
C24: Weiterer Feiertag | E24: 0 | F24: 0 | G24: =DCOUNT($B$5:$D$27,"Datum",Filter!C21:C22) -> 0 | I24: =IF(G24>1,"Achtung: dieses Datum ist bereits belegt","") -> 
C25: Weiterer Feiertag | E25: 0 | F25: 0 | G25: =DCOUNT($B$5:$D$27,"Datum",Filter!D21:D22) -> 0 | I25: =IF(G25>1,"Achtung: dieses Datum ist bereits belegt","") -> 
C26: Weiterer Feiertag | E26: 0 | F26: 0 | G26: =DCOUNT($B$5:$D$27,"Datum",Filter!E21:E22) -> 0 | I26: =IF(G26>1,"Achtung: dieses Datum ist bereits belegt","") -> 
C27: Weiterer Feiertag | E27: 0 | F27: 0 | G27: =DCOUNT($B$5:$D$27,"Datum",Filter!F21:F22) -> 0 | I27: =IF(G27>1,"Achtung: das Datum ist bereits belegt","") -> 

Sheet Filter (hidden)
A5: Abwesend | B5: Abwesend | C5: Abwesend | D5: Abwesend | E5: Abwesend | F5: Abwesend
A6: ="=FE" -> =FE | B6: ="=KR" -> =KR | C6: ="=MI" -> =MI | D6: ="=UN" -> =UN | E6: ="=UR" -> =UR | F6: ="=UU" -> =UU
A10: Typ | B10: Typ | C10: Typ
A11: ="=SFZ" -> =SFZ | B11: ="=SZ" -> =SZ | C11: ="=KT" -> =KT
A16: M | B16: M | C16: M | D16: M | E16: M | F16: M | G16: M | H16: M | I16: M | J16: M | K16: M | L16: M
A17: 8 | B17: 9 | C17: 10 | D17: 11 | E17: 12 | F17: 1 | G17: 2 | H17: 3 | I17: 4 | J17: 5 | K17: 6 | L17: 7
A21: Datum | B21: Datum | C21: Datum | D21: Datum | E21: Datum | F21: Datum
A22: =Feiertage!B22 -> 00:00:00 | B22: =Feiertage!B23 -> 00:00:00 | C22: =Feiertage!B24 -> 00:00:00 | D22: =Feiertage!B25 -> 00:00:00 | E22: =Feiertage!B26 -> 00:00:00 | F22: =Feiertage!B27 -> 00:00:00

Sheet Listen (hidden)
B1: Listen
B3: Liste_TagesTyp
B4: SFZ | C4: Schulferienzeit
B5: SZ | C5: Schulzeit
B9: Liste_Abwesenheiten
B10: KR | C10: Krankheit
B11: MI | C11: Militär
B12: UN | C12: Unfall
B13: UR | C13: Urlaub
B14: UU | C14: Urlaub unbesoldet
B17: Liste_Feiertagsanteil
B18: 1
B19: 0.5

Sheet Anleitung
B1: Anleitung
B2: Allgemeine Information
B4: Berufsauftrag als Grundlage
B5: Der Berufsauftrag bildet die Grundlage für die Ausgestaltung der Arbeit einer Lehrperson. Er be-schreibt die unterschiedlichen Arbeitsfelder und die zeitliche Verteilung der Arbeiten über ein Schuljahr (vgl. Broschüre „Berufsauftrag für Lehrpersonen – Arbeitszeit und Arbeitsfelder“).
B8: Die jährliche Gesamtarbeitszeit der Lehrpersonen entspricht jener der Angestellten in der öffentli-chen Verwaltung. Dabei werden von der Bruttojahresarbeitszeit mindestens fünf Ferienwochen sowie die Feiertage abgezogen. Dementsprechend berechnet sich die Nettoarbeitszeit für ein 100%-Pensum für das aktuelle Schuljahr wie folgt:
B11: Bruttoarbeitszeit | D11: =AnzahlWerktage/5 -> 52.4 | E11: ="Wochen à " & WochenSoll*24 & " Std." -> Wochen à 42 Std.
E12: oder | H12: =D13*TagesSoll*24 -> 2200.8
D13: =AnzahlWerktage -> 262 | E13: ="Tage à " & TagesSoll *24 & " Std." -> Tage à 8.4 Std.
B14: Abzüglich Feiertage | D14: =AnzahlFeiertage -> 13 | E14: ="Tage à " & TagesSoll *24 & " Std." -> Tage à 8.4 Std. | H14: =-D14*TagesSoll*24 -> -109.2
B16: Jahresarbeitszeit | H16: =H12+H14 -> 2091.6
B17: Abzüglich Ferienanspruch | D17: 25 | E17: ="Tage à " & TagesSoll *24 & " Std." -> Tage à 8.4 Std. | H17: =-D17*TagesSoll*24 -> -210
B18: Nettoarbeitszeit | H18: =H16+H17 -> 1881.6
B20: Die Dienststelle Personal berechnet für jedes Schuljahr die Nettoarbeitszeit neu, da sich diese von Jahr zu Jahr je nach Lage der Feiertage ändert.
B23: Informationen zum Programm
B24: myALIS ist ein Zeiterfassungsinstrument insbesondere für Lehrpersonen, das auf den Berufsauftrag abgestimmt ist. Fachpersonen der Schuldienste verwenden das spezielle Zeiterfassungstool für Schuldienste, für Klassenassisenz existiert ebenfalls ein besser geeignetes Erfassungstool. myALIS kann auf allen Computern verwendet werden, die über das Programm MS Excel verfügen. myALIS ist jeweils für ein Jahr gültig. Nach einem Jahr müssen Sie die neue Version mit der angepassten Nettoarbeitszeit von der Homepage der Dienststelle Volksschulbildung herunterladen.
B25: ="Achtung: Bei den Jahrgängen " & YEAR(MIN(Zeiterfassung!C8:C373))-60+1 & " und " & YEAR(MIN(Zeiterfassung!C8:C373))-50+1 & " ist eine Differenz der berechneten Jahresarbeitszeit von Anstellungen in 42 h möglich im Vergleich zu der berechneten Arbeitszeit gemäss Pensenvereinbarung im Pensenmeldeformular der Dienststelle Personal (DPE). " -> Achtung: Bei den Jahrgängen 1964 und 1974 ist eine Differenz der berechneten Jahresarbeitszeit von Anstellungen in 42 h möglich im Vergleich zu der berechneten Arbeitszeit gemäss Pensenvereinbarung im Pensenmeldeformular der Dienststelle Personal (DPE).
B26: MyALIS rechnet die zusätzlichen Ferientage im Alter 50 bzw. 60 genauer aus, bei der Pensenvereinbarung im Formular der DPE ist dies nicht möglich. Korrekt berechnet sind die Zahlen von myALIS. Deshalb ist es nun auch möglich eine Pensenvereinbarung über myALIS zu erstellen. Verwenden Sie insbesondere bei diesen Jahrgängen die Vereinbarung in myALIS.
B28: Im Programm stehen Ihnen folgende Bereiche (Register) zur Verfügung:
B29: Zeiterfassung | D29: Hier erfassen Sie Ihre täglich geleistete Arbeitszeit und weisen diese den entsprechenden Berufsfeldern zu. Zusätzlich können Sie bezahlte Abwesenheiten wie Krankheit, Militär, Unfall und Urlaub erfassen.
B30: Übersicht | D30: Hier erhalten Sie einen Monats- und Jahresüberblick über die bereits geleistete Arbeitszeit.
B31: Pensendefinition | D31: Hier müssen Sie Ihr individuelles Pensum definieren. Daraus errechnet myALIS Ihre individuelle Jahresarbeitszeit. Davon bereits abgezogen ist Ihr Ferienanspruch. In myALIS wird nur die zu leistende Arbeitszeit erfasst.
B32: Pensenvereinbarung | D32: In diesem Register kann neu die Pensenvereinbarung erstellt werden - anstelle einer Vereinbarung aus dem Pensenmeldeformular der DPE.
B33: Jahreskalender | D33: Im Register Jahreskalender können Sie Änderungen in der vordefinierten Verteilung von Schulzeit und Schulferienzeit erfassen. Definieren Sie die entsprechenden Wochen als Schul- oder Schulferienzeit.
B34: Feiertage | D34: Im Register Feiertage sind die bezahlten kantonalen Feiertage festgelegt. Gemeindespezifische Feiertage (z.B. Patronatsfeiertage wie St. Leodegar) sind nicht bezahlte Feiertage. Sie können nicht zusätzlich erfasst und von der Jahresarbeitszeit abgezogen werden.
B35: Anleitung | D35: Das Register Anleitung enthält Erklärungen zu myALIS.
C37: In den Registern finden Sie jeweils in der rechten oberen Ecke ein Fragezeichen. Klicken Sie darauf, wenn Sie Fragen zum entsprechenden Register haben.
B40: © Dienststelle Volksschulbildung

Sheet A2
B1: Anleitung (A2)
B2: Register | C2: Zeiterfassung
B4: Die Erfassung der Arbeitszeit und der Abwesenheiten erfolgt im Register „Zeiterfassung“. In den linken Spalten sehen Sie den Schuljahresablauf mit Werktagen, Wochenenden und Feiertagen. In der Spalte „Typ“ erkennen Sie, ob dieser Tag in die Schulzeit (SZ) oder in die Schulferienzeit (SFZ) fällt.
B25: Soll-Arbeitszeit
B26: Eine Besonderheit des Lehrberufs zeigt sich in der unregelmässigen Arbeitszeit: die durchschnittliche Arbeitszeit während der Schulwochen ist höher als während der Schulferienwochen. Dies wird in myALIS berücksichtigt: unterschieden werden die durchschnittliche Sollarbeitszeit, die Sollarbeitszeit während der Schulzeit sowie die Sollarbeitszeit während der Schulferienzeit. Die Sollarbeitszeit während der Schulzeit ist höher als während der Schulferienzeit. Gesamthaft über das Jahr gleicht sich das aus. Im Register „Pensendefinition“ werden die durchschnittliche Sollarbeitszeit, die Sollarbeitszeit während der Schulzeit und die Sollarbeitszeit während der Schulferienzeit aufgrund Ihres Pensums ausgewiesen.
B27: Arbeitszeit erfassen
B28: Die geleistete Arbeit wird pro Tag in Stunden und Minuten erfasst und den einzelnen Arbeitsfeldern zugeordnet: Bitte beachten Sie, dass Sie bei der Eingabe den Doppelpunkt zur Trennung von Stunden und Minuten verwenden.
B29: Alternativ können Sie mit einem Doppelklick in die ent-sprechende Zelle eine Eingabemaske zur Erfassung der Zeit öffnen.
B30: Ferien nicht erfassen
B31: myALIS basiert auf der Nettoarbeitszeit, d.h. die Ferien und Feiertage wurden bereits von der Bruttoarbeitszeit abgezogen. Aus diesem Grund müssen im myALIS die persönlichen Ferien nicht erfasst werden. Auch Kompensationstage müssen nicht erfasst werden. Die Soll-Arbeitszeit umfasst nur die wirklich zu leistende Arbeitszeit.
B32: Abwesenheiten erfassen
B33: Bezahlte Abwesenheiten erfassen In der Spalte „Abw.“ wählen Sie den entsprechenden Grund für Ihre bezahlte Abwesenheit aus: - KR für Krankheit - MI für Militär - UN für Unfall - UR für besoldeter Urlaub - UU für unbesoldeter Urlaub Das Haben für einen Tag mit Abwesenheit entspricht der durchschnittlichen Sollarbeitszeit. Während der Schulzeit erhalten Sie also einen negativen Tagessaldo, da die Sollarbeitszeit während der Schulzeit höher ist als die durchschnittliche Sollarbeitszeit.

Sheet A3
B1: Anleitung (A3)
B2: Register | C2: Übersicht
B4: Im Register „Übersicht“ finden Sie eine Monats- und eine Jahresübersicht.
B6: In der Monatsübersicht sehen Sie Haben und Soll pro Monat aufgeteilt nach Aufgabenbereichen. Zusammenfassend sehen Sie, wie viel ihr Monats- bzw. Jahressaldo über oder unter dem Sollwert liegt.
B8: In der Jahresübersicht wird das Soll und Haben für alle Aufgabenbereiche ausgewiesen. Hier wird ersichtlich, ob Haben und Soll übereinstimmen.

Sheet A4
B1: Anleitung (A4)
B2: Register | C2: Pensendefinition
B4: Grundlage für die Berechnung der Soll-Arbeitszeit während der Schul- und Schulferienzeit bildet das individuelle Pensum. Als 1. Schritt muss deshalb das individuelle Pensum definiert werden. Hierfür ist es erforderlich, dass Sie die zentralen Angaben zu Ihrem Pensum erfassen.
B7: 1. Schritt - Angaben zu Person
B8: Geben Sie die Angaben zu Ihrer Person ein. Für die korrekte Berechnung der Anstellungen in 42stel ist zwingend die Eingabe des Geburtsdatums nötig. Standardmässig ist myALIS für ein Jahr eingestellt. Wenn ihre Anstellung kürzer dauert, müssen Sie den Start und das Ende Ihrer Anstellung anpassen.
B10: 2. Schritt - Pensendefinition
B11: Danach geben Sie an wie sich Ihr Pensum zusammensetzt.
B13: Aufgrund dieser Angaben wird automatisch berechnet, wie viele Arbeitsstunden Sie pro Arbeitsbereich zu leisten haben.
B15: Abschliessend wird automatisch berechnet, wie hoch die Sollarbeitszeit pro Tag ist.
B17: 3. Schritt - Änderung des Pensums während des Schuljahres
B18: myALIS kann keine Pensenänderung während des Jahres verarbeiten. Wenn sich Ihr Pensum während des Jahres ändert, müssen Sie Ihre Anstellung als befristet eingeben und myALIS dann abschliessen. Für den Zeitpunkt des Starts mit dem neuen Pensum müssen Sie mit einer leeren Version von myALIS neu starten.

Sheet A5
B1: Anleitung (A5)
B2: Register | C2: Jahreskalender
B4: Im Register „Jahreskalender“ können Sie die für Ihre Schule gültigen Schul- und Schulferienwochen definieren. Diese Angaben werden dann automatisch im Register „Zeiterfassung“ übernommen.

Sheet A6
B1: Anleitung (A6)
B2: Register | C2: Feiertage
B4: Im Register „Feiertage“ sind die bezahlten kantonalen Feiertage erfasst. Gemeindespezifische Feiertage sind nicht bezahlte Feiertage. Sie können nicht zusätzlich erfasst und von der Jahresarbeitszeit abgezogen werden.

Sheet Kennzahlen
B1: Kennzahlen
B3: Kalenderbeginn | C3: 2023-08-01
B4: Startjahr | C4: =YEAR(JahresKalenderStartdatum) -> 2023
B5: EndJahr | C5: =YEAR(JahresKalenderStartdatum+364) -> 2024
D7: Arbeitstage
B8: Schuljahr | C8: =YEAR(MIN(Zeiterfassung!C8:C373)) & "/" &YEAR(MAX(Zeiterfassung!C8:C373)) -> 2023/2024 | D8: =AnzahlArbeitstage -> 249
B11: Definierte Pensendauer
B12: Beginn | C12: =Pensum1_Start -> 2023-08-01
B13: Ende | C13: =Pensum1_Ende -> 2024-07-31 | D13: =AnzahlArbeitstage_PE1 -> 249
B15: Anteil am Jahrespensum | D15: =D13/D8 -> 1
C17: Tage | D17: Wochen
B18: Anzahl Tage | C18: =AnzahlTage -> 366 | D18: =C18/7 -> 52.28571429
B19: Anzahl Werktage | C19: =AnzahlWerktage -> 262 | D19: =C19/7 -> 37.42857143
B20: Anzahl Wochenendtage | C20: =AnzahlWochenendtage -> 104 | D20: =C20/7 -> 14.85714286
B21: Anzahl Feiertage | C21: =AnzahlFeiertage -> 13 | D21: =C21/7 -> 1.857142857
B22: Anzahl Arbeitstage | C22: =AnzahlArbeitstage -> 249 | D22: =C22/7 -> 35.57142857
C24: Tage | D24: Wochen
B25: Tage während der Schulzeit | C25: =DCOUNTA(_xlnm.Database,"Typ",Filter!A10:A11) -> 109 | D25: =C25/7 -> 15.57142857
B26: Tage während der Ferienzeit | C26: =DCOUNTA(_xlnm.Database,"Typ",Filter!B10:B11) -> 255 | D26: =C26/7 -> 36.42857143
B27: Kompensationstage | C27: =DCOUNTA(_xlnm.Database,"Typ",Filter!C10:C11) -> 0 | D27: =C27/7 -> 0
B30: Ferienanspruch bei einer Anstellung in Lektionen | C30: Soll-AT | D30: Tagessoll | E30: Jahressoll (unabhängig von Pensendauer) | F30: Pensen-AT | G30: Anteil | H30: Jahressoll (abhängig von Pensendauer)
B31: Arbeitszeit Soll (inkl. Ferien) | C31: =AnzahlArbeitstage -> 249 | D31: =TagesSoll -> 0.35 | E31: =C31*D31 -> 87.15 | F31: =AnzahlArbeitstage_PE1 -> 249 | G31: =F31/C31 -> 1 | H31: =E31*G31 -> 87.15
B32: Ferienanspruch (5 Wochen) | C32: 25 | D32: =TagesSoll -> 0.35 | E32: =C32*D32 -> 8.75 | H32: =E32*G31 -> 8.75
B34: Sollarbeitszeit (100% Pensum) | E34: =E31-E32 -> 78.4 | H34: =H31-H32 -> 78.4
B36: =Pensum1_Anteil_Lektionen29+Pensum1_Anteil_Lektionen30 -> 0 | H36: =H34*B36 -> 0
B40: Ferienanspruch bei Anstellung in 42 Wochenstunden | E40: ="Geburtstag "&TEXT(Geburtsdatum,"tt.MM.JJJJ") -> Geburtstag 00.01.1900 | I40: Ferienanspruch im laufenden Jahr | L40: Ferienanspruch in Relation zur Pensendauer
C41: Soll-AT | D41: Pensen-AT | E41: Stichtag | F41: Alter | G41: Ferienanspruch | H41: Verteilung | I41: Tage | J41: Stunden | K41: Anteil | L41: Tage | M41: Stunden
B42: Halbjahr 01.08. - 31.12. | C42: =AnzahlArbeitstage_1HJ -> 103 | D42: =AnzahlArbeitstage_PE1_1HJ -> 103 | E42: =DATE(YEAR(MIN(Zeiterfassung!C8:C373)),12,31) -> 2023-12-31 | F42: =IF(ISBLANK(Geburtsdatum),1,INT(YEARFRAC(Geburtsdatum+1,E42))) -> 1 | G42: =IF(F42<=49,25,IF(F42<=59,30,33)) -> 25 | H42: =C42/SUM(C42:C43) -> 0.4136546185 | I42: =H42*G42 -> 10.34136546 | J42: =I42*TagesSoll*24 -> 86.86746988 | K42: =D42/C42 -> 1 | L42: =I42*K42 -> 10.34136546 | M42: =L42*TagesSoll*24 -> 86.86746988
B43: Halbjahr 01.01. - 31.07. | C43: =AnzahlArbeitstage_2HJ -> 146 | D43: =AnzahlArbeitstage_PE1_2HJ -> 146 | E43: =DATE(YEAR(MAX(Zeiterfassung!C8:C373)),12,31) -> 2024-12-31 | F43: =IF(ISBLANK(Geburtsdatum),1,INT(YEARFRAC(Geburtsdatum+1,E43))) -> 1 | G43: =IF(F43<=49,25,IF(F43<=59,30,33)) -> 25 | H43: =C43/SUM(C42:C43) -> 0.5863453815 | I43: =H43*G43 -> 14.65863454 | J43: =I43*TagesSoll*24 -> 123.1325301 | K43: =D43/C43 -> 1 | L43: =I43*K43 -> 14.65863454 | M43: =L43*TagesSoll*24 -> 123.1325301
B44: Ferienanteil Total | D44: =SUM(D42:D43) -> 249 | I44: =SUM(I42:I43) -> 25 | J44: =I44*TagesSoll*24 -> 210 | L44: =SUM(L42:L43) -> 25 | M44: =L44*TagesSoll*24 -> 210
B46: Jahresarbeitszeit inkl. Ferien | C46: =JAZ_Pensum_oF_mit_Ferien -> 2091.6 | D46: =C46/24 -> 87.15
B47: Ferienanspruch | C47: =Ferienanspruch_Stunden -> 210 | D47: =C47/24 -> 8.75
B49: Jahresarbeitszeit ohne Ferien (100% Pensum) | C49: =C46-C47 -> 1881.6 | D49: 78.4
B51: =36:36 -> 0 | C51: =C49*Pensum1_Anteil_Wochenstunden -> 0 | D51: 0

Sheet Leistungskatalog (hidden)
C1: Leistungskatalog
C5: Leistung | E5: Code | G5: Leistungsbezeichnung | K5: Kurzbezeichnung
C8: Leistungsart 1 | E8: A) | G8: Ressourcen für Kernauftrag (4 Arbeitsfelder) | K8: Kernauftrag
C11: Teilleistung 1 | G11: Unterricht | I11: Arbeitsfeld Unterricht • unterrichten und erziehen • planen, vorbereiten, auswerten des Unterrichts • zusammenarbeiten im Unterrichtsteam • erledigen von organisatorischen und administrativen Aufgaben bezüglich Klasse ca. 87.5% (≈1’650 Std.)
C13: Teilleistung 2 | G13: Lernende | I13: Arbeitsfeld Lernende • beraten und begleiten der Lernenden • zusammenarbeiten mit Erziehungsberechtigten, Schuldiensten und Behörden ca. 5% (≈94.5 Std.)
C15: Teilleistung 3 | G15: Schule | I15: Arbeitsfeld Schule • gestalten und organisieren der eigenen Schule • entwickeln und evaluieren der eigenen Schule ca. 5% (≈94.5 Std.)
C17: Teilleistung 4 | G17: Lehrperson | I17: Arbeitsfeld Lehrperson • evaluieren der eigenen Tätigkeiten • sich individuell weiterbilden ca. 2.5% (≈47 Std.)
C21: Leistungsart 2 | E21: B) | G21: Ressourcen für die Klassenlehrperson | I21: Ressourcen für die Klassenlehrpersonen Zusätzlich zeitliche Ressourcen für die Klassenführung. Spezifische Aufgabenbereiche gemäss Berufsauftrag für Lehrpersonen, Anhang 2 - Seite 16. Hier wird auch die Arbeitszeit erfasst, die eine Klassenlehrperson für die Betreuung pro IS-Kind erhält. | K21: Klassen-lehrperson
G22: davon Entlastung Funktion Klassenlehrperson
G23: davon Entlastung Integrative Sonderschulung
C27: Leistungsart 3 | E27: C) | G27: Besondere Aufgaben (Schulpool) | I27: Ressourcen für besondere Aufgaben (Schulpool) Für die Übernahme von besonderen Aufgaben, welche die ganze Schule betreffen, können einzelne Lehrpersonen mit Ressourcen aus dem Schulpool entschädigt werden (z. B. Verantwortliche/r für Interne Evaluation). | K27: Besondere Aufgaben
C31: Leistungsart 4 | E31: D) | G31: Tagesstrukturen | I31: Ressourcen für die Tagesstrukturen • Für zusätzliche Aufgaben von Lehrpersonen in der Hausaufgabenhilfe und Lernbegleitung. Diese Aufgaben werden zusätzlich zum Kernauftrag besoldet. • Hier können auch Arbeitszeiten von Mitarbeitenden erfasst werden, welche ausschliesslich in den Tagesstrukturen tätig sind. | K31: Tages-strukturen
C35: Leistungsart 5 | E35: E) | G35: Weitere Funktionen in 42 h/Wo | I35: Ressourcen für weitere Funktionen | K35: Weitere Funktionen

Sheet Zeiterfassung Layout (hidden)
B8: =C8 -> 2023-08-01 | C8: =Jahreskalender!C8 -> 2023-08-01
C9: =Jahreskalender!C9 -> 2023-08-02
C10: =Jahreskalender!C10 -> 2023-08-03
C11: =Jahreskalender!C11 -> 2023-08-04
C12: =Jahreskalender!C12 -> 2023-08-05
C13: =Jahreskalender!C13 -> 2023-08-06
C14: =Jahreskalender!C14 -> 2023-08-07
C15: =Jahreskalender!C15 -> 2023-08-08
C16: =Jahreskalender!C16 -> 2023-08-09
C17: =Jahreskalender!C17 -> 2023-08-10
C18: =Jahreskalender!C18 -> 2023-08-11
C19: =Jahreskalender!C19 -> 2023-08-12
C20: =Jahreskalender!C20 -> 2023-08-13
C21: =Jahreskalender!C21 -> 2023-08-14
C22: =Jahreskalender!C22 -> 2023-08-15
C23: =Jahreskalender!C23 -> 2023-08-16
C24: =Jahreskalender!C24 -> 2023-08-17
C25: =Jahreskalender!C25 -> 2023-08-18
C26: =Jahreskalender!C26 -> 2023-08-19
C27: =Jahreskalender!C27 -> 2023-08-20
C28: =Jahreskalender!C28 -> 2023-08-21
C29: =Jahreskalender!C29 -> 2023-08-22
C30: =Jahreskalender!C30 -> 2023-08-23
C31: =Jahreskalender!C31 -> 2023-08-24
C32: =Jahreskalender!C32 -> 2023-08-25
C33: =Jahreskalender!C33 -> 2023-08-26
C34: =Jahreskalender!C34 -> 2023-08-27
C35: =Jahreskalender!C35 -> 2023-08-28
C36: =Jahreskalender!C36 -> 2023-08-29
C37: =Jahreskalender!C37 -> 2023-08-30
C38: =Jahreskalender!C38 -> 2023-08-31
B39: =C39 -> 2023-09-01 | C39: =Jahreskalender!C39 -> 2023-09-01
C40: =Jahreskalender!C40 -> 2023-09-02
C41: =Jahreskalender!C41 -> 2023-09-03
C42: =Jahreskalender!C42 -> 2023-09-04
C43: =Jahreskalender!C43 -> 2023-09-05
C44: =Jahreskalender!C44 -> 2023-09-06
C45: =Jahreskalender!C45 -> 2023-09-07
C46: =Jahreskalender!C46 -> 2023-09-08
C47: =Jahreskalender!C47 -> 2023-09-09
C48: =Jahreskalender!C48 -> 2023-09-10
C49: =Jahreskalender!C49 -> 2023-09-11
C50: =Jahreskalender!C50 -> 2023-09-12
C51: =Jahreskalender!C51 -> 2023-09-13
C52: =Jahreskalender!C52 -> 2023-09-14
C53: =Jahreskalender!C53 -> 2023-09-15
C54: =Jahreskalender!C54 -> 2023-09-16
C55: =Jahreskalender!C55 -> 2023-09-17
C56: =Jahreskalender!C56 -> 2023-09-18
C57: =Jahreskalender!C57 -> 2023-09-19
C58: =Jahreskalender!C58 -> 2023-09-20
C59: =Jahreskalender!C59 -> 2023-09-21
C60: =Jahreskalender!C60 -> 2023-09-22
C61: =Jahreskalender!C61 -> 2023-09-23
C62: =Jahreskalender!C62 -> 2023-09-24
C63: =Jahreskalender!C63 -> 2023-09-25
C64: =Jahreskalender!C64 -> 2023-09-26
C65: =Jahreskalender!C65 -> 2023-09-27
C66: =Jahreskalender!C66 -> 2023-09-28
C67: =Jahreskalender!C67 -> 2023-09-29
C68: =Jahreskalender!C68 -> 2023-09-30
B69: =C69 -> 2023-10-01 | C69: =Jahreskalender!C69 -> 2023-10-01
C70: =Jahreskalender!C70 -> 2023-10-02
C71: =Jahreskalender!C71 -> 2023-10-03
C72: =Jahreskalender!C72 -> 2023-10-04
C73: =Jahreskalender!C73 -> 2023-10-05
C74: =Jahreskalender!C74 -> 2023-10-06
C75: =Jahreskalender!C75 -> 2023-10-07
C76: =Jahreskalender!C76 -> 2023-10-08
C77: =Jahreskalender!C77 -> 2023-10-09
C78: =Jahreskalender!C78 -> 2023-10-10
C79: =Jahreskalender!C79 -> 2023-10-11
C80: =Jahreskalender!C80 -> 2023-10-12
C81: =Jahreskalender!C81 -> 2023-10-13
C82: =Jahreskalender!C82 -> 2023-10-14
C83: =Jahreskalender!C83 -> 2023-10-15
C84: =Jahreskalender!C84 -> 2023-10-16
C85: =Jahreskalender!C85 -> 2023-10-17
C86: =Jahreskalender!C86 -> 2023-10-18
C87: =Jahreskalender!C87 -> 2023-10-19
C88: =Jahreskalender!C88 -> 2023-10-20
C89: =Jahreskalender!C89 -> 2023-10-21
C90: =Jahreskalender!C90 -> 2023-10-22
C91: =Jahreskalender!C91 -> 2023-10-23
C92: =Jahreskalender!C92 -> 2023-10-24
C93: =Jahreskalender!C93 -> 2023-10-25
C94: =Jahreskalender!C94 -> 2023-10-26
C95: =Jahreskalender!C95 -> 2023-10-27
C96: =Jahreskalender!C96 -> 2023-10-28
C97: =Jahreskalender!C97 -> 2023-10-29
C98: =Jahreskalender!C98 -> 2023-10-30
C99: =Jahreskalender!C99 -> 2023-10-31
B100: =C100 -> 2023-11-01 | C100: =Jahreskalender!C100 -> 2023-11-01
C101: =Jahreskalender!C101 -> 2023-11-02
C102: =Jahreskalender!C102 -> 2023-11-03
C103: =Jahreskalender!C103 -> 2023-11-04
C104: =Jahreskalender!C104 -> 2023-11-05
C105: =Jahreskalender!C105 -> 2023-11-06
C106: =Jahreskalender!C106 -> 2023-11-07
C107: =Jahreskalender!C107 -> 2023-11-08
C108: =Jahreskalender!C108 -> 2023-11-09
C109: =Jahreskalender!C109 -> 2023-11-10
C110: =Jahreskalender!C110 -> 2023-11-11
C111: =Jahreskalender!C111 -> 2023-11-12
C112: =Jahreskalender!C112 -> 2023-11-13
C113: =Jahreskalender!C113 -> 2023-11-14
C114: =Jahreskalender!C114 -> 2023-11-15
C115: =Jahreskalender!C115 -> 2023-11-16
C116: =Jahreskalender!C116 -> 2023-11-17
C117: =Jahreskalender!C117 -> 2023-11-18
C118: =Jahreskalender!C118 -> 2023-11-19
C119: =Jahreskalender!C119 -> 2023-11-20
C120: =Jahreskalender!C120 -> 2023-11-21
C121: =Jahreskalender!C121 -> 2023-11-22
C122: =Jahreskalender!C122 -> 2023-11-23
C123: =Jahreskalender!C123 -> 2023-11-24
C124: =Jahreskalender!C124 -> 2023-11-25
C125: =Jahreskalender!C125 -> 2023-11-26
C126: =Jahreskalender!C126 -> 2023-11-27
C127: =Jahreskalender!C127 -> 2023-11-28
C128: =Jahreskalender!C128 -> 2023-11-29
C129: =Jahreskalender!C129 -> 2023-11-30
B130: =C130 -> 2023-12-01 | C130: =Jahreskalender!C130 -> 2023-12-01
C131: =Jahreskalender!C131 -> 2023-12-02
C132: =Jahreskalender!C132 -> 2023-12-03
C133: =Jahreskalender!C133 -> 2023-12-04
C134: =Jahreskalender!C134 -> 2023-12-05
C135: =Jahreskalender!C135 -> 2023-12-06
C136: =Jahreskalender!C136 -> 2023-12-07
C137: =Jahreskalender!C137 -> 2023-12-08
C138: =Jahreskalender!C138 -> 2023-12-09
C139: =Jahreskalender!C139 -> 2023-12-10
C140: =Jahreskalender!C140 -> 2023-12-11
C141: =Jahreskalender!C141 -> 2023-12-12
C142: =Jahreskalender!C142 -> 2023-12-13
C143: =Jahreskalender!C143 -> 2023-12-14
C144: =Jahreskalender!C144 -> 2023-12-15
C145: =Jahreskalender!C145 -> 2023-12-16
C146: =Jahreskalender!C146 -> 2023-12-17
C147: =Jahreskalender!C147 -> 2023-12-18
C148: =Jahreskalender!C148 -> 2023-12-19
C149: =Jahreskalender!C149 -> 2023-12-20
C150: =Jahreskalender!C150 -> 2023-12-21
C151: =Jahreskalender!C151 -> 2023-12-22
C152: =Jahreskalender!C152 -> 2023-12-23
C153: =Jahreskalender!C153 -> 2023-12-24
C154: =Jahreskalender!C154 -> 2023-12-25
C155: =Jahreskalender!C155 -> 2023-12-26
C156: =Jahreskalender!C156 -> 2023-12-27
C157: =Jahreskalender!C157 -> 2023-12-28
C158: =Jahreskalender!C158 -> 2023-12-29
C159: =Jahreskalender!C159 -> 2023-12-30
C160: =Jahreskalender!C160 -> 2023-12-31
B161: =C161 -> 2024-01-01 | C161: =Jahreskalender!C161 -> 2024-01-01
C162: =Jahreskalender!C162 -> 2024-01-02
C163: =Jahreskalender!C163 -> 2024-01-03
C164: =Jahreskalender!C164 -> 2024-01-04
C165: =Jahreskalender!C165 -> 2024-01-05
C166: =Jahreskalender!C166 -> 2024-01-06
C167: =Jahreskalender!C167 -> 2024-01-07
C168: =Jahreskalender!C168 -> 2024-01-08
C169: =Jahreskalender!C169 -> 2024-01-09
C170: =Jahreskalender!C170 -> 2024-01-10
C171: =Jahreskalender!C171 -> 2024-01-11
C172: =Jahreskalender!C172 -> 2024-01-12
C173: =Jahreskalender!C173 -> 2024-01-13
C174: =Jahreskalender!C174 -> 2024-01-14
C175: =Jahreskalender!C175 -> 2024-01-15
C176: =Jahreskalender!C176 -> 2024-01-16
C177: =Jahreskalender!C177 -> 2024-01-17
C178: =Jahreskalender!C178 -> 2024-01-18
C179: =Jahreskalender!C179 -> 2024-01-19
C180: =Jahreskalender!C180 -> 2024-01-20
C181: =Jahreskalender!C181 -> 2024-01-21
C182: =Jahreskalender!C182 -> 2024-01-22
C183: =Jahreskalender!C183 -> 2024-01-23
C184: =Jahreskalender!C184 -> 2024-01-24
C185: =Jahreskalender!C185 -> 2024-01-25
C186: =Jahreskalender!C186 -> 2024-01-26
C187: =Jahreskalender!C187 -> 2024-01-27
C188: =Jahreskalender!C188 -> 2024-01-28
C189: =Jahreskalender!C189 -> 2024-01-29
C190: =Jahreskalender!C190 -> 2024-01-30
C191: =Jahreskalender!C191 -> 2024-01-31
B192: =C192 -> 2024-02-01 | C192: =Jahreskalender!C192 -> 2024-02-01
C193: =Jahreskalender!C193 -> 2024-02-02
C194: =Jahreskalender!C194 -> 2024-02-03
C195: =Jahreskalender!C195 -> 2024-02-04
C196: =Jahreskalender!C196 -> 2024-02-05
C197: =Jahreskalender!C197 -> 2024-02-06
C198: =Jahreskalender!C198 -> 2024-02-07
C199: =Jahreskalender!C199 -> 2024-02-08
C200: =Jahreskalender!C200 -> 2024-02-09
C201: =Jahreskalender!C201 -> 2024-02-10
C202: =Jahreskalender!C202 -> 2024-02-11
C203: =Jahreskalender!C203 -> 2024-02-12
C204: =Jahreskalender!C204 -> 2024-02-13
C205: =Jahreskalender!C205 -> 2024-02-14
C206: =Jahreskalender!C206 -> 2024-02-15
C207: =Jahreskalender!C207 -> 2024-02-16
... 166 more rows

Sheet Umstellung (hidden)
A1: Umstellung auf neues Schuljahr
A3: 1. Register <Kennzahlen> auswählen und entsperren
A4: 2. Gliederung einblenden (Datei / Optionen / Erweitert)
A5: 3. Alle Gliederungsebenen anzeigen
A6: 4. Kalenderbeginn setzen: 1.8.202.
A8: 5. Register <Jahreskalender> auswählen und entsperren
A9: 6. Gliederung einblenden (Datei / Optionen / Erweitert)
A11: 6. SZ (Schulzeit) und SFZ (Schulfreie Zeit) entsprechend den kantonalen Ferienvorgaben anpassen.
A14: 7. Register <Zeiterfassung> auswählen und entsperren
A15: 8. Gliederung einblenden (Datei / Optionen / Erweitert)
A16: 9. Markos im Register <Zeiterfassung> desaktivieren (Kommentar ' bei Exit Sub entfernen)
A17: 10. Register <Zeiterfassung> Wochenendformate anpassen
A19: 11. Wochenendformatierungen bereinigen.
A20: 12. Markos im Register <Zeiterfassung> deaktivieren (Kommentar ' bei Exit Sub setzen
